{"text_format":"1","workbook":"xlsx","n_sheets":44,"sheets":["Stammblatt","1-599","600-799 Verb.","Verb. Abzinsung","800-949 EK","0951 RS-Pens.","0965 RS Pers. Urlaub","0965 RS Pers. Tantieme","0970 RS Sonst.+BG","0974 RS Gewährl.","0977 RS Stb.","600-799","0980-0986","0996-0999 PWB","1000-1099","1200-1299","1360","1400-1440 Ford.aLuL","1460 Ford. zweifelh.","1500-1555 Ford. Sonst.","1590","1600-1659 Verb.aLuL","1700-1759 Verb. Sonst.","1792 Verb. Verr.kto.","3970-3980 Best.Waren+RHB","4100-4199 nur bei Selbstbuchern","2000-4999","7000-7140 Teilfertige","4957 mit ER","8100-8199","8300-8399","8900-8959","8921+8924","EV Kfz GmbH","Plausi-Prüf.","USt-Konsolidierung","Überleitung HB zu StB","0956-0963 RS GewSt+KSt","Checkliste Anhang","ESt-Planung","GewSt zur ESt","KSt-Planung","GewSt-Planung zur KSt","Aktivitätenplan"],"not_rendered":{"charts":0,"images":3,"macros":1,"external_links":4,"defined_names":1741,"comments":12,"pivot_tables":0},"unopened":[],"bounds":{"document_bytes":16777216,"sheet_cells":100000,"rows_first":2000,"rows_last":500,"rows_between":2000,"halvings":0,"cell_chars":16384,"cell_head_chars":4096},"cells_cut":0,"cells_raw":0,"read":"whole","date_system":"1900"}

{"sheet":"Stammblatt","index":0,"n_rows":61,"n_cols":5,"rows_kept":61,"cut":false,"hidden":false,"merged":[]}
["Mandantenstammblatt (bei ja, bitte ankreuzen, ansonsten Felder ausfüllen)"]
[]
["Allgemeine Daten",null,null,null,"Interne Daten"]
["Jahr",null,null,null,"Erfolgsreporter/in (Kürzel)"]
["Mdt.-Nr. ",null,null,null,"Controller/in (Kürzel)"]
["Mdt.-Name",null,null,null,"Erfolgsreporting-Paket"]
["Straße",null,null,null,"Erfolgsreporting-Pauschale mtl"]
["PLZ, Ort",null,null,null,"Einzug für Kanzlei"]
["Unternehmensgegenstand",null,null,null,"Einzug für FA"]
["Finanzamt",null,null,null,"Einzug für Gemeinde"]
["Steuer-Nr.",null,null,null,"Steuerkonto-Online läuft"]
["Gewerbebetrieb",null,null,null,"Vollmachtsdatenbank läuft"]
["Selbständige Tätigkeit",null,null,null,"Fibu-Erstellung mtl."]
["Einzelunternehmen",null,null,null,"Fibu-Erstellung vj."]
["Personengesellschaft",null,null,null,"Fibu-Erstellung j."]
["Kapitalgesellschaft",null,null,null,"OPOS"]
["Bilanz",null,null,null,"Kontoauszugsmanager"]
["EÜR",null,null,null,"Kassentool"]
["abweichend. Wirtschaftsjahr",null,null,null,"Schnittstellen Debitoren"]
["    wenn ja, von - bis",null,null,null,"   wenn ja, welche Schnittstellen"]
["Kontenrahmen",null,"SKR ?",null,"Schnittstellen Kreditoren"]
[null,null,null,null,"   wenn ja, welche Schnittstellen"]
["Umsatzsteuer",null,null,null,"Unternehmen Online"]
["Dauerfristverlängerung ",null,null,null,"Andere Software"]
["USt senden mtl.",null,null,null,"   wenn ja, welche Software"]
["USt senden vj.",null,null,null,"Freistell.beschein.Bauleistung"]
["USt senden j.",null,null,null,"   wenn ja, bis wann?"]
["ZM-Meldung senden mtl."]
["ZM-Meldung senden vj.",null,null,null,"Eingang Belege"]
["Soll-Versteuerung ",null,null,null,"Fibu-Abgabetermin"]
["Ist-Versteuerung ",null,null,null,"Digitaler Belegeingang"]
["§ 13b UStG enthalten ",null,null,null,"Pendelordner"]
["Konsolidierungs-Mdt.",null,null,null,"Mdt schickt Belege "]
[null,null,null,null,"Mdt bringt Belege "]
["Umfang Auswertungen",null,null,null,"Wir holen Belege"]
["USt-VA"]
["ZM-Meldung",null,null,null,"1. mtl. Kontaktaufnahme"]
["Controllingreport",null,null,null,"Persönliches Gespräch"]
["BKB",null,null,null,"Telefonat"]
["BKB-Vorjahresvergleich",null,null,null,"Mail"]
["BWA-Wertenachweis",null,null,null,"Post"]
["BWA-Wertenachweis Vj.vergl."]
["SuSa",null,null,null,"2. mtl. Kontaktaufnahme"]
["OPOS",null,null,null,"Persönliches Gespräch"]
["weitere",null,null,null,"Telefonat"]
[null,null,null,null,"Mail"]
["Ausgang Auswertungen an Mdt",null,null,null,"Post"]
["Mail"]
["Post",null,null,null,"Ausgang Auswertungen an Bank"]
["Mdt holt Belege (Abholschrank)",null,null,null,"mtl. Mail gl. Umfang wie Mdt"]
["Wir bringen Belege",null,null,null,"vj. Mail gl. Umfang wie Mdt"]
[null,null,null,null,"mtl. Post gl. Umfang wie Mdt"]
["Persönliche Informationen",null,null,null,"vj. Post gl. Umfang wie Mdt"]
["Verwandschaft zu anderen Mdt"]
["Hobbies",null,null,null,"Rhythmus APM-Aktualisierung"]
["Kommunikationsverhalten ",null,null,null,"mtl."]
["Typ (rot/blau/grün/gelb)",null,null,null,"vj."]
["Energiespender",null,null,null,"hj."]
["Energieräuber",null,null,null,"j."]
["Empfehler"]
["Sonstiges "]

{"sheet":"1-599","index":1,"n_rows":52,"n_cols":4,"rows_kept":52,"cut":false,"hidden":false,"merged":[]}
["Jahr:",{"$f":"Stammblatt!$C$4","v":0}]
["Mandantennummer:",{"$f":"Stammblatt!$C$5","v":0}]
["Mandantenname:",{"$f":"Stammblatt!$C$6","v":0}]
[]
["1. Konto/Kontenbereich: ","1-599"]
["2. Thema: ","Anlagevermögen"]
["3. Prüfungsziel: ","Das Anlagevermögen muss mit der Fibu in Rewe übereinstimmen."]
["4. Folgende Belege müssen vorliegen:","Ausdruck der \"Entwicklung des Anlagevermögens\" aus Rewe"]
[null,"Rechnungen aller WG AK über 800,00 EUR netto kopieren (keine GWGs kopieren)"]
["5. Erläuterungen/Berechnungen/Infos:","WG unter AK 250,00 EUR netto unter Betriebsausgabe buchen (meist Konto 4930)"]
[]
["Saldo laut \"Entwicklung des Anlagevermögens\":",null,"31.01.",0]
["Saldo laut Rewe:",null,{"$f":"C12","v":"31.01."},0]
[{"$f":"A12","v":"Saldo laut \"Entwicklung des Anlagevermögens\":"},null,"28.02.",0]
["Saldo laut Rewe:",null,{"$f":"C14","v":"28.02."},0]
["Saldo laut \"Entwicklung des Anlagevermögens\":",null,"31.03.",0]
["Saldo laut Rewe:",null,{"$f":"C16","v":"31.03."},0]
["Saldo laut \"Entwicklung des Anlagevermögens\":",null,"30.04.",0]
["Saldo laut Rewe:",null,{"$f":"C18","v":"30.04."},0]
["Saldo laut \"Entwicklung des Anlagevermögens\":",null,"31.05.",0]
["Saldo laut Rewe:",null,{"$f":"C20","v":"31.05."},0]
["Saldo laut \"Entwicklung des Anlagevermögens\":",null,"30.06.",0]
["Saldo laut Rewe:",null,{"$f":"C22","v":"30.06."},0]
["Saldo laut \"Entwicklung des Anlagevermögens\":",null,"31.07.",0]
["Saldo laut Rewe:",null,{"$f":"C24","v":"31.07."},0]
["Saldo laut \"Entwicklung des Anlagevermögens\":",null,"31.08.",0]
["Saldo laut Rewe:",null,{"$f":"C26","v":"31.08."},0]
["Saldo laut \"Entwicklung des Anlagevermögens\":",null,"30.09.",0]
["Saldo laut Rewe:",null,{"$f":"C28","v":"30.09."},0]
["Saldo laut \"Entwicklung des Anlagevermögens\":",null,"31.10.",0]
["Saldo laut Rewe:",null,{"$f":"C30","v":"31.10."},0]
["Saldo laut \"Entwicklung des Anlagevermögens\":",null,"30.11.",0]
["Saldo laut Rewe:",null,{"$f":"C32","v":"30.11."},0]
["Saldo laut \"Entwicklung des Anlagevermögens\":",null,"31.12.",0]
["Saldo laut Rewe:",null,{"$f":"C34","v":"31.12."},0]
[]
["6. Prüfungsvermerk der/des ausführenden Mitarbeiter/in:",null,"Monat:","Kürzel Mitarb."]
["Der/die Mitarbeiter/in bestätigt mit seinem/ihrem nachfolgenden Kürzel,",null,1]
["dass alle oben genannten Prüfungen vollständig und korrekt durchgeführt worden sind.",null,2]
[null,null,3]
[null,null,4]
[null,null,5]
[null,null,6]
[null,null,7]
[null,null,8]
[null,null,9]
[null,null,10]
[null,null,11]
[null,null,12]
[]
["7. Buchungssätze:","keine manuell zu buchenden"]
[null,"BS werden von Anlag in Rewe per Schnittstelle übernommen."]

{"sheet":"600-799 Verb.","index":2,"n_rows":64,"n_cols":4,"rows_kept":64,"cut":false,"hidden":true,"merged":[]}
["Jahr:"]
["Mandantennummer:"]
["Mandantenname:"]
[]
["1. Konto/Kontenbereich: ","600-799"]
["2. Thema: ","Verbindlichkeiten"]
["3. Prüfungsziel: ","Die Belege über Verbindlichkeiten müssen mit der Fibu übereinstimmen."]
["4. Folgende Belege müssen vorliegen:","Darlehensauszüge von Banken etc."]
[null,"Zins- und Tilgungspläne von Banken etc."]
[null,"Darlehensberechnungen durch uns (Programm Wirtschaftsberatung)"]
["5. Erläuterungen/Berechnungen/Infos:","keine"]
["Saldo laut Belegen:",null,"31.01.",0]
["Saldo laut Rewe:",null,{"$f":"C12","v":"31.01."},0]
[{"$f":"A12","v":"Saldo laut Belegen:"},null,"28.02.",0]
[{"$f":"A13","v":"Saldo laut Rewe:"},null,{"$f":"C14","v":"28.02."},0]
[{"$f":"A14","v":"Saldo laut Belegen:"},null,"31.03.",0]
["Saldo laut Rewe:",null,{"$f":"C16","v":"31.03."},0]
["Saldo laut Belegen:",null,"30.04.",0]
["Saldo laut Rewe:",null,{"$f":"C18","v":"30.04."},0]
["Saldo laut Belegen:",null,"31.05.",0]
["Saldo laut Rewe:",null,{"$f":"C20","v":"31.05."},0]
["Saldo laut Belegen:",null,"30.06.",0]
["Saldo laut Rewe:",null,{"$f":"C22","v":"30.06."},0]
["Saldo laut Belegen:",null,"31.07.",0]
["Saldo laut Rewe:",null,{"$f":"C24","v":"31.07."},0]
["Saldo laut Belegen:",null,"31.08.",0]
["Saldo laut Rewe:",null,{"$f":"C26","v":"31.08."},0]
["Saldo laut Belegen:",null,"30.09.",0]
["Saldo laut Rewe:",null,{"$f":"C28","v":"30.09."},0]
["Saldo laut Belegen:",null,"31.10.",0]
["Saldo laut Rewe:",null,{"$f":"C30","v":"31.10."},0]
["Saldo laut Belegen:",null,"30.11.",0]
["Saldo laut Rewe:",null,{"$f":"C32","v":"30.11."},0]
["Saldo laut Belegen:",null,"31.12.",0]
["Saldo laut Rewe:",null,{"$f":"C34","v":"31.12."},0]
[]
["6. Prüfungsvermerk der/des ausführenden Mitarbeiter/in:",null,"Monat:","Kürzel Mitarb."]
["Der/die Mitarbeiter/in bestätigt mit seinem/ihrem nachfolgenden Kürzel,",null,1]
["dass alle oben genannten Prüfungen vollständig und korrekt durchgeführt worden sind.",null,2]
[null,null,3]
[null,null,4]
[null,null,5]
[null,null,6]
[null,null,7]
[null,null,8]
[null,null,9]
[null,null,10]
[null,null,11]
[null,null,12]
[]
["7. Buchungssätze:"]
["Umsatz","Sollkonto / Habenkonto","Datum","Buchungstext"]
[null,null,"31.01."]
[null,null,"28.02."]
[null,null,"31.03."]
[null,null,"30.04."]
[null,null,"31.05."]
[null,null,"30.06."]
[null,null,"31.07."]
[null,null,"31.08."]
[null,null,"30.09."]
[null,null,"31.10."]
[null,null,"30.11."]
[null,null,"31.12."]

{"sheet":"Verb. Abzinsung","index":3,"n_rows":46,"n_cols":11,"rows_kept":46,"cut":false,"hidden":true,"merged":[[34,4,34,10],[2,10,2,12],[3,5,3,9],[3,10,3,12],[26,4,26,10],[27,4,27,10]]}
[]
["Hilfe"]
[{"$f":"CONCATENATE([2]Programmeinstellungen!G19,\" \",YEAR(WJEnde))","v":{"$error":"#NAME?"}}]
["Mandant:",null,null,null,null,{"$f":"[2]Programmeinstellungen!B65","v":"Abzinsungsrechner"},null,null,null,null,{"$f":"WJEnde","v":{"$error":"#NAME?"}}]
[]
[null,null,null,null,"Abzinsungsrechner"]
[]
[null,null,null,null,"Abzinsung in der Handelsbilanz"]
[]
[null,null,null,null,"Verpflichtung (künftiger Erfüllungsbetrag):",null,null,null,null,0,"Euro"]
[null,null,null,null,"Restlaufzeit","Jahre:",0,"Monate:",0,{"$f":"G11+I11/12","v":0},"Jahre"]
[null,null,null,null,"Zinssatz: (durchschnittlicher Marktzinssatz)",null,null,null,null,0]
[]
[null,null,null,null,"Barwert:",null,null,null,null,{"$f":"IF(J11<=1,J10,PV(J12,J11,,-J10,1))","v":0}]
[]
[]
[]
[null,null,null,null,"Abzinsung in der Steuerbilanz"]
[]
[null,null,null,null,"Verpflichtung (Wert am Bilanzstichtag):",null,null,null,null,0,"Euro"]
[null,null,null,null,"Restlaufzeit","Jahre:",0,"Monate:",0,{"$f":"G21+I21/12","v":0},"Jahre"]
[null,null,null,null,"Zinssatz: (gem. § 6 Abs. 1 EStG)",null,null,null,null,0]
[]
[null,null,null,null,"Barwert:",null,null,null,null,{"$f":"IF(J21<=1,J20,PV(J22,J21,,-J20,1))","v":0}]
[]
[]
[null,null,null,null,"Der für die handelsrechtliche Abzinsung anwendbare Marktzinssatz wird monatlich durch die Deutsche Bundesbank ermittelt und im Internet veröffentlicht."]
[null,null,null,null,"www.bundesbank.de/statistik"]
[]
[]
[]
[]
[null,null,null,null,"Ermittlung Zinssatz bei nicht vollen Kalenderjahren"]
[]
[null,null,null,null,"Bei einer Laufzeit, die keinem vollen Kalenderjahr entspricht, muss zur Ermittlung der Rückstellung interpoliert werden."]
[]
[null,null,null,null,"Restlaufzeit","Jahre:",0,"Monate:",0]
[null,null,null,null,null,null,null,{"$f":"G37+I37/12","v":0}]
[null,null,null,null,"Zinssatz für ",{"$f":"ROUNDUP(G37+I37/12,0)","v":0},"Jahre",0,"%","(Marktzinssatz lt. Bundesbank)"]
[null,null,null,null,"Zinssatz für ",{"$f":"IF(F39=0,0,F39-1)","v":0},"Jahre",0,"%","(Marktzinssatz lt. Bundesbank)"]
[null,null,null,null,"Differenz",null,null,{"$f":"H39-H40","v":0},"%"]
[]
[null,null,null,null,"Zinsanteil für",{"$f":"12*(H38-F40)","v":0},"Monate",{"$f":"ROUND(H41*(H38-F40),2)","v":0},"%"]
[null,null,null,null,"Zinsanteil für",{"$f":"F40","v":0},"Jahre",{"$f":"H40","v":0},"%"]
[]
[null,null,null,null,"Zinssatz interpoliert:",null,null,{"$f":"H44+H43","v":0},"%"]

{"sheet":"800-949 EK","index":4,"n_rows":51,"n_cols":12,"rows_kept":51,"cut":false,"hidden":true,"merged":[[5,6,5,11]]}
["Jahr:",null,null,null,null,null,"«ZMSD/Betr/Unternehmensbezeichnung»"]
["Mandantennummer:",null,null,null,null,null,"«ZMSD/Betr/HS Straße»"]
["Mandantenname:",null,null,null,null,null,"«ZMSD/Betr/HS Postleitzahl Inland»","«ZMSD/Betr/HS Ort»"]
[]
["1. Konto/Kontenbereich: ","800-949"]
["2. Thema: ","Eigenkapital",null,null,null,null,"Kapitalkontenentwicklung zum 31.12.2013"]
["3. Prüfungsziel: ","Bilanz muss durch korrekten Abschluss über das Eigenkapital aufgehen."]
["4. Folgende Belege müssen vorliegen:","Notarvertrag bei Gründung einer Kapitalgesellschaft"]
[null,"Kapitalkontenentwicklung bei Personengesellschaft",null,null,null,null,"Gesellschafter","Name","Name","Name","Name","Summe"]
["5. Erläuterungen/Berechnungen/Infos:","keine",null,null,null,null,"Anteile",0.25,0.25,0.25,0.25,{"$f":"SUM(H10:K10)","v":1}]
["Saldo:",null,"31.01.",0,null,null,null,"EUR","EUR","EUR","EUR","EUR"]
[{"$f":"A11","v":"Saldo:"},null,"28.02.",0]
["Saldo:",null,"31.03.",0]
["Saldo:",null,"30.04.",0,null,null,"Kapital zum 01.01.",0,0,0,0,{"$f":"SUM(H14:K14)","v":0}]
["Saldo:",null,"31.05.",0]
["Saldo:",null,"30.06.",0,null,null,"./. Entnahmen",0,0,0,0,{"$f":"SUM(H16:K16)","v":0}]
["Saldo:",null,"31.07.",0]
["Saldo:",null,"31.08.",0,null,null," + Einlagen",0,0,0,0,{"$f":"SUM(H18:K18)","v":0}]
["Saldo:",null,"30.09.",0]
["Saldo:",null,"31.10.",0,null,null,"./. Verlustanteil lfd. Jahr",{"$f":"$F$20*H10","v":0},{"$f":"$F$20*I10","v":0},{"$f":"$F$20*J10","v":0},{"$f":"$F$20*K10","v":0},0]
["Saldo:",null,"30.11.",0]
["Saldo:",null,"31.12.",0,null,null," + Gewinnanteil lfd. Jahr",{"$f":"$F$22*H10","v":0},{"$f":"$F$22*I10","v":0},{"$f":"$F$22*J10","v":0},{"$f":"$F$22*K10","v":0},0]
[]
["6. Prüfungsvermerk der/des ausführenden Mitarbeiter/in:",null,"Monat:","Kürzel Mitarb."]
["Der/die Mitarbeiter/in bestätigt mit seinem/ihrem nachfolgenden Kürzel,",null,1,null,null,null,"Zwischensumme vor Verteilung",{"$f":"SUM(H13:H24)","v":0},{"$f":"SUM(I13:I24)","v":0},{"$f":"SUM(J13:J24)","v":0},{"$f":"SUM(K13:K24)","v":0},{"$f":"SUM(L13:L24)","v":0}]
["dass alle oben genannten Prüfungen vollständig und korrekt durchgeführt worden sind.",null,2]
[null,null,3,null,null,null,"Verteilung allgemeines Kapital",{"$f":"$F$27*H10","v":0},{"$f":"$F$27*I10","v":0},{"$f":"$F$27*J10","v":0},{"$f":"$F$27*K10","v":0},0]
[null,null,4]
[null,null,5]
[null,null,6,null,null,null,"Kapital zum 31.12.",{"$f":"SUM(H25:H29)","v":0},{"$f":"SUM(I25:I29)","v":0},{"$f":"SUM(J25:J29)","v":0},{"$f":"SUM(K25:K29)","v":0},{"$f":"SUM(L25:L29)","v":0}]
[null,null,7]
[null,null,8]
[null,null,9]
[null,null,10]
[null,null,11]
[null,null,12]
[]
["7. Buchungssätze:"]
["Umsatz","Sollkonto / Habenkonto","Datum","Buchungstext"]
[null,null,"31.01."]
[null,null,"28.02."]
[null,null,"31.03."]
[null,null,"30.04."]
[null,null,"31.05."]
[null,null,"30.06."]
[null,null,"31.07."]
[null,null,"31.08."]
[null,null,"30.09."]
[null,null,"31.10."]
[null,null,"30.11."]
[null,null,"31.12."]

{"sheet":"0951 RS-Pens.","index":5,"n_rows":133,"n_cols":22,"rows_kept":133,"cut":false,"hidden":true,"merged":[[25,9,25,10],[26,9,26,10],[0,14,0,15],[1,14,1,15],[21,7,21,8],[21,9,21,10],[22,9,22,10]]}
["Jahr:",null,null,null,null,null,"Mandant: ",{"$f":"[3]Mdt.Stammblatt!V10","v":{"$error":"#REF!"}},null,null,null,null,null,null,"Eingabefeld"]
["Mandantennummer:",null,null,null,null,null,"Jahr: ",{"$f":"[3]Mdt.Stammblatt!AC10","v":{"$error":"#REF!"}},null,null,null,null,null,null,"mtl. Ergebnisfeld"]
["Mandantenname:"]
[]
["Handelsbilanz:",null,null,null,null,null,"Rückstellungen werden monatlich mit 1/12 des Vorjahresbetrags eingebucht"]
[]
["1. Konto/Kontenbereich: ",951,null,null,null,null,"Rückstellungsart","Betrag Vorjahr","2014-01-01","2014-02-01","2014-03-01","2014-04-01","2014-05-01","2014-06-01","2014-07-01","2014-08-01","2014-09-01","2014-10-01","2014-11-01","2014-12-01","Summe 14","Konto"]
["2. Thema: ","Rückstellungen für Pensionen (Handelsbilanz)",null,null,null,null,"Pension, Kto. 951",12973,{"$f":"H8/12","v":1081.0833333333333},{"$f":"H8/12","v":1081.0833333333333},{"$f":"H8/12","v":1081.0833333333333},{"$f":"H8/12","v":1081.0833333333333},{"$f":"H8/12","v":1081.0833333333333},{"$f":"H8/12","v":1081.0833333333333},{"$f":"H8/12","v":1081.0833333333333},{"$f":"H8/12","v":1081.0833333333333},{"$f":"H8/12","v":1081.0833333333333},{"$f":"H8/12","v":1081.0833333333333},{"$f":"H8/12","v":1081.0833333333333},{"$f":"H8/12","v":1081.0833333333333},{"$f":"SUM(I8:T8)","v":12973.000000000002},2146]
["3. Prüfungsziel: ","Die Belege über Rückstellungen müssen mit der Fibu übereinstimmen.",null,null,null,null,"Rückdeckung, Kto. 1357",5798,483.16666666666669,{"$f":"H9/12","v":483.16666666666669},{"$f":"H9/12","v":483.16666666666669},{"$f":"H9/12","v":483.16666666666669},{"$f":"H9/12","v":483.16666666666669},{"$f":"H9/12","v":483.16666666666669},{"$f":"H9/12","v":483.16666666666669},{"$f":"H9/12","v":483.16666666666669},{"$f":"H9/12","v":483.16666666666669},{"$f":"H9/12","v":483.16666666666669},{"$f":"H9/12","v":483.16666666666669},{"$f":"H9/12","v":483.16666666666669},{"$f":"SUM(I9:T9)","v":5798.0000000000009},2687]
["4. Folgende Belege müssen vorliegen:","Versicherungsmathematisches Gutachten",null,null,null,null,null,0,0,{"$f":"H10/12","v":0},{"$f":"H10/12","v":0},{"$f":"H10/12","v":0},{"$f":"H10/12","v":0},{"$f":"H10/12","v":0},{"$f":"H10/12","v":0},{"$f":"H10/12","v":0},{"$f":"H10/12","v":0},{"$f":"H10/12","v":0},{"$f":"H10/12","v":0},{"$f":"H10/12","v":0},{"$f":"SUM(I10:T10)","v":0}]
["5. Erläuterungen/Berechnungen/Infos:","Einmal pro Jahr wird der Saldo laut Gutachten abgestimmt. ",null,null,null,null,null,0,0,0,0,0,0,0,0,0,0,0,0,0,0]
[null,"Unterjährig wird die Rückstellung laut Vorjahr mit 1/12 Anteil gebucht.",null,null,null,null,null,0,0,0,0,0,0,0,0,0,0,0,0,0,0]
[null,"Achtung: Unterschiedliche Behandlung in Habi und Steubi",null,null,null,null,"Steuerbilanz",0,0,0,0,0,0,0,0,0,0,0,0,0,0]
["Saldo laut Schätzung:",null,"31.01.",0,null,null,"Pension, Kto. 950",8293,691.08333333333337,691.08333333333337,691.08333333333337,691.08333333333337,691.08333333333337,691.08333333333337,691.08333333333337,691.08333333333337,691.08333333333337,691.08333333333337,691.08333333333337,691.08333333333337,8292.9999999999982,4165]
[{"$f":"A14","v":"Saldo laut Schätzung:"},null,"28.02.",0,null,null,"Rückdeckung, Kto. 0595",5798,483.16666666666669,483.16666666666669,483.16666666666669,483.16666666666669,483.16666666666669,483.16666666666669,483.16666666666669,483.16666666666669,483.16666666666669,483.16666666666669,483.16666666666669,483.16666666666669,5798.0000000000009,2510]
["Saldo laut Schätzung:",null,"31.03.",0]
["Saldo laut Schätzung:",null,"30.04.",0]
["Saldo laut Schätzung:",null,"31.05.",0,null,null,"BEI PENS.RÜCKST. BEACHTEN:"]
["Saldo laut Schätzung:",null,"30.06.",0,null,null,"in StB vierteljährl. Storno der HB-Buchungen u. StB-Buchungen erfassen, wenn ER Classic vereinbart"]
["Saldo laut Schätzung:",null,"31.07.",0]
["Saldo laut Schätzung:",null,"31.08.",0]
["Saldo laut Schätzung:",null,"30.09.",0,null,null,null,"Buchungssätze:",null,"2146 an 0951"]
["Saldo laut Schätzung:",null,"31.10.",0,null,null,null,null,null,"1357  an  2687"]
["Saldo laut Schätzung:",null,"30.11.",0]
["Saldo laut Schätzung:",null,"31.12.",0]
[null,null,null,null,null,null,null,null,null,"4165  an  0950"]
["6. Prüfungsvermerk der/des ausführenden Mitarbeiter/in:",null,"Monat:","Kürzel Mitarb.",null,null,null,null,null,"0595  an  2510"]
["Der/die Mitarbeiter/in bestätigt mit seinem/ihrem nachfolgenden Kürzel,",null,1]
["dass alle oben genannten Prüfungen vollständig und korrekt durchgeführt worden sind.",null,2,null,null,null,null,null,null,null,null,null,null,null,null,null,null,null,"zurück zum Ablauf"]
[null,null,3]
[null,null,4]
[null,null,5]
[null,null,6]
[null,null,7]
[null,null,8]
[null,null,9]
[null,null,10]
[null,null,11]
[null,null,12]
[]
["7. Buchungssätze:"]
["Umsatz","Sollkonto / Habenkonto","Datum","Buchungstext"]
[null,"4165 / 951","31.01."]
[null,"2146 / 951",{"$f":"C43","v":"31.01."}]
[null,"2091 / 951",{"$f":"C44","v":"31.01."}]
[null,"4165 / 951","28.02."]
[null,"2146 / 951",{"$f":"C46","v":"28.02."}]
[null,"2091 / 951",{"$f":"C47","v":"28.02."}]
[null,"4165 / 951","31.03."]
[null,"2146 / 951",{"$f":"C49","v":"31.03."}]
[null,"2091 / 951",{"$f":"C50","v":"31.03."}]
[null,"4165 / 951","30.04."]
[null,"2146 / 951",{"$f":"C52","v":"30.04."}]
[null,"2091 / 951",{"$f":"C53","v":"30.04."}]
[null,"4165 / 951","31.05."]
[null,"2146 / 951",{"$f":"C55","v":"31.05."}]
[null,"2091 / 951",{"$f":"C56","v":"31.05."}]
[null,"4165 / 951","30.06."]
[null,"2146 / 951",{"$f":"C58","v":"30.06."}]
[null,"2091 / 951","30.06."]
[null,"4165 / 951","31.07."]
[null,"2146 / 951",{"$f":"C61","v":"31.07."}]
[null,"2091 / 951","31.07."]
[null,"4165 / 951","31.08."]
[null,"2146 / 951",{"$f":"C64","v":"31.08."}]
[null,"2091 / 951",{"$f":"C65","v":"31.08."}]
[null,"4165 / 951","30.09."]
[null,"2146 / 951",{"$f":"C67","v":"30.09."}]
[null,"2091 / 951",{"$f":"C68","v":"30.09."}]
[null,"4165 / 951","31.10."]
[null,"2146 / 951",{"$f":"C70","v":"31.10."}]
[null,"2091 / 951",{"$f":"C71","v":"31.10."}]
[null,"4165 / 951","30.11."]
[null,"2146 / 951",{"$f":"C73","v":"30.11."}]
[null,"2091 / 951",{"$f":"C74","v":"30.11."}]
[null,"4165 / 951","31.12."]
[null,"2146 / 951",{"$f":"C76","v":"31.12."}]
[null,"2091 / 951",{"$f":"C77","v":"31.12."}]
[]
[]
[]
["Steuerbilanz:"]
[]
["1. Konto/Kontenbereich: ",951]
["2. Thema: ","Rückstellungen für Pensionen (Steuerbilanz)"]
["3. Prüfungsziel: ","Die Belege über Rückstellungen müssen mit der Fibu übereinstimmen."]
["4. Folgende Belege müssen vorliegen:","Versicherungsmathematisches Gutachten"]
["5. Erläuterungen/Berechnungen/Infos:","Einmal pro Jahr wird der Saldo laut Gutachten abgestimmt. "]
[null,"Unterjährig wird die Rückstellung laut Vorjahr mit 1/12 Anteil gebucht."]
["Saldo laut Schätzung:",null,"31.01.",0]
[{"$f":"A90","v":"Saldo laut Schätzung:"},null,"28.02.",0]
["Saldo laut Schätzung:",null,"31.03.",0]
["Saldo laut Schätzung:",null,"30.04.",0]
["Saldo laut Schätzung:",null,"31.05.",0]
["Saldo laut Schätzung:",null,"30.06.",0]
["Saldo laut Schätzung:",null,"31.07.",0]
["Saldo laut Schätzung:",null,"31.08.",0]
["Saldo laut Schätzung:",null,"30.09.",0]
["Saldo laut Schätzung:",null,"31.10.",0]
["Saldo laut Schätzung:",null,"30.11.",0]
["Saldo laut Schätzung:",null,"31.12.",0]
["Saldo laut Belegen:",null,"31.12.",0]
[]
["6. Prüfungsvermerk der/des ausführenden Mitarbeiter/in:",null,"Monat:","Kürzel Mitarb."]
["Der/die Mitarbeiter/in bestätigt mit seinem/ihrem nachfolgenden Kürzel,",null,1]
["dass alle oben genannten Prüfungen vollständig und korrekt durchgeführt worden sind.",null,2]
[null,null,3]
[null,null,4]
[null,null,5]
[null,null,6]
[null,null,7]
[null,null,8]
[null,null,9]
[null,null,10]
[null,null,11]
[null,null,12]
[]
["7. Buchungssätze:","4165 / 950 (Zuführung Rückstellung)"]
[null,"950 / 4165 (Auflösung Rückstellung)"]
[]
["Umsatz","Sollkonto / Habenkonto","Datum","Buchungstext"]
[null,null,"31.01."]
[null,null,"28.02."]
[null,null,"31.03."]
[null,null,"30.04."]
[null,null,"31.05."]
[null,null,"30.06."]
[null,null,"31.07."]
[null,null,"31.08."]
[null,null,"30.09."]
[null,null,"31.10."]
[null,null,"30.11."]
[null,null,"31.12."]

{"sheet":"0965 RS Pers. Urlaub","index":6,"n_rows":54,"n_cols":117,"rows_kept":54,"cut":false,"hidden":true,"merged":[[17,7,17,8],[18,7,18,8],[19,7,19,8],[20,7,20,8],[21,7,21,8],[12,7,12,8],[13,7,13,8],[14,7,14,8],[15,7,15,8],[16,7,16,8],[7,7,7,8],[8,7,8,8],[9,7,9,8],[10,7,10,8],[11,7,11,8],[2,18,2,20],[3,10,3,18],[3,19,3,20],[5,7,6,8],[5,9,6,9],[5,10,6,10],[5,11,6,11],[5,12,6,12],[5,15,5,16],[5,17,6,17],[5,18,6,18],[27,7,27,8],[28,7,28,8],[22,7,22,8],[23,7,23,8],[24,7,24,8],[25,7,25,8],[26,7,26,8]]}
["Jahr:"]
["Mandantennummer:",null,null,null,null,null,null,"Hilfe"]
["Mandantenname:",null,null,null,null,null,null,{"$f":"CONCATENATE([2]Programmeinstellungen!G19,\" \",YEAR(WJEnde))","v":{"$error":"#NAME?"}},null,null,null,null,null,null,null,null,null,null,{"$f":"[2]Programmeinstellungen!$G$23","v":"Werner & Wollscheid StB"}]
[null,null,null,null,null,null,null,{"$f":"Mandant","v":{"$error":"#NAME?"}},null,null,{"$f":"[2]Programmeinstellungen!B47","v":"Rückstellung Personalaufwand"},null,null,null,null,null,null,null,null,{"$f":"WJEnde","v":{"$error":"#NAME?"}}]
["1. Konto/Kontenbereich: ","950-954",null,null,null,null,null,"ENTFÄLLT BEI GEWINNERMITTLUNG NACH § 4 (3) ESTG",null,null,null,null,null,null,null,null,null,null,null,null,null,null,null,null,null,null,null,null,null,null,null,null,null,null,null,null,null,null,null,null,null,null,null,null,null,null,null,null,null,null,null,null,null,null,null,null,null,null,null,null,null,null,null,null,null,null,null,null,null,null,null,null,null,null,null,null,null,null,null,null,null,null,null,null,null,null,null,null,null,null,null,null,null,null,null,null,null,null,null,null,null,null,null,null,null,null,null,null,null,null,null,null,null,null,null,null,{"$f":"[2]Berechnungen!B516","v":1}]
["2. Thema: ","Rückstellungen für Urlaub",null,null,null,null,null,"Mitarbeiter",null,"mtl. Brutto-\ngehalt\nin Euro","zusätzliches\nUrlaubsgeld\nin Euro","weitere Kosten\n(nur HR)","SV-Zuschlag\nin  %","Gesamtkosten\nhandelsrechtlich","Gesamtkosten\nsteuerrechtlich","zukünftige\nKostensteigerung",null,"Durchschnitt\nArbeitstage\nim Monat","Resturlaub\nin Tagen","Rückstellung\nhandelsrechtlich","Rückstellung\nsteuerrechtlich"]
["3. Prüfungsziel: ","Die Belege über Rückstellungen müssen mit der Fibu übereinstimmen.",null,null,null,null,null,null,null,null,null,null,null,"in Euro","in Euro","in %","in Euro",null,null,"in Euro","in Euro"]
["4. Folgende Belege müssen vorliegen:","Versicherungsmathematisches Gutachten",null,null,null,null,null,"Wettstein",null,2000,null,null,0.25,2500,2500,0.02,50,22,8,927.27,909.09]
["5. Erläuterungen/Berechnungen/Infos:","Einmal pro Jahr wird der Saldo laut Gutachten abgestimmt. ",null,null,null,null,null,null,null,null,null,null,0.25,0,0,null,0,22,0,0,0]
[null,"Unterjährig wird die Rückstellung laut Vorjahr mit 1/12 Anteil gebucht.",null,null,null,null,null,null,null,null,null,null,0.25,0,0,null,0,22,0,0,0]
["Saldo laut Schätzung:",null,"31.01.",0,null,null,null,null,null,null,null,null,0.25,0,0,null,0,22,0,0,0]
[{"$f":"A11","v":"Saldo laut Schätzung:"},null,"28.02.",0,null,null,null,null,null,null,null,null,0.25,0,0,null,0,22,0,0,0]
["Saldo laut Schätzung:",null,"31.03.",0,null,null,null,null,null,null,null,null,0.25,0,0,null,0,22,0,0,0]
["Saldo laut Schätzung:",null,"30.04.",0,null,null,null,null,null,null,null,null,0.25,0,0,null,0,22,0,0,0]
["Saldo laut Schätzung:",null,"31.05.",0,null,null,null,null,null,null,null,null,0.25,0,0,null,0,22,0,0,0]
["Saldo laut Schätzung:",null,"30.06.",0,null,null,null,null,null,null,null,null,0.25,0,0,null,0,22,0,0,0]
["Saldo laut Schätzung:",null,"31.07.",0,null,null,null,null,null,null,null,null,0.25,0,0,null,0,22,0,0,0]
["Saldo laut Schätzung:",null,"31.08.",0,null,null,null,null,null,null,null,null,0.25,0,0,null,0,22,0,0,0]
["Saldo laut Schätzung:",null,"30.09.",0,null,null,null,null,null,null,null,null,0.25,0,0,null,0,22,0,0,0]
["Saldo laut Schätzung:",null,"31.10.",0,null,null,null,null,null,null,null,null,0.25,0,0,null,0,22,0,0,0]
["Saldo laut Schätzung:",null,"30.11.",0,null,null,null,null,null,null,null,null,0.25,0,0,null,0,22,0,0,0]
["Saldo laut Schätzung:",null,"31.12.",0,null,null,null,null,null,null,null,null,0.25,0,0,null,0,22,0,0,0]
["Saldo laut Belegen:",null,"31.12.",0,null,null,null,null,null,null,null,null,0.25,0,0,null,0,22,0,0,0]
[null,null,null,null,null,null,null,null,null,null,null,null,0.25,0,0,null,0,22,0,0,0]
["6. Prüfungsvermerk der/des ausführenden Mitarbeiter/in:",null,"Monat:","Kürzel Mitarb.",null,null,null,"BG",null,0,null,null,null,{"$f":"J25","v":0},{"$f":"J25","v":0},null,{"$f":"N25*P25","v":0},1,1,{"$f":"ROUND((N25+Q25)/R25*S25,2)","v":0},{"$f":"ROUND(O25/R25*S25,2)","v":0}]
["Der/die Mitarbeiter/in bestätigt mit seinem/ihrem nachfolgenden Kürzel,",null,1,null,null,null,null,"Tantieme",null,0,null,null,null,{"$f":"J26","v":0},{"$f":"J26","v":0},null,0,1,1,{"$f":"ROUND((N26+Q26)/R26*S26,2)","v":0},{"$f":"ROUND(O26/R26*S26,2)","v":0}]
["dass alle oben genannten Prüfungen vollständig und korrekt durchgeführt worden sind.",null,2,null,null,null,null,"Sonstige",null,0,null,null,0,{"$f":"J27*(1+M27)","v":0},{"$f":"J27*(1+M27)","v":0},null,0,1,1,0,{"$f":"ROUND(O27/R27*S27,2)","v":0}]
[null,null,3,null,null,null,null,"Zeitkonten",null,0,null,null,0.25,{"$f":"J28*(1+M28)","v":0},{"$f":"J28*(1+M28)","v":0},null,0,1,1,{"$f":"ROUND((N28+Q28)/R28*S28-J28,2)","v":0},{"$f":"ROUND(O28/R28*S28-J28,2)","v":0}]
[null,null,4,null,null,null,null,"Urlaubskasse*",null,0,null,null,0.4,{"$f":"J29*(1+M29)","v":0},{"$f":"J29*(1+M29)","v":0},null,0,1,1,{"$f":"ROUND((N29+Q29)/R29*S29-J29,2)","v":0},{"$f":"ROUND(O29/R29*S29-J29,2)","v":0}]
[null,null,5,null,null,null,null,null,null,null,null,null,null,null,null,null,null,"Summe Kto.",{"$f":"KtoRstPersonalkosten","v":{"$error":"#NAME?"}},{"$f":"SUM(T8:T29)","v":927.27},{"$f":"SUM(U8:U29)","v":909.09}]
[null,null,6,null,null,null,null,"* Nur für Bauhauptgewerbe",null,null,null,null,null,null,null,null,null,"Vorjahr",null,0,0]
[null,null,7,null,null,null,null,null,null,null,null,null,null,null,null,null,null,"Veränderung",null,{"$f":"SUM(T30-T31)","v":927.27},{"$f":"SUM(U30-U31)","v":909.09}]
[null,null,8]
[null,null,9]
[null,null,10]
[null,null,11]
[null,null,12]
[]
["7. Buchungssätze:","4121 / 965 (Zuführung Rückstellung)"]
[null,"965 / 4121 (Auflösung Rückstellung)"]
[]
["Umsatz","Sollkonto / Habenkonto","Datum","Buchungstext"]
[null,null,"31.01."]
[null,null,"28.02."]
[null,null,"31.03."]
[null,null,"30.04."]
[null,null,"31.05."]
[null,null,"30.06."]
[null,null,"31.07."]
[null,null,"31.08."]
[null,null,"30.09."]
[null,null,"31.10."]
[null,null,"30.11."]
[null,null,"31.12."]

{"sheet":"0965 RS Pers. Tantieme","index":7,"n_rows":53,"n_cols":14,"rows_kept":53,"cut":false,"hidden":true,"merged":[[0,6,0,13],[9,6,9,12],[21,6,21,13],[35,6,35,13]]}
["Jahr:",null,null,null,null,null,"Tantiemeberechnung"]
["Mandantennummer:"]
["Mandantenname:"]
[null,null,null,null,null,null,"Rechtliche Vorgaben"]
["1. Konto/Kontenbereich: ",965]
["2. Thema: ","Rückstellungen für Tantiemen",null,null,null,null,null,"Tantiemezusage max. 50% des Jahresüberschusses"]
["3. Prüfungsziel: ","Die Berechnung der Tantiemen müssen mit der Fibu übereinstimmen.",null,null,null,null,null,"Gesamtjahresgehalt: 75% fest, 25% variabel"]
["4. Folgende Belege müssen vorliegen:","Die Tantiemeberechnung der Kanzlei Luzius."]
["5. Erläuterungen/Berechnungen/Infos:","Einmal pro Jahr wird der Saldo laut Tantiemeberechnung abgestimmt. "]
[null,"Unterjährig wird die Rückstellung laut Vorjahr mit 1/12 Anteil gebucht.",null,null,null,null,"Tantieme - Bemessungsgrundlage"]
["Saldo laut Schätzung:",null,"31.01.",0]
[{"$f":"A11","v":"Saldo laut Schätzung:"},null,"28.02.",0,null,null,"handelsrechtlicher Jahresüberschuss vor",null,null,null,null,null,null,{"$f":"N19-N16-N15","v":{"$error":"#DIV/0!"}}]
["Saldo laut Schätzung:",null,"31.03.",0,null,null,null,"Steuerrückstellung + Tantieme + a.o. Aufwand + Firmenwert AfA"]
["Saldo laut Schätzung:",null,"30.04.",0,null,null,"-","Verlustvorträge"]
["Saldo laut Schätzung:",null,"31.05.",0,null,null,"+","KSt + Solz vorläufig vor Tantieme",null,null,null,null,null,{"$f":"M15/M19","v":{"$error":"#DIV/0!"}}]
["Saldo laut Schätzung:",null,"30.06.",0,null,null,"+","GewSt vorläufig vor Tantieme",null,null,null,null,null,{"$f":"M16/M19","v":{"$error":"#DIV/0!"}}]
["Saldo laut Schätzung:",null,"31.07.",0,null,null,"+","außerordentliche Anpassung auf Grund des BILMOG (Kto. 2000)"]
["Saldo laut Schätzung:",null,"31.08.",0,null,null,"+","Firmenwert-AfA"]
["Saldo laut Schätzung:",null,"30.09.",0,null,null,null,"bereinigter Jahresüberschuss = BMG Tantieme",null,null,null,null,{"$f":"SUM(M12:M18)","v":0},1]
["Saldo laut Schätzung:",null,"31.10.",0]
["Saldo laut Schätzung:",null,"30.11.",0]
["Saldo laut Schätzung:",null,"31.12.",0,null,null,"Maximale Tantieme möglich"]
["Saldo laut Belegen:",null,"31.12.",0]
[null,null,null,null,null,null,"1.","Tantiemezusage max. 50% des Jahresüberschusses",null,null,null,null,{"$f":"M19*50%","v":0},{"$f":"M24","v":0}]
["6. Prüfungsvermerk der/des ausführenden Mitarbeiter/in:",null,"Monat:","Kürzel Mitarb."]
["Der/die Mitarbeiter/in bestätigt mit seinem/ihrem nachfolgenden Kürzel,",null,1,null,null,null,"2.","Jahresgehalt ohne Tantieme (Gesamtbrutto)"]
["dass alle oben genannten Prüfungen vollständig und korrekt durchgeführt worden sind.",null,2,null,null,null,null,"Jahresgehalt ohne Tantieme Herr/Frau ??"]
[null,null,3,null,null,null,null,"Tantieme 50% des JÜ sind geplant",null,null,null,{"$f":"ROUNDUP(M19*50%,0)","v":0}]
[null,null,4,null,null,null,null,"Gesamtjahresgehalt inkl. Tantieme",null,null,null,{"$f":"SUM(L26:L28)","v":0}]
[null,null,5,null,null,null,null,"Gesamtjahresgehalt inkl. Tantieme: 75% fest",null,null,null,null,{"$f":"L29*75%","v":0}]
[null,null,6,null,null,null,null,"Gesamtjahresgehalt: 25% variabel",null,null,null,null,{"$f":"L29*25%","v":0},{"$f":"M31","v":0}]
[null,null,7]
[null,null,8,null,null,null,null,"max. Tantieme (niedrigerer Betrag aus 1. o. 2.) Herr/Frau  ??",null,null,null,null,null,{"$f":"N31","v":0}]
[null,null,9]
[null,null,10]
[null,null,11,null,null,null,"Tantiemeberechnung"]
[]
["7. Buchungssätze:","4126 / 965 (Zuführung Rückstellung)",null,null,null,null,null,"Tantiemezusage 50% des Jahresüberschuss sind vertraglich vereinbart",null,null,null,null,null,{"$f":"L28","v":0}]
[null,"965 / 4126 (Auflösung Rückstellung)",null,null,null,null,null,"max. werden gezahlt",null,null,null,null,null,{"$f":"N31","v":0}]
[]
["Umsatz","Sollkonto / Habenkonto","Datum","Buchungstext"]
[null,null,"31.01.",null,null,null,"Buchung"]
[null,null,"28.02."]
[null,null,"31.03.",null,null,null,null,null,"Betrag","Soll","Haben","Text"]
[null,null,"30.04."]
[null,null,"31.05.",null,null,null,null,null,{"$f":"N33","v":0},4126,965,"Tantieme Herr/Frau ??"]
[null,null,"30.06."]
[null,null,"31.07."]
[null,null,"31.08."]
[null,null,"30.09."]
[null,null,"31.10."]
[null,null,"30.11."]
[null,null,"31.12."]

{"sheet":"0970 RS Sonst.+BG","index":8,"n_rows":54,"n_cols":4,"rows_kept":54,"cut":false,"hidden":true,"merged":[]}
["Jahr:"]
["Mandantennummer:"]
["Mandantenname:"]
[]
["1. Konto/Kontenbereich: ",970]
["2. Thema: ","Rückstellungen für Sonstiges"]
["3. Prüfungsziel: ","Die Belege über Rückstellungen müssen mit der Fibu übereinstimmen."]
["4. Folgende Belege müssen vorliegen:","Belege aus Vorjahr etc."]
["5. Erläuterungen/Berechnungen/Infos:","Einmal pro Jahr wird der Saldo laut Belegen abgestimmt. "]
[null,"Unterjährig wird die Rückstellung laut Vorjahr mit 1/12 Anteil gebucht."]
["Saldo laut Schätzung:",null,"31.01.",0]
[{"$f":"A11","v":"Saldo laut Schätzung:"},null,"28.02.",0]
["Saldo laut Schätzung:",null,"31.03.",0]
["Saldo laut Schätzung:",null,"30.04.",0]
["Saldo laut Schätzung:",null,"31.05.",0]
["Saldo laut Schätzung:",null,"30.06.",0]
["Saldo laut Schätzung:",null,"31.07.",0]
["Saldo laut Schätzung:",null,"31.08.",0]
["Saldo laut Schätzung:",null,"30.09.",0]
["Saldo laut Schätzung:",null,"31.10.",0]
["Saldo laut Schätzung:",null,"30.11.",0]
["Saldo laut Schätzung:",null,"31.12.",0]
["Saldo laut Belegen:",null,"31.12.",0]
[]
["6. Prüfungsvermerk der/des ausführenden Mitarbeiter/in:",null,"Monat:","Kürzel Mitarb."]
["Der/die Mitarbeiter/in bestätigt mit seinem/ihrem nachfolgenden Kürzel,",null,1]
["dass alle oben genannten Prüfungen vollständig und korrekt durchgeführt worden sind.",null,2]
[null,null,3]
[null,null,4]
[null,null,5]
[null,null,6]
[null,null,7]
[null,null,8]
[null,null,9]
[null,null,10]
[null,null,11]
[null,null,12]
[]
["7. Buchungssätze:","4er Klasse / 974 (Zuführung Rückstellung)"]
[null,"974 / 2735 (Auflösung Rückstellung)"]
[]
["Umsatz","Sollkonto / Habenkonto","Datum","Buchungstext"]
[null,null,"31.01."]
[null,null,"28.02."]
[null,null,"31.03."]
[null,null,"30.04."]
[null,null,"31.05."]
[null,null,"30.06."]
[null,null,"31.07."]
[null,null,"31.08."]
[null,null,"30.09."]
[null,null,"31.10."]
[null,null,"30.11."]
[null,null,"31.12."]

{"sheet":"0974 RS Gewährl.","index":9,"n_rows":53,"n_cols":11,"rows_kept":53,"cut":false,"hidden":true,"merged":[]}
["Jahr:"]
["Mandantennummer:"]
["Mandantenname:"]
[]
["1. Konto/Kontenbereich: ",974]
["2. Thema: ","Rückstellungen für Gewährleistungen"]
["3. Prüfungsziel: ","Rückstellung wird mtl. i.H.v. 0,5% des Umsatzes gebucht."]
["4. Folgende Belege müssen vorliegen:","keine",null,null,null,null,"Bitte diese Berechnungsliste verwenden!"]
["5. Erläuterungen/Berechnungen/Infos:","Einmal pro Jahr wird der Saldo laut Gesamtjahresumsatz abgestimmt. "]
[null,"Unterjährig wird die Rückstellung laut Monatsumsatz gebucht.",null,null,null,null,null,"Umsatz","Gewährlstg. 0,5 %","Gewährlstg. Vormonat","Zuführg./Auflösg."]
["Saldo:",null,"31.01.",{"$f":"I11","v":50},null,null,"Januar",10000,{"$f":"H11*0.5%","v":50},10,{"$f":"I11-J11","v":40}]
[{"$f":"A11","v":"Saldo:"},null,"28.02.",125,null,null,"Februar",25000,{"$f":"H12*0.5%","v":125},{"$f":"I11","v":50},{"$f":"I12-J12","v":75}]
["Saldo:",null,"31.03.",0,null,null,"März",null,{"$f":"H13*0.5%","v":0},{"$f":"I12","v":125},-125]
["Saldo:",null,"30.04.",0,null,null,"April",null,{"$f":"H14*0.5%","v":0},0,0]
["Saldo:",null,"31.05.",0,null,null,"Mai",null,{"$f":"H15*0.5%","v":0},0,0]
["Saldo:",null,"30.06.",0,null,null,"Juni",null,0,0,0]
["Saldo:",null,"31.07.",0,null,null,"Juli",null,0,0,0]
["Saldo:",null,"31.08.",0,null,null,"August",null,0,0,0]
["Saldo:",null,"30.09.",0,null,null,"September",null,0,0,0]
["Saldo:",null,"31.10.",0,null,null,"Oktober",null,0,0,0]
["Saldo:",null,"30.11.",0,null,null,"November",null,0,0,0]
["Saldo:",null,"31.12.",0,null,null,"Dezember",null,0,0,0]
[]
["6. Prüfungsvermerk der/des ausführenden Mitarbeiter/in:",null,"Monat:","Kürzel Mitarb."]
["Der/die Mitarbeiter/in bestätigt mit seinem/ihrem nachfolgenden Kürzel,",null,1]
["dass alle oben genannten Prüfungen vollständig und korrekt durchgeführt worden sind.",null,2,null,null,null,null,null,null,null,"zurück zum Ablauf"]
[null,null,3]
[null,null,4]
[null,null,5]
[null,null,6]
[null,null,7]
[null,null,8]
[null,null,9]
[null,null,10]
[null,null,11]
[null,null,12]
[]
["7. Buchungssätze:","4790 / 974 (Zuführung Rückstellung)"]
[null,"974 / 4790 (Auflösung Rückstellung)"]
[]
["Umsatz","Sollkonto / Habenkonto","Datum","Buchungstext"]
[null,null,"31.01."]
[null,null,"28.02."]
[null,null,"31.03."]
[null,null,"30.04."]
[null,null,"31.05."]
[null,null,"30.06."]
[null,null,"31.07."]
[null,null,"31.08."]
[null,null,"30.09."]
[null,null,"31.10."]
[null,null,"30.11."]
[null,null,"31.12."]

{"sheet":"0977 RS Stb.","index":10,"n_rows":54,"n_cols":4,"rows_kept":54,"cut":false,"hidden":true,"merged":[]}
["Jahr:"]
["Mandantennummer:"]
["Mandantenname:"]
[]
["1. Konto/Kontenbereich: ",974]
["2. Thema: ","Rückstellungen für Jahresabschluss des Steuerberaters"]
["3. Prüfungsziel: ","Die Belege über Rückstellungen müssen mit der Fibu übereinstimmen."]
["4. Folgende Belege müssen vorliegen:","Stb-Rg. über Abschluss aus Vorjahr etc."]
["5. Erläuterungen/Berechnungen/Infos:","Einmal pro Jahr wird der Saldo laut Belegen abgestimmt. "]
[null,"Unterjährig wird die Rückstellung laut Vorjahr mit 1/12 Anteil gebucht."]
[null,"Wenn ER-Pauschale läuft, dann gibt es diese Rückstellung nicht mehr."]
["Saldo laut Schätzung:",null,"31.01.",0]
[{"$f":"A12","v":"Saldo laut Schätzung:"},null,"28.02.",0]
["Saldo laut Schätzung:",null,"31.03.",0]
["Saldo laut Schätzung:",null,"30.04.",0]
["Saldo laut Schätzung:",null,"31.05.",0]
["Saldo laut Schätzung:",null,"30.06.",0]
["Saldo laut Schätzung:",null,"31.07.",0]
["Saldo laut Schätzung:",null,"31.08.",0]
["Saldo laut Schätzung:",null,"30.09.",0]
["Saldo laut Schätzung:",null,"31.10.",0]
["Saldo laut Schätzung:",null,"30.11.",0]
["Saldo laut Schätzung:",null,"31.12.",0]
[]
["6. Prüfungsvermerk der/des ausführenden Mitarbeiter/in:",null,"Monat:","Kürzel Mitarb."]
["Der/die Mitarbeiter/in bestätigt mit seinem/ihrem nachfolgenden Kürzel,",null,1]
["dass alle oben genannten Prüfungen vollständig und korrekt durchgeführt worden sind.",null,2]
[null,null,3]
[null,null,4]
[null,null,5]
[null,null,6]
[null,null,7]
[null,null,8]
[null,null,9]
[null,null,10]
[null,null,11]
[null,null,12]
[]
["7. Buchungssätze:","4957 / 977 (Zuführung Rückstellung)"]
[null,"977 / 4957 (Auflösung Rückstellung)"]
[]
["Umsatz","Sollkonto / Habenkonto","Datum","Buchungstext"]
[null,null,"31.01."]
[null,null,"28.02."]
[null,null,"31.03."]
[null,null,"30.04."]
[null,null,"31.05."]
[null,null,"30.06."]
[null,null,"31.07."]
[null,null,"31.08."]
[null,null,"30.09."]
[null,null,"31.10."]
[null,null,"30.11."]
[null,null,"31.12."]

{"sheet":"600-799","index":11,"n_rows":64,"n_cols":4,"rows_kept":64,"cut":false,"hidden":false,"merged":[]}
["Jahr:",{"$f":"Stammblatt!$C$4","v":0}]
["Mandantennummer:",{"$f":"Stammblatt!$C$5","v":0}]
["Mandantenname:",{"$f":"Stammblatt!$C$6","v":0}]
[]
["1. Konto/Kontenbereich: ","600-799"]
["2. Thema: ","Verbindlichkeiten"]
["3. Prüfungsziel: ","Die Belege über Verbindlichkeiten müssen mit der Fibu übereinstimmen."]
["4. Folgende Belege müssen vorliegen:","Darlehensauszüge von Banken etc."]
[null,"Zins- und Tilgungspläne von Banken etc."]
[null,"Darlehensberechnungen durch uns (Programm Wirtschaftsberatung)"]
["5. Erläuterungen/Berechnungen/Infos:","keine"]
["Saldo laut Belegen:",null,"31.01.",0]
["Saldo laut Rewe:",null,{"$f":"C12","v":"31.01."},0]
[{"$f":"A12","v":"Saldo laut Belegen:"},null,"28.02.",0]
[{"$f":"A13","v":"Saldo laut Rewe:"},null,{"$f":"C14","v":"28.02."},0]
[{"$f":"A14","v":"Saldo laut Belegen:"},null,"31.03.",0]
["Saldo laut Rewe:",null,{"$f":"C16","v":"31.03."},0]
["Saldo laut Belegen:",null,"30.04.",0]
["Saldo laut Rewe:",null,{"$f":"C18","v":"30.04."},0]
["Saldo laut Belegen:",null,"31.05.",0]
["Saldo laut Rewe:",null,{"$f":"C20","v":"31.05."},0]
["Saldo laut Belegen:",null,"30.06.",0]
["Saldo laut Rewe:",null,{"$f":"C22","v":"30.06."},0]
["Saldo laut Belegen:",null,"31.07.",0]
["Saldo laut Rewe:",null,{"$f":"C24","v":"31.07."},0]
["Saldo laut Belegen:",null,"31.08.",0]
["Saldo laut Rewe:",null,{"$f":"C26","v":"31.08."},0]
["Saldo laut Belegen:",null,"30.09.",0]
["Saldo laut Rewe:",null,{"$f":"C28","v":"30.09."},0]
["Saldo laut Belegen:",null,"31.10.",0]
["Saldo laut Rewe:",null,{"$f":"C30","v":"31.10."},0]
["Saldo laut Belegen:",null,"30.11.",0]
["Saldo laut Rewe:",null,{"$f":"C32","v":"30.11."},0]
["Saldo laut Belegen:",null,"31.12.",0]
["Saldo laut Rewe:",null,{"$f":"C34","v":"31.12."},0]
[]
["6. Prüfungsvermerk der/des ausführenden Mitarbeiter/in:",null,"Monat:","Kürzel Mitarb."]
["Der/die Mitarbeiter/in bestätigt mit seinem/ihrem nachfolgenden Kürzel,",null,1]
["dass alle oben genannten Prüfungen vollständig und korrekt durchgeführt worden sind.",null,2]
[null,null,3]
[null,null,4]
[null,null,5]
[null,null,6]
[null,null,7]
[null,null,8]
[null,null,9]
[null,null,10]
[null,null,11]
[null,null,12]
[]
["7. Buchungssätze:"]
["Umsatz","Sollkonto / Habenkonto","Datum","Buchungstext"]
[null,null,"31.01."]
[null,null,"28.02."]
[null,null,"31.03."]
[null,null,"30.04."]
[null,null,"31.05."]
[null,null,"30.06."]
[null,null,"31.07."]
[null,null,"31.08."]
[null,null,"30.09."]
[null,null,"31.10."]
[null,null,"30.11."]
[null,null,"31.12."]

{"sheet":"0980-0986","index":12,"n_rows":80,"n_cols":116,"rows_kept":80,"cut":false,"hidden":false,"merged":[[14,7,14,8],[3,7,3,10],[3,11,3,14],[3,16,3,22],[6,7,7,8],[6,9,7,9],[6,10,7,10],[6,11,6,12],[6,13,7,13],[6,14,7,14],[9,7,9,8],[10,7,10,8],[11,7,11,8],[12,7,12,8],[13,7,13,8],[26,7,26,8],[15,7,15,8],[16,7,16,8],[17,7,17,8],[18,7,18,8],[19,7,19,8],[20,7,20,8],[21,7,21,8],[22,7,22,8],[23,7,23,8],[24,7,24,8],[25,7,25,8],[38,7,38,8],[27,7,27,8],[28,7,28,8],[29,7,29,8],[30,7,30,8],[31,7,31,8],[32,7,32,8],[33,7,33,8],[34,7,34,8],[35,7,35,8],[36,7,36,8],[37,7,37,8],[41,7,41,22],[42,7,42,22],[43,7,43,22],[44,7,44,22],[45,7,45,22]]}
["Jahr:",{"$f":"Stammblatt!$C$4","v":0}]
["Mandantennummer:",{"$f":"Stammblatt!$C$5","v":0},null,null,null,null,null,"Hilfe"]
["Mandantenname:",{"$f":"Stammblatt!$C$6","v":0},null,null,null,null,null,{"$f":"CONCATENATE([2]Programmeinstellungen!G19,\" \",YEAR(WJEnde))","v":{"$error":"#NAME?"}}]
[null,null,null,null,null,null,null,{"$f":"Mandant","v":{"$error":"#NAME?"}},null,null,null,{"$f":"[2]Programmeinstellungen!B42","v":"Aktive Rechnungsabgrenzung"}]
["1. Konto/Kontenbereich: ","980-986"]
["2. Thema: ","ARAP + Disagio",null,null,null,null,null,"Einzelerfassung der aktiven Rechnungsabgrenzungsposten "]
["3. Prüfungsziel: ","ARAP + Disagio müssen korrekt über die gesamte Laufzeit gebucht werden.",null,null,null,null,null,"Bezeichnung",null,"Aufwands-\nKonto","RAP-\nKonto","Zeitraum",null,"Gesamt-\nbetrag in €","Abgrenzungs-\nbetrag in €"]
[null,"wenn die Kosten über 410 EUR liegen, ansonsten wird nicht über ARAP abgegrenzt.",null,null,null,null,null,null,null,null,null,"Beginn","Ende"]
["4. Folgende Belege müssen vorliegen:","ursprünglicher Vertrag im 1. Jahr"]
["5. Erläuterungen/Berechnungen/Infos:","Die Berechnung muss von Beginn bis Ende der Vertragslaufzeit",null,null,null,null,null,"KFZ-Versicherung",null,4520,980,"01.05.","31.04.",1500,{"$f":"IF(DK10=\"\",\"\",(ROUNDUP(DK10,2)))","v":1500},null,null,null,null,null,null,null,null,null,null,null,null,null,null,null,null,null,null,null,null,null,null,null,null,null,null,null,null,null,null,null,null,null,null,null,null,null,null,null,null,null,null,null,null,null,null,null,null,null,null,null,null,null,null,null,null,null,null,null,null,null,null,null,null,null,null,null,null,null,null,null,null,null,null,null,null,null,null,null,null,null,null,null,null,null,null,null,null,null,null,null,null,null,null,null,null,null,null,null,1500]
[null,"nachvollziehbar berechnet und gebucht werden.",null,null,null,null,null,null,null,null,null,null,null,null,0,null,null,null,null,null,null,null,null,null,null,null,null,null,null,null,null,null,null,null,null,null,null,null,null,null,null,null,null,null,null,null,null,null,null,null,null,null,null,null,null,null,null,null,null,null,null,null,null,null,null,null,null,null,null,null,null,null,null,null,null,null,null,null,null,null,null,null,null,null,null,null,null,null,null,null,null,null,null,null,null,null,null,null,null,null,null,null,null,null,null,null,null,null,null,null,null,null,null,null,0]
["Saldo:",null,"31.01.",0,null,null,null,null,null,null,null,null,null,null,0,null,null,null,null,null,null,null,null,null,null,null,null,null,null,null,null,null,null,null,null,null,null,null,null,null,null,null,null,null,null,null,null,null,null,null,null,null,null,null,null,null,null,null,null,null,null,null,null,null,null,null,null,null,null,null,null,null,null,null,null,null,null,null,null,null,null,null,null,null,null,null,null,null,null,null,null,null,null,null,null,null,null,null,null,null,null,null,null,null,null,null,null,null,null,null,null,null,null,null,0]
[{"$f":"A12","v":"Saldo:"},null,"28.02.",0,null,null,null,null,null,null,null,null,null,null,0,null,null,null,null,null,null,null,null,null,null,null,null,null,null,null,null,null,null,null,null,null,null,null,null,null,null,null,null,null,null,null,null,null,null,null,null,null,null,null,null,null,null,null,null,null,null,null,null,null,null,null,null,null,null,null,null,null,null,null,null,null,null,null,null,null,null,null,null,null,null,null,null,null,null,null,null,null,null,null,null,null,null,null,null,null,null,null,null,null,null,null,null,null,null,null,null,null,null,null,0]
["Saldo:",null,"31.03.",0,null,null,null,null,null,null,null,null,null,null,0,null,null,null,null,null,null,null,null,null,null,null,null,null,null,null,null,null,null,null,null,null,null,null,null,null,null,null,null,null,null,null,null,null,null,null,null,null,null,null,null,null,null,null,null,null,null,null,null,null,null,null,null,null,null,null,null,null,null,null,null,null,null,null,null,null,null,null,null,null,null,null,null,null,null,null,null,null,null,null,null,null,null,null,null,null,null,null,null,null,null,null,null,null,null,null,null,null,null,null,0]
["Saldo:",null,"30.04.",0,null,null,null,null,null,null,null,null,null,null,0,null,null,null,null,null,null,null,null,null,null,null,null,null,null,null,null,null,null,null,null,null,null,null,null,null,null,null,null,null,null,null,null,null,null,null,null,null,null,null,null,null,null,null,null,null,null,null,null,null,null,null,null,null,null,null,null,null,null,null,null,null,null,null,null,null,null,null,null,null,null,null,null,null,null,null,null,null,null,null,null,null,null,null,null,null,null,null,null,null,null,null,null,null,null,null,null,null,null,null,0]
["Saldo:",null,"31.05.",0,null,null,null,null,null,null,null,null,null,null,0,null,null,null,null,null,null,null,null,null,null,null,null,null,null,null,null,null,null,null,null,null,null,null,null,null,null,null,null,null,null,null,null,null,null,null,null,null,null,null,null,null,null,null,null,null,null,null,null,null,null,null,null,null,null,null,null,null,null,null,null,null,null,null,null,null,null,null,null,null,null,null,null,null,null,null,null,null,null,null,null,null,null,null,null,null,null,null,null,null,null,null,null,null,null,null,null,null,null,null,0]
["Saldo:",null,"30.06.",0,null,null,null,null,null,null,null,null,null,null,0,null,null,null,null,null,null,null,null,null,null,null,null,null,null,null,null,null,null,null,null,null,null,null,null,null,null,null,null,null,null,null,null,null,null,null,null,null,null,null,null,null,null,null,null,null,null,null,null,null,null,null,null,null,null,null,null,null,null,null,null,null,null,null,null,null,null,null,null,null,null,null,null,null,null,null,null,null,null,null,null,null,null,null,null,null,null,null,null,null,null,null,null,null,null,null,null,null,null,null,0]
["Saldo:",null,"31.07.",0,null,null,null,null,null,null,null,null,null,null,0,null,null,null,null,null,null,null,null,null,null,null,null,null,null,null,null,null,null,null,null,null,null,null,null,null,null,null,null,null,null,null,null,null,null,null,null,null,null,null,null,null,null,null,null,null,null,null,null,null,null,null,null,null,null,null,null,null,null,null,null,null,null,null,null,null,null,null,null,null,null,null,null,null,null,null,null,null,null,null,null,null,null,null,null,null,null,null,null,null,null,null,null,null,null,null,null,null,null,null,0]
["Saldo:",null,"31.08.",0,null,null,null,null,null,null,null,null,null,null,0,null,null,null,null,null,null,null,null,null,null,null,null,null,null,null,null,null,null,null,null,null,null,null,null,null,null,null,null,null,null,null,null,null,null,null,null,null,null,null,null,null,null,null,null,null,null,null,null,null,null,null,null,null,null,null,null,null,null,null,null,null,null,null,null,null,null,null,null,null,null,null,null,null,null,null,null,null,null,null,null,null,null,null,null,null,null,null,null,null,null,null,null,null,null,null,null,null,null,null,0]
["Saldo:",null,"30.09.",0,null,null,null,null,null,null,null,null,null,null,0,null,null,null,null,null,null,null,null,null,null,null,null,null,null,null,null,null,null,null,null,null,null,null,null,null,null,null,null,null,null,null,null,null,null,null,null,null,null,null,null,null,null,null,null,null,null,null,null,null,null,null,null,null,null,null,null,null,null,null,null,null,null,null,null,null,null,null,null,null,null,null,null,null,null,null,null,null,null,null,null,null,null,null,null,null,null,null,null,null,null,null,null,null,null,null,null,null,null,null,0]
["Saldo:",null,"31.10.",0,null,null,null,null,null,null,null,null,null,null,0,null,null,null,null,null,null,null,null,null,null,null,null,null,null,null,null,null,null,null,null,null,null,null,null,null,null,null,null,null,null,null,null,null,null,null,null,null,null,null,null,null,null,null,null,null,null,null,null,null,null,null,null,null,null,null,null,null,null,null,null,null,null,null,null,null,null,null,null,null,null,null,null,null,null,null,null,null,null,null,null,null,null,null,null,null,null,null,null,null,null,null,null,null,null,null,null,null,null,null,0]
["Saldo:",null,"30.11.",0,null,null,null,null,null,null,null,null,null,null,0,null,null,null,null,null,null,null,null,null,null,null,null,null,null,null,null,null,null,null,null,null,null,null,null,null,null,null,null,null,null,null,null,null,null,null,null,null,null,null,null,null,null,null,null,null,null,null,null,null,null,null,null,null,null,null,null,null,null,null,null,null,null,null,null,null,null,null,null,null,null,null,null,null,null,null,null,null,null,null,null,null,null,null,null,null,null,null,null,null,null,null,null,null,null,null,null,null,null,null,0]
["Saldo:",null,"31.12.",0,null,null,null,null,null,null,null,null,null,null,0,null,null,null,null,null,null,null,null,null,null,null,null,null,null,null,null,null,null,null,null,null,null,null,null,null,null,null,null,null,null,null,null,null,null,null,null,null,null,null,null,null,null,null,null,null,null,null,null,null,null,null,null,null,null,null,null,null,null,null,null,null,null,null,null,null,null,null,null,null,null,null,null,null,null,null,null,null,null,null,null,null,null,null,null,null,null,null,null,null,null,null,null,null,null,null,null,null,null,null,0]
[null,null,null,null,null,null,null,null,null,null,null,null,null,null,0,null,null,null,null,null,null,null,null,null,null,null,null,null,null,null,null,null,null,null,null,null,null,null,null,null,null,null,null,null,null,null,null,null,null,null,null,null,null,null,null,null,null,null,null,null,null,null,null,null,null,null,null,null,null,null,null,null,null,null,null,null,null,null,null,null,null,null,null,null,null,null,null,null,null,null,null,null,null,null,null,null,null,null,null,null,null,null,null,null,null,null,null,null,null,null,null,null,null,null,0]
["6. Prüfungsvermerk der/des ausführenden Mitarbeiter/in:",null,"Monat:","Kürzel Mitarb.",null,null,null,null,null,null,null,null,null,null,0,null,null,null,null,null,null,null,null,null,null,null,null,null,null,null,null,null,null,null,null,null,null,null,null,null,null,null,null,null,null,null,null,null,null,null,null,null,null,null,null,null,null,null,null,null,null,null,null,null,null,null,null,null,null,null,null,null,null,null,null,null,null,null,null,null,null,null,null,null,null,null,null,null,null,null,null,null,null,null,null,null,null,null,null,null,null,null,null,null,null,null,null,null,null,null,null,null,null,null,0]
["Der/die Mitarbeiter/in bestätigt mit seinem/ihrem nachfolgenden Kürzel,",null,1,null,null,null,null,null,null,null,null,null,null,null,0,null,null,null,null,null,null,null,null,null,null,null,null,null,null,null,null,null,null,null,null,null,null,null,null,null,null,null,null,null,null,null,null,null,null,null,null,null,null,null,null,null,null,null,null,null,null,null,null,null,null,null,null,null,null,null,null,null,null,null,null,null,null,null,null,null,null,null,null,null,null,null,null,null,null,null,null,null,null,null,null,null,null,null,null,null,null,null,null,null,null,null,null,null,null,null,null,null,null,null,0]
["dass alle oben genannten Prüfungen vollständig und korrekt durchgeführt worden sind.",null,2,null,null,null,null,null,null,null,null,null,null,null,0,null,null,null,null,null,null,null,null,null,null,null,null,null,null,null,null,null,null,null,null,null,null,null,null,null,null,null,null,null,null,null,null,null,null,null,null,null,null,null,null,null,null,null,null,null,null,null,null,null,null,null,null,null,null,null,null,null,null,null,null,null,null,null,null,null,null,null,null,null,null,null,null,null,null,null,null,null,null,null,null,null,null,null,null,null,null,null,null,null,null,null,null,null,null,null,null,null,null,null,0]
[null,null,3,null,null,null,null,null,null,null,null,null,null,null,0,null,null,null,null,null,null,null,null,null,null,null,null,null,null,null,null,null,null,null,null,null,null,null,null,null,null,null,null,null,null,null,null,null,null,null,null,null,null,null,null,null,null,null,null,null,null,null,null,null,null,null,null,null,null,null,null,null,null,null,null,null,null,null,null,null,null,null,null,null,null,null,null,null,null,null,null,null,null,null,null,null,null,null,null,null,null,null,null,null,null,null,null,null,null,null,null,null,null,null,0]
[null,null,4,null,null,null,null,null,null,null,null,null,null,null,0,null,null,null,null,null,null,null,null,null,null,null,null,null,null,null,null,null,null,null,null,null,null,null,null,null,null,null,null,null,null,null,null,null,null,null,null,null,null,null,null,null,null,null,null,null,null,null,null,null,null,null,null,null,null,null,null,null,null,null,null,null,null,null,null,null,null,null,null,null,null,null,null,null,null,null,null,null,null,null,null,null,null,null,null,null,null,null,null,null,null,null,null,null,null,null,null,null,null,null,0]
[null,null,5,null,null,null,null,null,null,null,null,null,null,null,0,null,null,null,null,null,null,null,null,null,null,null,null,null,null,null,null,null,null,null,null,null,null,null,null,null,null,null,null,null,null,null,null,null,null,null,null,null,null,null,null,null,null,null,null,null,null,null,null,null,null,null,null,null,null,null,null,null,null,null,null,null,null,null,null,null,null,null,null,null,null,null,null,null,null,null,null,null,null,null,null,null,null,null,null,null,null,null,null,null,null,null,null,null,null,null,null,null,null,null,0]
[null,null,6,null,null,null,null,null,null,null,null,null,null,null,0,null,null,null,null,null,null,null,null,null,null,null,null,null,null,null,null,null,null,null,null,null,null,null,null,null,null,null,null,null,null,null,null,null,null,null,null,null,null,null,null,null,null,null,null,null,null,null,null,null,null,null,null,null,null,null,null,null,null,null,null,null,null,null,null,null,null,null,null,null,null,null,null,null,null,null,null,null,null,null,null,null,null,null,null,null,null,null,null,null,null,null,null,null,null,null,null,null,null,null,0]
[null,null,7,null,null,null,null,null,null,null,null,null,null,null,0,null,null,null,null,null,null,null,null,null,null,null,null,null,null,null,null,null,null,null,null,null,null,null,null,null,null,null,null,null,null,null,null,null,null,null,null,null,null,null,null,null,null,null,null,null,null,null,null,null,null,null,null,null,null,null,null,null,null,null,null,null,null,null,null,null,null,null,null,null,null,null,null,null,null,null,null,null,null,null,null,null,null,null,null,null,null,null,null,null,null,null,null,null,null,null,null,null,null,null,0]
[null,null,8,null,null,null,null,null,null,null,null,null,null,null,0,null,null,null,null,null,null,null,null,null,null,null,null,null,null,null,null,null,null,null,null,null,null,null,null,null,null,null,null,null,null,null,null,null,null,null,null,null,null,null,null,null,null,null,null,null,null,null,null,null,null,null,null,null,null,null,null,null,null,null,null,null,null,null,null,null,null,null,null,null,null,null,null,null,null,null,null,null,null,null,null,null,null,null,null,null,null,null,null,null,null,null,null,null,null,null,null,null,null,null,0]
[null,null,9,null,null,null,null,null,null,null,null,null,null,null,0,null,null,null,null,null,null,null,null,null,null,null,null,null,null,null,null,null,null,null,null,null,null,null,null,null,null,null,null,null,null,null,null,null,null,null,null,null,null,null,null,null,null,null,null,null,null,null,null,null,null,null,null,null,null,null,null,null,null,null,null,null,null,null,null,null,null,null,null,null,null,null,null,null,null,null,null,null,null,null,null,null,null,null,null,null,null,null,null,null,null,null,null,null,null,null,null,null,null,null,0]
[null,null,10,null,null,null,null,null,null,null,null,null,null,null,0,null,null,null,null,null,null,null,null,null,null,null,null,null,null,null,null,null,null,null,null,null,null,null,null,null,null,null,null,null,null,null,null,null,null,null,null,null,null,null,null,null,null,null,null,null,null,null,null,null,null,null,null,null,null,null,null,null,null,null,null,null,null,null,null,null,null,null,null,null,null,null,null,null,null,null,null,null,null,null,null,null,null,null,null,null,null,null,null,null,null,null,null,null,null,null,null,null,null,null,0]
[null,null,11,null,null,null,null,null,null,null,null,null,null,null,0,null,null,null,null,null,null,null,null,null,null,null,null,null,null,null,null,null,null,null,null,null,null,null,null,null,null,null,null,null,null,null,null,null,null,null,null,null,null,null,null,null,null,null,null,null,null,null,null,null,null,null,null,null,null,null,null,null,null,null,null,null,null,null,null,null,null,null,null,null,null,null,null,null,null,null,null,null,null,null,null,null,null,null,null,null,null,null,null,null,null,null,null,null,null,null,null,null,null,null,0]
[null,null,12,null,null,null,null,null,null,null,null,null,null,null,0,null,null,null,null,null,null,null,null,null,null,null,null,null,null,null,null,null,null,null,null,null,null,null,null,null,null,null,null,null,null,null,null,null,null,null,null,null,null,null,null,null,null,null,null,null,null,null,null,null,null,null,null,null,null,null,null,null,null,null,null,null,null,null,null,null,null,null,null,null,null,null,null,null,null,null,null,null,null,null,null,null,null,null,null,null,null,null,null,null,null,null,null,null,null,null,null,null,null,null,0]
[null,null,null,null,null,null,null,null,null,null,null,null,null,null,0,null,null,null,null,null,null,null,null,null,null,null,null,null,null,null,null,null,null,null,null,null,null,null,null,null,null,null,null,null,null,null,null,null,null,null,null,null,null,null,null,null,null,null,null,null,null,null,null,null,null,null,null,null,null,null,null,null,null,null,null,null,null,null,null,null,null,null,null,null,null,null,null,null,null,null,null,null,null,null,null,null,null,null,null,null,null,null,null,null,null,null,null,null,null,null,null,null,null,null,0]
["7. Buchungssätze:",null,null,null,null,null,null,null,null,null,null,null,null,null,0,null,null,null,null,null,null,null,null,null,null,null,null,null,null,null,null,null,null,null,null,null,null,null,null,null,null,null,null,null,null,null,null,null,null,null,null,null,null,null,null,null,null,null,null,null,null,null,null,null,null,null,null,null,null,null,null,null,null,null,null,null,null,null,null,null,null,null,null,null,null,null,null,null,null,null,null,null,null,null,null,null,null,null,null,null,null,null,null,null,null,null,null,null,null,null,null,null,null,null,0]
["Umsatz","Sollkonto / Habenkonto","Datum","Buchungstext"]
[null,null,"31.01.",null,null,null,null,"Hinweise:"]
[null,null,"28.02."]
[null,null,"31.03."]
[null,null,"30.04."]
[null,null,"31.05."]
[null,null,"30.06."]
[null,null,"31.07."]
[null,null,"31.08.",null,null,null,null,null,null,null,null,"Aufwandskonten",null,null,"RAP-Konten"]
[null,null,"30.09."]
[null,null,"31.10.",null,null,null,null,null,null,null,null,"Konto","Ergebnis",null,"Konto","Ergebnis",null,null,null,null,null,null,null,null,null,null,null,null,null,null,null,null,null,null,null,null,null,null,null,null,null,null,null,null,null,null,null,null,null,null,null,null,null,null,null,null,null,null,null,null,null,null,null,null,null,null,null,null,null,null,null,null,null,null,null,null,null,null,null,null,null,null,null,null,null,null,null,null,null,null,null,null,null,null,null,null,null,null,null,null,null,null,null,null,null,null,null,null,null,null,null,null,null,null,{"$f":"[2]Berechnungen!Q2","v":1},{"$f":"[2]Berechnungen!Q3","v":1}]
[null,null,"30.11.",null,null,null,null,null,null,null,null,{"$f":"MIN([2]Berechnungen!M2:M32)","v":4520},{"$f":"IF(L51=\"\",\"\",SUMIF([2]Berechnungen!M2:M32,L51,[2]Berechnungen!N2:N32))","v":{"$error":"#VALUE!"}},null,{"$f":"MIN([2]Berechnungen!O2:O32)","v":980},{"$f":"IF(O51=\"\",\"\",SUMIF([2]Berechnungen!O2:O32,O51,[2]Berechnungen!P2:P32))","v":{"$error":"#VALUE!"}}]
[null,null,"31.12.",null,null,null,null,null,null,null,null,{"$f":"IF(MAX([2]Berechnungen!M$2:M$32)=MAX('[2]Aktive-RAP'!E$51:E51),\"\",LARGE([2]Berechnungen!M$2:M$32,COUNTIF([2]Berechnungen!M$2:M$32,\">\"&L51)))","v":""},{"$f":"IF(L52=\"\",\"\",SUMIF([2]Berechnungen!M$2:M$32,L52,[2]Berechnungen!N$2:N$32))","v":""},null,{"$f":"IF(MAX([2]Berechnungen!O$2:O$32)=MAX('[2]Aktive-RAP'!H$51:H51),\"\",LARGE([2]Berechnungen!O$2:O$32,COUNTIF([2]Berechnungen!O$2:O$32,\">\"&O51)))","v":""},{"$f":"IF(O52=\"\",\"\",SUMIF([2]Berechnungen!O$2:O$32,O52,[2]Berechnungen!P$2:P$32))","v":""}]
[null,null,null,null,null,null,null,null,null,null,null,{"$f":"IF(MAX([2]Berechnungen!M$2:M$32)=MAX('[2]Aktive-RAP'!E$51:E52),\"\",LARGE([2]Berechnungen!M$2:M$32,COUNTIF([2]Berechnungen!M$2:M$32,\">\"&L52)))","v":""},{"$f":"IF(L53=\"\",\"\",SUMIF([2]Berechnungen!M$2:M$32,L53,[2]Berechnungen!N$2:N$32))","v":""},null,{"$f":"IF(MAX([2]Berechnungen!O$2:O$32)=MAX('[2]Aktive-RAP'!H$51:H52),\"\",LARGE([2]Berechnungen!O$2:O$32,COUNTIF([2]Berechnungen!O$2:O$32,\">\"&O52)))","v":""},{"$f":"IF(O53=\"\",\"\",SUMIF([2]Berechnungen!O$2:O$32,O53,[2]Berechnungen!P$2:P$32))","v":""}]
[null,null,null,null,null,null,null,null,null,null,null,{"$f":"IF(MAX([2]Berechnungen!M$2:M$32)=MAX('[2]Aktive-RAP'!E$51:E53),\"\",LARGE([2]Berechnungen!M$2:M$32,COUNTIF([2]Berechnungen!M$2:M$32,\">\"&L53)))","v":""},{"$f":"IF(L54=\"\",\"\",SUMIF([2]Berechnungen!M$2:M$32,L54,[2]Berechnungen!N$2:N$32))","v":""},null,{"$f":"IF(MAX([2]Berechnungen!O$2:O$32)=MAX('[2]Aktive-RAP'!H$51:H53),\"\",LARGE([2]Berechnungen!O$2:O$32,COUNTIF([2]Berechnungen!O$2:O$32,\">\"&O53)))","v":""},{"$f":"IF(O54=\"\",\"\",SUMIF([2]Berechnungen!O$2:O$32,O54,[2]Berechnungen!P$2:P$32))","v":""}]
[null,null,null,null,null,null,null,null,null,null,null,{"$f":"IF(MAX([2]Berechnungen!M$2:M$32)=MAX('[2]Aktive-RAP'!E$51:E54),\"\",LARGE([2]Berechnungen!M$2:M$32,COUNTIF([2]Berechnungen!M$2:M$32,\">\"&L54)))","v":""},{"$f":"IF(L55=\"\",\"\",SUMIF([2]Berechnungen!M$2:M$32,L55,[2]Berechnungen!N$2:N$32))","v":""},null,{"$f":"IF(MAX([2]Berechnungen!O$2:O$32)=MAX('[2]Aktive-RAP'!H$51:H54),\"\",LARGE([2]Berechnungen!O$2:O$32,COUNTIF([2]Berechnungen!O$2:O$32,\">\"&O54)))","v":""},{"$f":"IF(O55=\"\",\"\",SUMIF([2]Berechnungen!O$2:O$32,O55,[2]Berechnungen!P$2:P$32))","v":""}]
[null,null,null,null,null,null,null,null,null,null,null,{"$f":"IF(MAX([2]Berechnungen!M$2:M$32)=MAX('[2]Aktive-RAP'!E$51:E55),\"\",LARGE([2]Berechnungen!M$2:M$32,COUNTIF([2]Berechnungen!M$2:M$32,\">\"&L55)))","v":""},{"$f":"IF(L56=\"\",\"\",SUMIF([2]Berechnungen!M$2:M$32,L56,[2]Berechnungen!N$2:N$32))","v":""},null,{"$f":"IF(MAX([2]Berechnungen!O$2:O$32)=MAX('[2]Aktive-RAP'!H$51:H55),\"\",LARGE([2]Berechnungen!O$2:O$32,COUNTIF([2]Berechnungen!O$2:O$32,\">\"&O55)))","v":""},{"$f":"IF(O56=\"\",\"\",SUMIF([2]Berechnungen!O$2:O$32,O56,[2]Berechnungen!P$2:P$32))","v":""}]
[null,null,null,null,null,null,null,null,null,null,null,{"$f":"IF(MAX([2]Berechnungen!M$2:M$32)=MAX('[2]Aktive-RAP'!E$51:E56),\"\",LARGE([2]Berechnungen!M$2:M$32,COUNTIF([2]Berechnungen!M$2:M$32,\">\"&L56)))","v":""},{"$f":"IF(L57=\"\",\"\",SUMIF([2]Berechnungen!M$2:M$32,L57,[2]Berechnungen!N$2:N$32))","v":""},null,{"$f":"IF(MAX([2]Berechnungen!O$2:O$32)=MAX('[2]Aktive-RAP'!H$51:H56),\"\",LARGE([2]Berechnungen!O$2:O$32,COUNTIF([2]Berechnungen!O$2:O$32,\">\"&O56)))","v":""},{"$f":"IF(O57=\"\",\"\",SUMIF([2]Berechnungen!O$2:O$32,O57,[2]Berechnungen!P$2:P$32))","v":""}]
[null,null,null,null,null,null,null,null,null,null,null,{"$f":"IF(MAX([2]Berechnungen!M$2:M$32)=MAX('[2]Aktive-RAP'!E$51:E57),\"\",LARGE([2]Berechnungen!M$2:M$32,COUNTIF([2]Berechnungen!M$2:M$32,\">\"&L57)))","v":""},{"$f":"IF(L58=\"\",\"\",SUMIF([2]Berechnungen!M$2:M$32,L58,[2]Berechnungen!N$2:N$32))","v":""},null,{"$f":"IF(MAX([2]Berechnungen!O$2:O$32)=MAX('[2]Aktive-RAP'!H$51:H57),\"\",LARGE([2]Berechnungen!O$2:O$32,COUNTIF([2]Berechnungen!O$2:O$32,\">\"&O57)))","v":""},{"$f":"IF(O58=\"\",\"\",SUMIF([2]Berechnungen!O$2:O$32,O58,[2]Berechnungen!P$2:P$32))","v":""}]
[null,null,null,null,null,null,null,null,null,null,null,{"$f":"IF(MAX([2]Berechnungen!M$2:M$32)=MAX('[2]Aktive-RAP'!E$51:E58),\"\",LARGE([2]Berechnungen!M$2:M$32,COUNTIF([2]Berechnungen!M$2:M$32,\">\"&L58)))","v":""},{"$f":"IF(L59=\"\",\"\",SUMIF([2]Berechnungen!M$2:M$32,L59,[2]Berechnungen!N$2:N$32))","v":""},null,{"$f":"IF(MAX([2]Berechnungen!O$2:O$32)=MAX('[2]Aktive-RAP'!H$51:H58),\"\",LARGE([2]Berechnungen!O$2:O$32,COUNTIF([2]Berechnungen!O$2:O$32,\">\"&O58)))","v":""},{"$f":"IF(O59=\"\",\"\",SUMIF([2]Berechnungen!O$2:O$32,O59,[2]Berechnungen!P$2:P$32))","v":""}]
[null,null,null,null,null,null,null,null,null,null,null,{"$f":"IF(MAX([2]Berechnungen!M$2:M$32)=MAX('[2]Aktive-RAP'!E$51:E59),\"\",LARGE([2]Berechnungen!M$2:M$32,COUNTIF([2]Berechnungen!M$2:M$32,\">\"&L59)))","v":""},{"$f":"IF(L60=\"\",\"\",SUMIF([2]Berechnungen!M$2:M$32,L60,[2]Berechnungen!N$2:N$32))","v":""},null,{"$f":"IF(MAX([2]Berechnungen!O$2:O$32)=MAX('[2]Aktive-RAP'!H$51:H59),\"\",LARGE([2]Berechnungen!O$2:O$32,COUNTIF([2]Berechnungen!O$2:O$32,\">\"&O59)))","v":""},{"$f":"IF(O60=\"\",\"\",SUMIF([2]Berechnungen!O$2:O$32,O60,[2]Berechnungen!P$2:P$32))","v":""}]
[null,null,null,null,null,null,null,null,null,null,null,{"$f":"IF(MAX([2]Berechnungen!M$2:M$32)=MAX('[2]Aktive-RAP'!E$51:E60),\"\",LARGE([2]Berechnungen!M$2:M$32,COUNTIF([2]Berechnungen!M$2:M$32,\">\"&L60)))","v":""},{"$f":"IF(L61=\"\",\"\",SUMIF([2]Berechnungen!M$2:M$32,L61,[2]Berechnungen!N$2:N$32))","v":""},null,{"$f":"IF(MAX([2]Berechnungen!O$2:O$32)=MAX('[2]Aktive-RAP'!H$51:H60),\"\",LARGE([2]Berechnungen!O$2:O$32,COUNTIF([2]Berechnungen!O$2:O$32,\">\"&O60)))","v":""},{"$f":"IF(O61=\"\",\"\",SUMIF([2]Berechnungen!O$2:O$32,O61,[2]Berechnungen!P$2:P$32))","v":""}]
[null,null,null,null,null,null,null,null,null,null,null,{"$f":"IF(MAX([2]Berechnungen!M$2:M$32)=MAX('[2]Aktive-RAP'!E$51:E61),\"\",LARGE([2]Berechnungen!M$2:M$32,COUNTIF([2]Berechnungen!M$2:M$32,\">\"&L61)))","v":""},{"$f":"IF(L62=\"\",\"\",SUMIF([2]Berechnungen!M$2:M$32,L62,[2]Berechnungen!N$2:N$32))","v":""},null,{"$f":"IF(MAX([2]Berechnungen!O$2:O$32)=MAX('[2]Aktive-RAP'!H$51:H61),\"\",LARGE([2]Berechnungen!O$2:O$32,COUNTIF([2]Berechnungen!O$2:O$32,\">\"&O61)))","v":""},{"$f":"IF(O62=\"\",\"\",SUMIF([2]Berechnungen!O$2:O$32,O62,[2]Berechnungen!P$2:P$32))","v":""}]
[null,null,null,null,null,null,null,null,null,null,null,{"$f":"IF(MAX([2]Berechnungen!M$2:M$32)=MAX('[2]Aktive-RAP'!E$51:E62),\"\",LARGE([2]Berechnungen!M$2:M$32,COUNTIF([2]Berechnungen!M$2:M$32,\">\"&L62)))","v":""},{"$f":"IF(L63=\"\",\"\",SUMIF([2]Berechnungen!M$2:M$32,L63,[2]Berechnungen!N$2:N$32))","v":""},null,{"$f":"IF(MAX([2]Berechnungen!O$2:O$32)=MAX('[2]Aktive-RAP'!H$51:H62),\"\",LARGE([2]Berechnungen!O$2:O$32,COUNTIF([2]Berechnungen!O$2:O$32,\">\"&O62)))","v":""},{"$f":"IF(O63=\"\",\"\",SUMIF([2]Berechnungen!O$2:O$32,O63,[2]Berechnungen!P$2:P$32))","v":""}]
[null,null,null,null,null,null,null,null,null,null,null,{"$f":"IF(MAX([2]Berechnungen!M$2:M$32)=MAX('[2]Aktive-RAP'!E$51:E63),\"\",LARGE([2]Berechnungen!M$2:M$32,COUNTIF([2]Berechnungen!M$2:M$32,\">\"&L63)))","v":""},{"$f":"IF(L64=\"\",\"\",SUMIF([2]Berechnungen!M$2:M$32,L64,[2]Berechnungen!N$2:N$32))","v":""},null,{"$f":"IF(MAX([2]Berechnungen!O$2:O$32)=MAX('[2]Aktive-RAP'!H$51:H63),\"\",LARGE([2]Berechnungen!O$2:O$32,COUNTIF([2]Berechnungen!O$2:O$32,\">\"&O63)))","v":""},{"$f":"IF(O64=\"\",\"\",SUMIF([2]Berechnungen!O$2:O$32,O64,[2]Berechnungen!P$2:P$32))","v":""}]
[null,null,null,null,null,null,null,null,null,null,null,{"$f":"IF(MAX([2]Berechnungen!M$2:M$32)=MAX('[2]Aktive-RAP'!E$51:E64),\"\",LARGE([2]Berechnungen!M$2:M$32,COUNTIF([2]Berechnungen!M$2:M$32,\">\"&L64)))","v":""},{"$f":"IF(L65=\"\",\"\",SUMIF([2]Berechnungen!M$2:M$32,L65,[2]Berechnungen!N$2:N$32))","v":""},null,{"$f":"IF(MAX([2]Berechnungen!O$2:O$32)=MAX('[2]Aktive-RAP'!H$51:H64),\"\",LARGE([2]Berechnungen!O$2:O$32,COUNTIF([2]Berechnungen!O$2:O$32,\">\"&O64)))","v":""},{"$f":"IF(O65=\"\",\"\",SUMIF([2]Berechnungen!O$2:O$32,O65,[2]Berechnungen!P$2:P$32))","v":""}]
[null,null,null,null,null,null,null,null,null,null,null,{"$f":"IF(MAX([2]Berechnungen!M$2:M$32)=MAX('[2]Aktive-RAP'!E$51:E65),\"\",LARGE([2]Berechnungen!M$2:M$32,COUNTIF([2]Berechnungen!M$2:M$32,\">\"&L65)))","v":""},{"$f":"IF(L66=\"\",\"\",SUMIF([2]Berechnungen!M$2:M$32,L66,[2]Berechnungen!N$2:N$32))","v":""},null,{"$f":"IF(MAX([2]Berechnungen!O$2:O$32)=MAX('[2]Aktive-RAP'!H$51:H65),\"\",LARGE([2]Berechnungen!O$2:O$32,COUNTIF([2]Berechnungen!O$2:O$32,\">\"&O65)))","v":""},{"$f":"IF(O66=\"\",\"\",SUMIF([2]Berechnungen!O$2:O$32,O66,[2]Berechnungen!P$2:P$32))","v":""}]
[null,null,null,null,null,null,null,null,null,null,null,{"$f":"IF(MAX([2]Berechnungen!M$2:M$32)=MAX('[2]Aktive-RAP'!E$51:E66),\"\",LARGE([2]Berechnungen!M$2:M$32,COUNTIF([2]Berechnungen!M$2:M$32,\">\"&L66)))","v":""},{"$f":"IF(L67=\"\",\"\",SUMIF([2]Berechnungen!M$2:M$32,L67,[2]Berechnungen!N$2:N$32))","v":""},null,{"$f":"IF(MAX([2]Berechnungen!O$2:O$32)=MAX('[2]Aktive-RAP'!H$51:H66),\"\",LARGE([2]Berechnungen!O$2:O$32,COUNTIF([2]Berechnungen!O$2:O$32,\">\"&O66)))","v":""},{"$f":"IF(O67=\"\",\"\",SUMIF([2]Berechnungen!O$2:O$32,O67,[2]Berechnungen!P$2:P$32))","v":""}]
[null,null,null,null,null,null,null,null,null,null,null,{"$f":"IF(MAX([2]Berechnungen!M$2:M$32)=MAX('[2]Aktive-RAP'!E$51:E67),\"\",LARGE([2]Berechnungen!M$2:M$32,COUNTIF([2]Berechnungen!M$2:M$32,\">\"&L67)))","v":""},{"$f":"IF(L68=\"\",\"\",SUMIF([2]Berechnungen!M$2:M$32,L68,[2]Berechnungen!N$2:N$32))","v":""},null,{"$f":"IF(MAX([2]Berechnungen!O$2:O$32)=MAX('[2]Aktive-RAP'!H$51:H67),\"\",LARGE([2]Berechnungen!O$2:O$32,COUNTIF([2]Berechnungen!O$2:O$32,\">\"&O67)))","v":""},{"$f":"IF(O68=\"\",\"\",SUMIF([2]Berechnungen!O$2:O$32,O68,[2]Berechnungen!P$2:P$32))","v":""}]
[null,null,null,null,null,null,null,null,null,null,null,{"$f":"IF(MAX([2]Berechnungen!M$2:M$32)=MAX('[2]Aktive-RAP'!E$51:E68),\"\",LARGE([2]Berechnungen!M$2:M$32,COUNTIF([2]Berechnungen!M$2:M$32,\">\"&L68)))","v":""},{"$f":"IF(L69=\"\",\"\",SUMIF([2]Berechnungen!M$2:M$32,L69,[2]Berechnungen!N$2:N$32))","v":""},null,{"$f":"IF(MAX([2]Berechnungen!O$2:O$32)=MAX('[2]Aktive-RAP'!H$51:H68),\"\",LARGE([2]Berechnungen!O$2:O$32,COUNTIF([2]Berechnungen!O$2:O$32,\">\"&O68)))","v":""},{"$f":"IF(O69=\"\",\"\",SUMIF([2]Berechnungen!O$2:O$32,O69,[2]Berechnungen!P$2:P$32))","v":""}]
[null,null,null,null,null,null,null,null,null,null,null,{"$f":"IF(MAX([2]Berechnungen!M$2:M$32)=MAX('[2]Aktive-RAP'!E$51:E69),\"\",LARGE([2]Berechnungen!M$2:M$32,COUNTIF([2]Berechnungen!M$2:M$32,\">\"&L69)))","v":""},{"$f":"IF(L70=\"\",\"\",SUMIF([2]Berechnungen!M$2:M$32,L70,[2]Berechnungen!N$2:N$32))","v":""},null,{"$f":"IF(MAX([2]Berechnungen!O$2:O$32)=MAX('[2]Aktive-RAP'!H$51:H69),\"\",LARGE([2]Berechnungen!O$2:O$32,COUNTIF([2]Berechnungen!O$2:O$32,\">\"&O69)))","v":""},{"$f":"IF(O70=\"\",\"\",SUMIF([2]Berechnungen!O$2:O$32,O70,[2]Berechnungen!P$2:P$32))","v":""}]
[null,null,null,null,null,null,null,null,null,null,null,{"$f":"IF(MAX([2]Berechnungen!M$2:M$32)=MAX('[2]Aktive-RAP'!E$51:E70),\"\",LARGE([2]Berechnungen!M$2:M$32,COUNTIF([2]Berechnungen!M$2:M$32,\">\"&L70)))","v":""},{"$f":"IF(L71=\"\",\"\",SUMIF([2]Berechnungen!M$2:M$32,L71,[2]Berechnungen!N$2:N$32))","v":""},null,{"$f":"IF(MAX([2]Berechnungen!O$2:O$32)=MAX('[2]Aktive-RAP'!H$51:H70),\"\",LARGE([2]Berechnungen!O$2:O$32,COUNTIF([2]Berechnungen!O$2:O$32,\">\"&O70)))","v":""},{"$f":"IF(O71=\"\",\"\",SUMIF([2]Berechnungen!O$2:O$32,O71,[2]Berechnungen!P$2:P$32))","v":""}]
[null,null,null,null,null,null,null,null,null,null,null,{"$f":"IF(MAX([2]Berechnungen!M$2:M$32)=MAX('[2]Aktive-RAP'!E$51:E71),\"\",LARGE([2]Berechnungen!M$2:M$32,COUNTIF([2]Berechnungen!M$2:M$32,\">\"&L71)))","v":""},{"$f":"IF(L72=\"\",\"\",SUMIF([2]Berechnungen!M$2:M$32,L72,[2]Berechnungen!N$2:N$32))","v":""},null,{"$f":"IF(MAX([2]Berechnungen!O$2:O$32)=MAX('[2]Aktive-RAP'!H$51:H71),\"\",LARGE([2]Berechnungen!O$2:O$32,COUNTIF([2]Berechnungen!O$2:O$32,\">\"&O71)))","v":""},{"$f":"IF(O72=\"\",\"\",SUMIF([2]Berechnungen!O$2:O$32,O72,[2]Berechnungen!P$2:P$32))","v":""}]
[null,null,null,null,null,null,null,null,null,null,null,{"$f":"IF(MAX([2]Berechnungen!M$2:M$32)=MAX('[2]Aktive-RAP'!E$51:E72),\"\",LARGE([2]Berechnungen!M$2:M$32,COUNTIF([2]Berechnungen!M$2:M$32,\">\"&L72)))","v":""},{"$f":"IF(L73=\"\",\"\",SUMIF([2]Berechnungen!M$2:M$32,L73,[2]Berechnungen!N$2:N$32))","v":""},null,{"$f":"IF(MAX([2]Berechnungen!O$2:O$32)=MAX('[2]Aktive-RAP'!H$51:H72),\"\",LARGE([2]Berechnungen!O$2:O$32,COUNTIF([2]Berechnungen!O$2:O$32,\">\"&O72)))","v":""},{"$f":"IF(O73=\"\",\"\",SUMIF([2]Berechnungen!O$2:O$32,O73,[2]Berechnungen!P$2:P$32))","v":""}]
[null,null,null,null,null,null,null,null,null,null,null,{"$f":"IF(MAX([2]Berechnungen!M$2:M$32)=MAX('[2]Aktive-RAP'!E$51:E73),\"\",LARGE([2]Berechnungen!M$2:M$32,COUNTIF([2]Berechnungen!M$2:M$32,\">\"&L73)))","v":""},{"$f":"IF(L74=\"\",\"\",SUMIF([2]Berechnungen!M$2:M$32,L74,[2]Berechnungen!N$2:N$32))","v":""},null,{"$f":"IF(MAX([2]Berechnungen!O$2:O$32)=MAX('[2]Aktive-RAP'!H$51:H73),\"\",LARGE([2]Berechnungen!O$2:O$32,COUNTIF([2]Berechnungen!O$2:O$32,\">\"&O73)))","v":""},{"$f":"IF(O74=\"\",\"\",SUMIF([2]Berechnungen!O$2:O$32,O74,[2]Berechnungen!P$2:P$32))","v":""}]
[null,null,null,null,null,null,null,null,null,null,null,{"$f":"IF(MAX([2]Berechnungen!M$2:M$32)=MAX('[2]Aktive-RAP'!E$51:E74),\"\",LARGE([2]Berechnungen!M$2:M$32,COUNTIF([2]Berechnungen!M$2:M$32,\">\"&L74)))","v":""},{"$f":"IF(L75=\"\",\"\",SUMIF([2]Berechnungen!M$2:M$32,L75,[2]Berechnungen!N$2:N$32))","v":""},null,{"$f":"IF(MAX([2]Berechnungen!O$2:O$32)=MAX('[2]Aktive-RAP'!H$51:H74),\"\",LARGE([2]Berechnungen!O$2:O$32,COUNTIF([2]Berechnungen!O$2:O$32,\">\"&O74)))","v":""},{"$f":"IF(O75=\"\",\"\",SUMIF([2]Berechnungen!O$2:O$32,O75,[2]Berechnungen!P$2:P$32))","v":""}]
[null,null,null,null,null,null,null,null,null,null,null,{"$f":"IF(MAX([2]Berechnungen!M$2:M$32)=MAX('[2]Aktive-RAP'!E$51:E75),\"\",LARGE([2]Berechnungen!M$2:M$32,COUNTIF([2]Berechnungen!M$2:M$32,\">\"&L75)))","v":""},{"$f":"IF(L76=\"\",\"\",SUMIF([2]Berechnungen!M$2:M$32,L76,[2]Berechnungen!N$2:N$32))","v":""},null,{"$f":"IF(MAX([2]Berechnungen!O$2:O$32)=MAX('[2]Aktive-RAP'!H$51:H75),\"\",LARGE([2]Berechnungen!O$2:O$32,COUNTIF([2]Berechnungen!O$2:O$32,\">\"&O75)))","v":""},{"$f":"IF(O76=\"\",\"\",SUMIF([2]Berechnungen!O$2:O$32,O76,[2]Berechnungen!P$2:P$32))","v":""}]
[null,null,null,null,null,null,null,null,null,null,null,{"$f":"IF(MAX([2]Berechnungen!M$2:M$32)=MAX('[2]Aktive-RAP'!E$51:E76),\"\",LARGE([2]Berechnungen!M$2:M$32,COUNTIF([2]Berechnungen!M$2:M$32,\">\"&L76)))","v":""},{"$f":"IF(L77=\"\",\"\",SUMIF([2]Berechnungen!M$2:M$32,L77,[2]Berechnungen!N$2:N$32))","v":""},null,{"$f":"IF(MAX([2]Berechnungen!O$2:O$32)=MAX('[2]Aktive-RAP'!H$51:H76),\"\",LARGE([2]Berechnungen!O$2:O$32,COUNTIF([2]Berechnungen!O$2:O$32,\">\"&O76)))","v":""},{"$f":"IF(O77=\"\",\"\",SUMIF([2]Berechnungen!O$2:O$32,O77,[2]Berechnungen!P$2:P$32))","v":""}]
[null,null,null,null,null,null,null,null,null,null,null,{"$f":"IF(MAX([2]Berechnungen!M$2:M$32)=MAX('[2]Aktive-RAP'!E$51:E77),\"\",LARGE([2]Berechnungen!M$2:M$32,COUNTIF([2]Berechnungen!M$2:M$32,\">\"&L77)))","v":""},{"$f":"IF(L78=\"\",\"\",SUMIF([2]Berechnungen!M$2:M$32,L78,[2]Berechnungen!N$2:N$32))","v":""},null,{"$f":"IF(MAX([2]Berechnungen!O$2:O$32)=MAX('[2]Aktive-RAP'!H$51:H77),\"\",LARGE([2]Berechnungen!O$2:O$32,COUNTIF([2]Berechnungen!O$2:O$32,\">\"&O77)))","v":""},{"$f":"IF(O78=\"\",\"\",SUMIF([2]Berechnungen!O$2:O$32,O78,[2]Berechnungen!P$2:P$32))","v":""}]
[null,null,null,null,null,null,null,null,null,null,null,{"$f":"IF(MAX([2]Berechnungen!M$2:M$32)=MAX('[2]Aktive-RAP'!E$51:E78),\"\",LARGE([2]Berechnungen!M$2:M$32,COUNTIF([2]Berechnungen!M$2:M$32,\">\"&L78)))","v":""},{"$f":"IF(L79=\"\",\"\",SUMIF([2]Berechnungen!M$2:M$32,L79,[2]Berechnungen!N$2:N$32))","v":""},null,{"$f":"IF(MAX([2]Berechnungen!O$2:O$32)=MAX('[2]Aktive-RAP'!H$51:H78),\"\",LARGE([2]Berechnungen!O$2:O$32,COUNTIF([2]Berechnungen!O$2:O$32,\">\"&O78)))","v":""},{"$f":"IF(O79=\"\",\"\",SUMIF([2]Berechnungen!O$2:O$32,O79,[2]Berechnungen!P$2:P$32))","v":""}]
[null,null,null,null,null,null,null,null,null,null,null,{"$f":"IF(MAX([2]Berechnungen!M$2:M$32)=MAX('[2]Aktive-RAP'!E$51:E79),\"\",LARGE([2]Berechnungen!M$2:M$32,COUNTIF([2]Berechnungen!M$2:M$32,\">\"&L79)))","v":""},{"$f":"IF(L80=\"\",\"\",SUMIF([2]Berechnungen!M$2:M$32,L80,[2]Berechnungen!N$2:N$32))","v":""},null,{"$f":"IF(MAX([2]Berechnungen!O$2:O$32)=MAX('[2]Aktive-RAP'!H$51:H79),\"\",LARGE([2]Berechnungen!O$2:O$32,COUNTIF([2]Berechnungen!O$2:O$32,\">\"&O79)))","v":""},{"$f":"IF(O80=\"\",\"\",SUMIF([2]Berechnungen!O$2:O$32,O80,[2]Berechnungen!P$2:P$32))","v":""}]

{"sheet":"0996-0999 PWB","index":13,"n_rows":53,"n_cols":14,"rows_kept":53,"cut":false,"hidden":true,"merged":[]}
["Jahr:"]
["Mandantennummer:"]
["Mandantenname:"]
[]
["1. Konto/Kontenbereich: ","996-999"]
["2. Thema: ","Pauschalwertberichtigungen"]
["3. Prüfungsziel: ","PWB wird mtl. i.H.v. 1,0% der Nettoforderungen gebucht."]
["4. Folgende Belege müssen vorliegen:","keine",null,null,null,null,"Bitte diese Berechnungsliste verwenden!"]
["5. Erläuterungen/Berechnungen/Infos:","Einmal pro Jahr wird der Saldo laut Gesamtjahresumsatz abgestimmt. "]
[null,"Unterjährig wird die Rückstellung laut Monatsumsatz gebucht.",null,null,null,null,null,"Fordg. brutto","Fordg. netto","Fordg. ohne USt","Summe Fordg.","PWB 1 %","PWB Vormonat","Einstellung/Auflösung"]
["Saldo:",null,"31.01.",{"$f":"L11","v":84.033613445378165},null,null,"Januar",10000,{"$f":"H11/1.19","v":8403.361344537816},0,{"$f":"I11+J11","v":8403.361344537816},{"$f":"K11*1%","v":84.033613445378165},0,{"$f":"L11-M11","v":84.033613445378165}]
[{"$f":"A11","v":"Saldo:"},null,"28.02.",{"$f":"L12","v":0},null,null,"Februar",0,{"$f":"H12/1.19","v":0},0,{"$f":"I12+J12","v":0},{"$f":"K12*1%","v":0},{"$f":"L11","v":84.033613445378165},{"$f":"L12-M12","v":-84.033613445378165}]
["Saldo:",null,"31.03.",{"$f":"L13","v":0},null,null,"März",0,{"$f":"H13/1.19","v":0},0,{"$f":"I13+J13","v":0},0,0,0]
["Saldo:",null,"30.04.",0,null,null,"April",0,{"$f":"H14/1.19","v":0},0,0,0,0,0]
["Saldo:",null,"31.05.",0,null,null,"Mai",0,0,0,0,0,0,0]
["Saldo:",null,"30.06.",0,null,null,"Juni",0,0,0,0,0,0,0]
["Saldo:",null,"31.07.",0,null,null,"Juli",0,0,0,0,0,0,0]
["Saldo:",null,"31.08.",0,null,null,"August",0,0,0,0,0,0,0]
["Saldo:",null,"30.09.",0,null,null,"September",0,0,0,0,0,0,0]
["Saldo:",null,"31.10.",0,null,null,"Oktober",0,0,0,0,0,0,0]
["Saldo:",null,"30.11.",0,null,null,"November",0,0,0,0,0,0,0]
["Saldo:",null,"31.12.",0,null,null,"Dezember",0,0,0,0,0,0,0]
[]
["6. Prüfungsvermerk der/des ausführenden Mitarbeiter/in:",null,"Monat:","Kürzel Mitarb."]
["Der/die Mitarbeiter/in bestätigt mit seinem/ihrem nachfolgenden Kürzel,",null,1]
["dass alle oben genannten Prüfungen vollständig und korrekt durchgeführt worden sind.",null,2]
[null,null,3,null,null,null,null,null,null,null,null,null,null,"zurück zum Ablauf"]
[null,null,4]
[null,null,5]
[null,null,6]
[null,null,7]
[null,null,8]
[null,null,9]
[null,null,10]
[null,null,11]
[null,null,12]
[]
["7. Buchungssätze:","2450 / 996 (Zuführung Rückstellung)"]
[null,"996 / 2450 (Auflösung Rückstellung)"]
[]
["Umsatz","Sollkonto / Habenkonto","Datum","Buchungstext"]
[null,null,"31.01."]
[null,null,"28.02."]
[null,null,"31.03."]
[null,null,"30.04."]
[null,null,"31.05."]
[null,null,"30.06."]
[null,null,"31.07."]
[null,null,"31.08."]
[null,null,"30.09."]
[null,null,"31.10."]
[null,null,"30.11."]
[null,null,"31.12."]

{"sheet":"1000-1099","index":14,"n_rows":66,"n_cols":4,"rows_kept":66,"cut":false,"hidden":false,"merged":[]}
["Jahr:",{"$f":"Stammblatt!$C$4","v":0}]
["Mandantennummer:",{"$f":"Stammblatt!$C$5","v":0}]
["Mandantenname:",{"$f":"Stammblatt!$C$6","v":0}]
[]
["1. Konto/Kontenbereich: ","1000-1099"]
["2. Thema: ","Kassen"]
["3. Prüfungsziel: ","Kassenbücher müssen mit der Fibu übereinstimmen."]
["4. Folgende Belege müssen vorliegen:","Kopien Kassenbücher, Kassentool-Dateien"]
["5. Erläuterungen/Berechnungen/Infos:","Mtl. wird der Saldo laut Belegen bzw. Tool abgestimmt. "]
[null,"Kassenminusprüfung muss mtl. in Rewe durchgeführt werden."]
[null,"Wird Kassentool von DATEV genutzt?                                              Ja/nein:"]
[null,"Werden Kassen über andere Schnittstellen eingelesen?                Ja/nein:"]
["Saldo laut Belegen/Tool:",null,"31.01.",0]
["Saldo laut Rewe:",null,{"$f":"C13","v":"31.01."},0]
[{"$f":"A13","v":"Saldo laut Belegen/Tool:"},null,"28.02.",0]
[{"$f":"A14","v":"Saldo laut Rewe:"},null,{"$f":"C15","v":"28.02."},0]
[{"$f":"A15","v":"Saldo laut Belegen/Tool:"},null,"31.03.",0]
["Saldo laut Rewe:",null,{"$f":"C17","v":"31.03."},0]
["Saldo laut Belegen/Tool:",null,"30.04.",0]
["Saldo laut Rewe:",null,{"$f":"C19","v":"30.04."},0]
["Saldo laut Belegen/Tool:",null,"31.05.",0]
["Saldo laut Rewe:",null,{"$f":"C21","v":"31.05."},0]
["Saldo laut Belegen/Tool:",null,"30.06.",0]
["Saldo laut Rewe:",null,{"$f":"C23","v":"30.06."},0]
["Saldo laut Belegen/Tool:",null,"31.07.",0]
["Saldo laut Rewe:",null,{"$f":"C25","v":"31.07."},0]
["Saldo laut Belegen/Tool:",null,"31.08.",0]
["Saldo laut Rewe:",null,{"$f":"C27","v":"31.08."},0]
["Saldo laut Belegen/Tool:",null,"30.09.",0]
["Saldo laut Rewe:",null,{"$f":"C29","v":"30.09."},0]
["Saldo laut Belegen/Tool:",null,"31.10.",0]
["Saldo laut Rewe:",null,{"$f":"C31","v":"31.10."},0]
["Saldo laut Belegen/Tool:",null,"30.11.",0]
["Saldo laut Rewe:",null,{"$f":"C33","v":"30.11."},0]
["Saldo laut Belegen/Tool:",null,"31.12.",0]
["Saldo laut Rewe:",null,{"$f":"C35","v":"31.12."},0]
[]
["6. Prüfungsvermerk der/des ausführenden Mitarbeiter/in:",null,"Monat:","Kürzel Mitarb."]
["Der/die Mitarbeiter/in bestätigt mit seinem/ihrem nachfolgenden Kürzel,",null,1]
["dass alle oben genannten Prüfungen vollständig und korrekt durchgeführt worden sind.",null,2]
[null,null,3]
[null,null,4]
[null,null,5]
[null,null,6]
[null,null,7]
[null,null,8]
[null,null,9]
[null,null,10]
[null,null,11]
[null,null,12]
[]
["7. Buchungssätze:","keine"]
[]
["8. Kassentool-Trefferquote ","für eine Kasse","Datum","Quote in %"]
[null,null,"31.01.",0.8]
[null,null,"28.02."]
[null,null,"31.03."]
[null,null,"30.04."]
[null,null,"31.05."]
[null,null,"30.06."]
[null,null,"31.07."]
[null,null,"31.08."]
[null,null,"30.09."]
[null,null,"31.10."]
[null,null,"30.11."]
[null,null,"31.12."]

{"sheet":"1200-1299","index":15,"n_rows":51,"n_cols":4,"rows_kept":51,"cut":false,"hidden":false,"merged":[]}
["Jahr:",{"$f":"Stammblatt!$C$4","v":0}]
["Mandantennummer:",{"$f":"Stammblatt!$C$5","v":0}]
["Mandantenname:",{"$f":"Stammblatt!$C$6","v":0}]
[]
["1. Konto/Kontenbereich: ","1200-1299"]
["2. Thema: ","Banken"]
["3. Prüfungsziel: ","Bankauszüge müssen mit der Fibu übereinstimmen."]
["4. Folgende Belege müssen vorliegen:","Kopien Bankauszüge, Kontoauszugsmanager-Dateien"]
["5. Erläuterungen/Berechnungen/Infos:","Mtl. wird der Saldo laut Belegen bzw. Auszugsmanager abgestimmt. "]
[null,"Wird Kontoauszugsmanager von DATEV genutzt?                          Ja/nein:"]
[null,"Werden Banken über andere Schnittstellen eingelesen?                Ja/nein:"]
["Saldo laut Belegen/Auszugsmanager:",null,"31.01.",0]
["Saldo laut Rewe:",null,{"$f":"C12","v":"31.01."},0]
[{"$f":"A12","v":"Saldo laut Belegen/Auszugsmanager:"},null,"28.02.",0]
[{"$f":"A13","v":"Saldo laut Rewe:"},null,{"$f":"C14","v":"28.02."},0]
[{"$f":"A14","v":"Saldo laut Belegen/Auszugsmanager:"},null,"31.03.",0]
["Saldo laut Rewe:",null,{"$f":"C16","v":"31.03."},0]
["Saldo laut Belegen/Auszugsmanager:",null,"30.04.",0]
["Saldo laut Rewe:",null,{"$f":"C18","v":"30.04."},0]
["Saldo laut Belegen/Auszugsmanager:",null,"31.05.",0]
["Saldo laut Rewe:",null,{"$f":"C20","v":"31.05."},0]
["Saldo laut Belegen/Auszugsmanager:",null,"30.06.",0]
["Saldo laut Rewe:",null,{"$f":"C22","v":"30.06."},0]
["Saldo laut Belegen/Auszugsmanager:",null,"31.07.",0]
["Saldo laut Rewe:",null,{"$f":"C24","v":"31.07."},0]
["Saldo laut Belegen/Auszugsmanager:",null,"31.08.",0]
["Saldo laut Rewe:",null,{"$f":"C26","v":"31.08."},0]
["Saldo laut Belegen/Auszugsmanager:",null,"30.09.",0]
["Saldo laut Rewe:",null,{"$f":"C28","v":"30.09."},0]
["Saldo laut Belegen/Auszugsmanager:",null,"31.10.",0]
["Saldo laut Rewe:",null,{"$f":"C30","v":"31.10."},0]
["Saldo laut Belegen/Auszugsmanager:",null,"30.11.",0]
["Saldo laut Rewe:",null,{"$f":"C32","v":"30.11."},0]
["Saldo laut Belegen/Auszugsmanager:",null,"31.12.",0]
["Saldo laut Rewe:",null,{"$f":"C34","v":"31.12."},0]
[]
["6. Prüfungsvermerk der/des ausführenden Mitarbeiter/in:",null,"Monat:","Kürzel Mitarb."]
["Der/die Mitarbeiter/in bestätigt mit seinem/ihrem nachfolgenden Kürzel,",null,1]
["dass alle oben genannten Prüfungen vollständig und korrekt durchgeführt worden sind.",null,2]
[null,null,3]
[null,null,4]
[null,null,5]
[null,null,6]
[null,null,7]
[null,null,8]
[null,null,9]
[null,null,10]
[null,null,11]
[null,null,12]
[]
["7. Buchungssätze:","keine"]

{"sheet":"1360","index":16,"n_rows":38,"n_cols":4,"rows_kept":38,"cut":false,"hidden":false,"merged":[]}
["Jahr:",{"$f":"Stammblatt!$C$4","v":0}]
["Mandantennummer:",{"$f":"Stammblatt!$C$5","v":0}]
["Mandantenname:",{"$f":"Stammblatt!$C$6","v":0}]
[]
["1. Konto/Kontenbereich: ",1360]
["2. Thema: ","Geldtransit"]
["3. Prüfungsziel: ","Saldo soll 0 EUR betragen."]
["4. Folgende Belege müssen vorliegen:","keine"]
["5. Erläuterungen/Berechnungen/Infos:","Saldo soll 0 EUR betragen."]
[null,"Ausnahmen davon müssen unten erläutert werden."]
["Saldo:",null,"31.01.",0]
[{"$f":"A11","v":"Saldo:"},null,"28.02.",0]
["Saldo:",null,"31.03.",0]
["Saldo:",null,"30.04.",0]
["Saldo:",null,"31.05.",0]
["Saldo:",null,"30.06.",0]
["Saldo:",null,"31.07.",0]
["Saldo:",null,"31.08.",0]
["Saldo:",null,"30.09.",0]
["Saldo:",null,"31.10.",0]
["Saldo:",null,"30.11.",0]
["Saldo:",null,"31.12.",0]
[]
["6. Prüfungsvermerk der/des ausführenden Mitarbeiter/in:",null,"Monat:","Kürzel Mitarb."]
["Der/die Mitarbeiter/in bestätigt mit seinem/ihrem nachfolgenden Kürzel,",null,1]
["dass alle oben genannten Prüfungen vollständig und korrekt durchgeführt worden sind.",null,2]
[null,null,3]
[null,null,4]
[null,null,5]
[null,null,6]
[null,null,7]
[null,null,8]
[null,null,9]
[null,null,10]
[null,null,11]
[null,null,12]
[]
["7. Buchungssätze:","keine"]

{"sheet":"1400-1440 Ford.aLuL","index":17,"n_rows":49,"n_cols":4,"rows_kept":49,"cut":false,"hidden":true,"merged":[]}
["Jahr:"]
["Mandantennummer:"]
["Mandantenname:"]
[]
["1. Konto/Kontenbereich: ","1400-1440"]
["2. Thema: ","Forderungen aus Lieferungen und Leistungen"]
["3. Prüfungsziel: ","Saldo muss mit OPOS-Liste übereinstimmen."]
["4. Folgende Belege müssen vorliegen:","OPOS-Liste"]
["5. Erläuterungen/Berechnungen/Infos:","keine"]
["Saldo laut \"OPOS-Liste\":",null,"31.01.",0]
["Saldo laut Rewe:",null,{"$f":"C10","v":"31.01."},0]
[{"$f":"A10","v":"Saldo laut \"OPOS-Liste\":"},null,"28.02.",0]
["Saldo laut Rewe:",null,{"$f":"C12","v":"28.02."},0]
["Saldo laut \"OPOS-Liste\":",null,"31.03.",0]
["Saldo laut Rewe:",null,{"$f":"C14","v":"31.03."},0]
["Saldo laut \"OPOS-Liste\":",null,"30.04.",0]
["Saldo laut Rewe:",null,{"$f":"C16","v":"30.04."},0]
["Saldo laut \"OPOS-Liste\":",null,"31.05.",0]
["Saldo laut Rewe:",null,{"$f":"C18","v":"31.05."},0]
["Saldo laut \"OPOS-Liste\":",null,"30.06.",0]
["Saldo laut Rewe:",null,{"$f":"C20","v":"30.06."},0]
["Saldo laut \"OPOS-Liste\":",null,"31.07.",0]
["Saldo laut Rewe:",null,{"$f":"C22","v":"31.07."},0]
["Saldo laut \"OPOS-Liste\":",null,"31.08.",0]
["Saldo laut Rewe:",null,{"$f":"C24","v":"31.08."},0]
["Saldo laut \"OPOS-Liste\":",null,"30.09.",0]
["Saldo laut Rewe:",null,{"$f":"C26","v":"30.09."},0]
["Saldo laut \"OPOS-Liste\":",null,"31.10.",0]
["Saldo laut Rewe:",null,{"$f":"C28","v":"31.10."},0]
["Saldo laut \"OPOS-Liste\":",null,"30.11.",0]
["Saldo laut Rewe:",null,{"$f":"C30","v":"30.11."},0]
["Saldo laut \"OPOS-Liste\":",null,"31.12.",0]
["Saldo laut Rewe:",null,{"$f":"C32","v":"31.12."},0]
[]
["6. Prüfungsvermerk der/des ausführenden Mitarbeiter/in:",null,"Monat:","Kürzel Mitarb."]
["Der/die Mitarbeiter/in bestätigt mit seinem/ihrem nachfolgenden Kürzel,",null,1]
["dass alle oben genannten Prüfungen vollständig und korrekt durchgeführt worden sind.",null,2]
[null,null,3]
[null,null,4]
[null,null,5]
[null,null,6]
[null,null,7]
[null,null,8]
[null,null,9]
[null,null,10]
[null,null,11]
[null,null,12]
[]
["7. Buchungssätze:","keine"]

{"sheet":"1460 Ford. zweifelh.","index":18,"n_rows":41,"n_cols":18,"rows_kept":41,"cut":false,"hidden":true,"merged":[[3,6,3,8],[3,9,3,12],[3,13,3,17],[5,7,6,7],[5,8,6,8],[5,9,6,9],[5,10,6,10],[5,11,6,11],[5,12,5,13],[5,14,6,14]]}
["Jahr:"]
["Mandantennummer:",null,null,null,null,null,"Hilfe"]
["Mandantenname:",null,null,null,null,null,"Jahresabschluss 2013",null,null,null,null,null,null,null,null,null,null,{"$f":"[2]Programmeinstellungen!$G$23","v":"Werner & Wollscheid StB"}]
[null,null,null,null,null,null,"Bemotiv GmbH",null,null,{"$f":"[2]Programmeinstellungen!B38","v":"Einzelwertberichtigungen"},null,null,null,"2013-12-31"]
["1. Konto/Kontenbereich: ",1460]
["2. Thema: ","Zeifelhafte Forderungen aus Lieferungen und Leistungen",null,null,null,null,null,"Name Kunde","Konto","Betrag Brutto\nin Euro","USt","Wertberichtigung\nin %","Wertberichtigung",null,"Betrag\nUSt\nin Euro"]
["3. Prüfungsziel: ","Saldo muss OPOS-Liste übereinstimmen.",null,null,null,null,null,null,null,null,null,null,"in Euro brutto","in Euro netto"]
["4. Folgende Belege müssen vorliegen:","OPOS-Liste, Insolvenzmeldungen von Kunden, Belege von Mdt,",null,null,null,null,null,"Müller",10301,11900,null,0.3,{"$f":"ROUND(J8*L8,2)","v":3570},{"$f":"ROUND(M8/(100%+K8),2)","v":3570},{"$f":"SUM(M8-N8)","v":0}]
[null,"dass die Forderungen zweifelhaft sind, Mahnkorrespondenz",null,null,null,null,null,null,null,null,null,null,{"$f":"ROUND(J9*L9,2)","v":0},{"$f":"ROUND(M9/(100%+K9),2)","v":0},0]
["5. Erläuterungen/Berechnungen/Infos:","keine",null,null,null,null,null,null,null,null,null,null,0,0,0]
["Saldo:",null,"31.01.",0,null,null,null,null,null,null,null,null,0,0,0]
[{"$f":"A11","v":"Saldo:"},null,"28.02.",0,null,null,null,null,null,null,null,null,0,0,0]
["Saldo:",null,"31.03.",0,null,null,null,null,null,null,null,null,0,0,0]
["Saldo:",null,"30.04.",0,null,null,null,null,null,null,null,null,0,0,0]
["Saldo:",null,"31.05.",0,null,null,null,null,null,null,null,null,0,0,0]
["Saldo:",null,"30.06.",0,null,null,null,null,null,null,null,null,0,0,0]
["Saldo:",null,"31.07.",0,null,null,null,null,null,null,null,null,0,0,0]
["Saldo:",null,"31.08.",0,null,null,null,null,null,null,null,null,0,0,0]
["Saldo:",null,"30.09.",0,null,null,null,null,null,null,null,null,0,0,0]
["Saldo:",null,"31.10.",0,null,null,null,null,null,null,null,null,0,0,0]
["Saldo:",null,"30.11.",0,null,null,null,null,null,null,null,null,0,0,0]
["Saldo:",null,"31.12.",0,null,null,null,"Summe",null,{"$f":"SUM(J8:J21)","v":11900},null,"   EWB gerundet ",{"$f":"SUM(M8:M21)","v":3570},{"$f":"SUM(N8:N21)","v":3570},{"$f":"SUM(O8:O21)","v":0}]
[]
["6. Prüfungsvermerk der/des ausführenden Mitarbeiter/in:",null,"Monat:","Kürzel Mitarb.",null,null,null,"Einzelwertberichtigung (netto) lfd. Jahr",null,null,null,null,null,null,{"$f":"SUM(N22)","v":3570}]
["Der/die Mitarbeiter/in bestätigt mit seinem/ihrem nachfolgenden Kürzel,",null,1,null,null,null,null,"- Einzelwertberichtigung Vorjahr",null,null,null,null,"Bilanzkonto Vorjahr",{"$f":"KtoForderungEinzelwertberichtigung","v":{"$error":"#NAME?"}},0]
["dass alle oben genannten Prüfungen vollständig und korrekt durchgeführt worden sind.",null,2,null,null,null,null,"= Erhöhung/Herabsetzung Einzelwertberichtigung",null,null,null,null,null,null,{"$f":"O24-O25","v":3570}]
[null,null,3]
[null,null,4,null,null,null,null,"Buchungssatz:",null,"Konto",{"$f":"KtoEinstellungEinzelwertberichtigung","v":{"$error":"#NAME?"}},"an",{"$f":"KtoForderungEinzelwertberichtigung","v":{"$error":"#NAME?"}},null,{"$f":"SUM(IF(O26>0,O26,0))","v":3570}]
[null,null,5,null,null,null,null,null,null,"Konto",{"$f":"KtoForderungEinzelwertberichtigung","v":{"$error":"#NAME?"}},"an",{"$f":"KtoErträgeHerabsetzungEinzelwertberichtigung","v":{"$error":"#NAME?"}},null,{"$f":"SUM(IF(O26<0,O26,0))*-1","v":0}]
[null,null,6]
[null,null,7]
[null,null,8]
[null,null,9]
[null,null,10]
[null,null,11]
[null,null,12]
[]
["7. Buchungssätze:","1460 / 1400 oder Debitorenkonto (Neueinbuchung zw. Ford.)"]
[null,"2400 / 1460 (Ausbuchung Forderungsverlust 0% USt)"]
[null,"2403 / 1460 (Ausbuchung Forderungsverlust 7% USt)"]
[null,"2406 / 1460 (Ausbuchung Forderungsverlust 19% USt)"]

{"sheet":"1500-1555 Ford. Sonst.","index":19,"n_rows":49,"n_cols":4,"rows_kept":49,"cut":false,"hidden":true,"merged":[]}
["Jahr:"]
["Mandantennummer:"]
["Mandantenname:"]
[]
["1. Konto/Kontenbereich: ","1500-1555"]
["2. Thema: ","Forderungen sonstige"]
["3. Prüfungsziel: ","Saldo muss mit Belegen übereinstimmen."]
["4. Folgende Belege müssen vorliegen:","Belege"]
["5. Erläuterungen/Berechnungen/Infos:","keine"]
["Saldo laut Belegen:",null,"31.01.",0]
["Saldo laut Rewe:",null,{"$f":"C10","v":"31.01."},0]
[{"$f":"A10","v":"Saldo laut Belegen:"},null,"28.02.",0]
["Saldo laut Rewe:",null,{"$f":"C12","v":"28.02."},0]
["Saldo laut Belegen:",null,"31.03.",0]
["Saldo laut Rewe:",null,{"$f":"C14","v":"31.03."},0]
["Saldo laut Belegen:",null,"30.04.",0]
["Saldo laut Rewe:",null,{"$f":"C16","v":"30.04."},0]
["Saldo laut Belegen:",null,"31.05.",0]
["Saldo laut Rewe:",null,{"$f":"C18","v":"31.05."},0]
["Saldo laut Belegen:",null,"30.06.",0]
["Saldo laut Rewe:",null,{"$f":"C20","v":"30.06."},0]
["Saldo laut Belegen:",null,"31.07.",0]
["Saldo laut Rewe:",null,{"$f":"C22","v":"31.07."},0]
["Saldo laut Belegen:",null,"31.08.",0]
["Saldo laut Rewe:",null,{"$f":"C24","v":"31.08."},0]
["Saldo laut Belegen:",null,"30.09.",0]
["Saldo laut Rewe:",null,{"$f":"C26","v":"30.09."},0]
["Saldo laut Belegen:",null,"31.10.",0]
["Saldo laut Rewe:",null,{"$f":"C28","v":"31.10."},0]
["Saldo laut Belegen:",null,"30.11.",0]
["Saldo laut Rewe:",null,{"$f":"C30","v":"30.11."},0]
["Saldo laut Belegen:",null,"31.12.",0]
["Saldo laut Rewe:",null,{"$f":"C32","v":"31.12."},0]
[]
["6. Prüfungsvermerk der/des ausführenden Mitarbeiter/in:",null,"Monat:","Kürzel Mitarb."]
["Der/die Mitarbeiter/in bestätigt mit seinem/ihrem nachfolgenden Kürzel,",null,1]
["dass alle oben genannten Prüfungen vollständig und korrekt durchgeführt worden sind.",null,2]
[null,null,3]
[null,null,4]
[null,null,5]
[null,null,6]
[null,null,7]
[null,null,8]
[null,null,9]
[null,null,10]
[null,null,11]
[null,null,12]
[]
["7. Buchungssätze:","keine"]

{"sheet":"1590","index":20,"n_rows":38,"n_cols":4,"rows_kept":38,"cut":false,"hidden":false,"merged":[]}
["Jahr:",{"$f":"Stammblatt!$C$4","v":0}]
["Mandantennummer:",{"$f":"Stammblatt!$C$5","v":0}]
["Mandantenname:",{"$f":"Stammblatt!$C$6","v":0}]
[]
["1. Konto/Kontenbereich: ",1590]
["2. Thema: ","Durchlaufende Posten"]
["3. Prüfungsziel: ","Saldo muss immer 0 EUR betragen."]
["4. Folgende Belege müssen vorliegen:","keine"]
["5. Erläuterungen/Berechnungen/Infos:","Saldo muss immer 0 EUR betragen."]
[null,"Ausnahmen davon sind nicht zulässig."]
["Saldo:",null,"31.01.",0]
[{"$f":"A11","v":"Saldo:"},null,"28.02.",0]
["Saldo:",null,"31.03.",0]
["Saldo:",null,"30.04.",0]
["Saldo:",null,"31.05.",0]
["Saldo:",null,"30.06.",0]
["Saldo:",null,"31.07.",0]
["Saldo:",null,"31.08.",0]
["Saldo:",null,"30.09.",0]
["Saldo:",null,"31.10.",0]
["Saldo:",null,"30.11.",0]
["Saldo:",null,"31.12.",0]
[]
["6. Prüfungsvermerk der/des ausführenden Mitarbeiter/in:",null,"Monat:","Kürzel Mitarb."]
["Der/die Mitarbeiter/in bestätigt mit seinem/ihrem nachfolgenden Kürzel,",null,1]
["dass alle oben genannten Prüfungen vollständig und korrekt durchgeführt worden sind.",null,2]
[null,null,3]
[null,null,4]
[null,null,5]
[null,null,6]
[null,null,7]
[null,null,8]
[null,null,9]
[null,null,10]
[null,null,11]
[null,null,12]
[]
["7. Buchungssätze:","keine"]

{"sheet":"1600-1659 Verb.aLuL","index":21,"n_rows":49,"n_cols":4,"rows_kept":49,"cut":false,"hidden":true,"merged":[]}
["Jahr:"]
["Mandantennummer:"]
["Mandantenname:"]
[]
["1. Konto/Kontenbereich: ","1600-1659"]
["2. Thema: ","Verbindlichkeiten aus Lieferungen und Leistungen"]
["3. Prüfungsziel: ","Saldo muss mit OPOS-Liste übereinstimmen."]
["4. Folgende Belege müssen vorliegen:","OPOS-Liste"]
["5. Erläuterungen/Berechnungen/Infos:","keine"]
["Saldo laut \"OPOS-Liste\":",null,"31.01.",0]
["Saldo laut Rewe:",null,{"$f":"C10","v":"31.01."},0]
[{"$f":"A10","v":"Saldo laut \"OPOS-Liste\":"},null,"28.02.",0]
["Saldo laut Rewe:",null,{"$f":"C12","v":"28.02."},0]
["Saldo laut \"OPOS-Liste\":",null,"31.03.",0]
["Saldo laut Rewe:",null,{"$f":"C14","v":"31.03."},0]
["Saldo laut \"OPOS-Liste\":",null,"30.04.",0]
["Saldo laut Rewe:",null,{"$f":"C16","v":"30.04."},0]
["Saldo laut \"OPOS-Liste\":",null,"31.05.",0]
["Saldo laut Rewe:",null,{"$f":"C18","v":"31.05."},0]
["Saldo laut \"OPOS-Liste\":",null,"30.06.",0]
["Saldo laut Rewe:",null,{"$f":"C20","v":"30.06."},0]
["Saldo laut \"OPOS-Liste\":",null,"31.07.",0]
["Saldo laut Rewe:",null,{"$f":"C22","v":"31.07."},0]
["Saldo laut \"OPOS-Liste\":",null,"31.08.",0]
["Saldo laut Rewe:",null,{"$f":"C24","v":"31.08."},0]
["Saldo laut \"OPOS-Liste\":",null,"30.09.",0]
["Saldo laut Rewe:",null,{"$f":"C26","v":"30.09."},0]
["Saldo laut \"OPOS-Liste\":",null,"31.10.",0]
["Saldo laut Rewe:",null,{"$f":"C28","v":"31.10."},0]
["Saldo laut \"OPOS-Liste\":",null,"30.11.",0]
["Saldo laut Rewe:",null,{"$f":"C30","v":"30.11."},0]
["Saldo laut \"OPOS-Liste\":",null,"31.12.",0]
["Saldo laut Rewe:",null,{"$f":"C32","v":"31.12."},0]
[]
["6. Prüfungsvermerk der/des ausführenden Mitarbeiter/in:",null,"Monat:","Kürzel Mitarb."]
["Der/die Mitarbeiter/in bestätigt mit seinem/ihrem nachfolgenden Kürzel,",null,1]
["dass alle oben genannten Prüfungen vollständig und korrekt durchgeführt worden sind.",null,2]
[null,null,3]
[null,null,4]
[null,null,5]
[null,null,6]
[null,null,7]
[null,null,8]
[null,null,9]
[null,null,10]
[null,null,11]
[null,null,12]
[]
["7. Buchungssätze:","keine"]

{"sheet":"1700-1759 Verb. Sonst.","index":22,"n_rows":49,"n_cols":4,"rows_kept":49,"cut":false,"hidden":true,"merged":[]}
["Jahr:"]
["Mandantennummer:"]
["Mandantenname:"]
[]
["1. Konto/Kontenbereich: ","1700-1759"]
["2. Thema: ","Verbindlichkeiten sonstige"]
["3. Prüfungsziel: ","Saldo muss mit Belegen übereinstimmen."]
["4. Folgende Belege müssen vorliegen:","Belege"]
["5. Erläuterungen/Berechnungen/Infos:","keine"]
["Saldo laut Belegen:",null,"31.01.",0]
["Saldo laut Rewe:",null,{"$f":"C10","v":"31.01."},0]
[{"$f":"A10","v":"Saldo laut Belegen:"},null,"28.02.",0]
["Saldo laut Rewe:",null,{"$f":"C12","v":"28.02."},0]
["Saldo laut Belegen:",null,"31.03.",0]
["Saldo laut Rewe:",null,{"$f":"C14","v":"31.03."},0]
["Saldo laut Belegen:",null,"30.04.",0]
["Saldo laut Rewe:",null,{"$f":"C16","v":"30.04."},0]
["Saldo laut Belegen:",null,"31.05.",0]
["Saldo laut Rewe:",null,{"$f":"C18","v":"31.05."},0]
["Saldo laut Belegen:",null,"30.06.",0]
["Saldo laut Rewe:",null,{"$f":"C20","v":"30.06."},0]
["Saldo laut Belegen:",null,"31.07.",0]
["Saldo laut Rewe:",null,{"$f":"C22","v":"31.07."},0]
["Saldo laut Belegen:",null,"31.08.",0]
["Saldo laut Rewe:",null,{"$f":"C24","v":"31.08."},0]
["Saldo laut Belegen:",null,"30.09.",0]
["Saldo laut Rewe:",null,{"$f":"C26","v":"30.09."},0]
["Saldo laut Belegen:",null,"31.10.",0]
["Saldo laut Rewe:",null,{"$f":"C28","v":"31.10."},0]
["Saldo laut Belegen:",null,"30.11.",0]
["Saldo laut Rewe:",null,{"$f":"C30","v":"30.11."},0]
["Saldo laut Belegen:",null,"31.12.",0]
["Saldo laut Rewe:",null,{"$f":"C32","v":"31.12."},0]
[]
["6. Prüfungsvermerk der/des ausführenden Mitarbeiter/in:",null,"Monat:","Kürzel Mitarb."]
["Der/die Mitarbeiter/in bestätigt mit seinem/ihrem nachfolgenden Kürzel,",null,1]
["dass alle oben genannten Prüfungen vollständig und korrekt durchgeführt worden sind.",null,2]
[null,null,3]
[null,null,4]
[null,null,5]
[null,null,6]
[null,null,7]
[null,null,8]
[null,null,9]
[null,null,10]
[null,null,11]
[null,null,12]
[]
["7. Buchungssätze:","keine"]

{"sheet":"1792 Verb. Verr.kto.","index":23,"n_rows":38,"n_cols":4,"rows_kept":38,"cut":false,"hidden":true,"merged":[]}
["Jahr:"]
["Mandantennummer:"]
["Mandantenname:"]
[]
["1. Konto/Kontenbereich: ",1792]
["2. Thema: ","Verbindlichkeiten Verrechnungskonto"]
["3. Prüfungsziel: ","Saldo muss mit Zinsrechnung aus Wirtschaftsberatung übereinstimmen."]
["4. Folgende Belege müssen vorliegen:","Zinsrechnung aus DATEV-Wirtschaftsberatung"]
["5. Erläuterungen/Berechnungen/Infos:","Der Saldo wird nur 1x am 31.12. genau berechnet und unterjährig geschätzt."]
["Saldo laut Schätzung:",null,"31.01.",0]
[{"$f":"A10","v":"Saldo laut Schätzung:"},null,"28.02.",0]
["Saldo laut Schätzung:",null,"31.03.",0]
["Saldo laut Schätzung:",null,"30.04.",0]
["Saldo laut Schätzung:",null,"31.05.",0]
["Saldo laut Schätzung:",null,"30.06.",0]
["Saldo laut Schätzung:",null,"31.07.",0]
["Saldo laut Schätzung:",null,"31.08.",0]
["Saldo laut Schätzung:",null,"30.09.",0]
["Saldo laut Schätzung:",null,"31.10.",0]
["Saldo laut Schätzung:",null,"30.11.",0]
["Saldo laut Schätzung:",null,"31.12.",0]
["Saldo laut \"Zinsrechnung DATEV-Wirtschaftsberatung\":",null,"31.12.",0]
[]
["6. Prüfungsvermerk der/des ausführenden Mitarbeiter/in:",null,"Monat:","Kürzel Mitarb."]
["Der/die Mitarbeiter/in bestätigt mit seinem/ihrem nachfolgenden Kürzel,",null,1]
["dass alle oben genannten Prüfungen vollständig und korrekt durchgeführt worden sind.",null,2]
[null,null,3]
[null,null,4]
[null,null,5]
[null,null,6]
[null,null,7]
[null,null,8]
[null,null,9]
[null,null,10]
[null,null,11]
[null,null,12]
[]
["7. Buchungssätze:","keine"]

{"sheet":"3970-3980 Best.Waren+RHB","index":24,"n_rows":50,"n_cols":4,"rows_kept":50,"cut":false,"hidden":true,"merged":[]}
["Jahr:"]
["Mandantennummer:"]
["Mandantenname:"]
[]
["1. Konto/Kontenbereich: ","3970-3980"]
["2. Thema: ","Bestand Rohstoffe bzw. Waren"]
["3. Prüfungsziel: ","Saldo muss mit Belegen übereinstimmen."]
["4. Folgende Belege müssen vorliegen:","Inventur des Mdt"]
["5. Erläuterungen/Berechnungen/Infos:","Inventurbestände so einbuchen, wie sie vorliegen (mtl., vj. hj. j.)"]
["Saldo laut Inventur:",null,"31.01.",0]
["Saldo laut Rewe:",null,{"$f":"C10","v":"31.01."},0]
[{"$f":"A10","v":"Saldo laut Inventur:"},null,"28.02.",0]
["Saldo laut Rewe:",null,{"$f":"C12","v":"28.02."},0]
["Saldo laut Inventur:",null,"31.03.",0]
["Saldo laut Rewe:",null,{"$f":"C14","v":"31.03."},0]
["Saldo laut Inventur:",null,"30.04.",0]
["Saldo laut Rewe:",null,{"$f":"C16","v":"30.04."},0]
["Saldo laut Inventur:",null,"31.05.",0]
["Saldo laut Rewe:",null,{"$f":"C18","v":"31.05."},0]
["Saldo laut Inventur:",null,"30.06.",0]
["Saldo laut Rewe:",null,{"$f":"C20","v":"30.06."},0]
["Saldo laut Inventur:",null,"31.07.",0]
["Saldo laut Rewe:",null,{"$f":"C22","v":"31.07."},0]
["Saldo laut Inventur:",null,"31.08.",0]
["Saldo laut Rewe:",null,{"$f":"C24","v":"31.08."},0]
["Saldo laut Inventur:",null,"30.09.",0]
["Saldo laut Rewe:",null,{"$f":"C26","v":"30.09."},0]
["Saldo laut Inventur:",null,"31.10.",0]
["Saldo laut Rewe:",null,{"$f":"C28","v":"31.10."},0]
["Saldo laut Inventur:",null,"30.11.",0]
["Saldo laut Rewe:",null,{"$f":"C30","v":"30.11."},0]
["Saldo laut Inventur:",null,"31.12.",0]
["Saldo laut Rewe:",null,{"$f":"C32","v":"31.12."},0]
[]
["6. Prüfungsvermerk der/des ausführenden Mitarbeiter/in:",null,"Monat:","Kürzel Mitarb."]
["Der/die Mitarbeiter/in bestätigt mit seinem/ihrem nachfolgenden Kürzel,",null,1]
["dass alle oben genannten Prüfungen vollständig und korrekt durchgeführt worden sind.",null,2]
[null,null,3]
[null,null,4]
[null,null,5]
[null,null,6]
[null,null,7]
[null,null,8]
[null,null,9]
[null,null,10]
[null,null,11]
[null,null,12]
[]
["7. Buchungssätze:","3980 / 3960 (Erhöhung Bestand)"]
[null,"3960 / 3980 (Senkung Bestand)"]

{"sheet":"4100-4199 nur bei Selbstbuchern","index":25,"n_rows":49,"n_cols":4,"rows_kept":49,"cut":false,"hidden":false,"merged":[]}
["Jahr:",{"$f":"Stammblatt!$C$4","v":0}]
["Mandantennummer:",{"$f":"Stammblatt!$C$5","v":0}]
["Mandantenname:",{"$f":"Stammblatt!$C$6","v":0}]
[]
["1. Konto/Kontenbereich: ","4100-4199"]
["2. Thema: ","Lohnverbuchung (nur bei Selbstbuchern)"]
["3. Prüfungsziel: ","Lohnverbuchung muss mit den Lohnprogrammauswertungen des Mdt übereinstimmen."]
["4. Folgende Belege müssen vorliegen:","Lohnprogrammauswertungen des Mdt übereinstimmen."]
["5. Erläuterungen/Berechnungen/Infos:","keine"]
["Saldo laut Lohnauswertungen des Mdt:",null,"31.01.",0]
["Saldo laut Rewe:",null,{"$f":"C10","v":"31.01."},0]
[{"$f":"A10","v":"Saldo laut Lohnauswertungen des Mdt:"},null,"28.02.",0]
["Saldo laut Rewe:",null,{"$f":"C12","v":"28.02."},0]
["Saldo laut Lohnauswertungen des Mdt:",null,"31.03.",0]
["Saldo laut Rewe:",null,{"$f":"C14","v":"31.03."},0]
["Saldo laut Lohnauswertungen des Mdt:",null,"30.04.",0]
["Saldo laut Rewe:",null,{"$f":"C16","v":"30.04."},0]
["Saldo laut Lohnauswertungen des Mdt:",null,"31.05.",0]
["Saldo laut Rewe:",null,{"$f":"C18","v":"31.05."},0]
["Saldo laut Lohnauswertungen des Mdt:",null,"30.06.",0]
["Saldo laut Rewe:",null,{"$f":"C20","v":"30.06."},0]
["Saldo laut Lohnauswertungen des Mdt:",null,"31.07.",0]
["Saldo laut Rewe:",null,{"$f":"C22","v":"31.07."},0]
["Saldo laut Lohnauswertungen des Mdt:",null,"31.08.",0]
["Saldo laut Rewe:",null,{"$f":"C24","v":"31.08."},0]
["Saldo laut Lohnauswertungen des Mdt:",null,"30.09.",0]
["Saldo laut Rewe:",null,{"$f":"C26","v":"30.09."},0]
["Saldo laut Lohnauswertungen des Mdt:",null,"31.10.",0]
["Saldo laut Rewe:",null,{"$f":"C28","v":"31.10."},0]
["Saldo laut Lohnauswertungen des Mdt:",null,"30.11.",0]
["Saldo laut Rewe:",null,{"$f":"C30","v":"30.11."},0]
["Saldo laut Lohnauswertungen des Mdt:",null,"31.12.",0]
["Saldo laut Rewe:",null,{"$f":"C32","v":"31.12."},0]
[]
["6. Prüfungsvermerk der/des ausführenden Mitarbeiter/in:",null,"Monat:","Kürzel Mitarb."]
["Der/die Mitarbeiter/in bestätigt mit seinem/ihrem nachfolgenden Kürzel,",null,1]
["dass alle oben genannten Prüfungen vollständig und korrekt durchgeführt worden sind.",null,2]
[null,null,3]
[null,null,4]
[null,null,5]
[null,null,6]
[null,null,7]
[null,null,8]
[null,null,9]
[null,null,10]
[null,null,11]
[null,null,12]
[]
["7. Buchungssätze:","keine"]

{"sheet":"2000-4999","index":26,"n_rows":39,"n_cols":4,"rows_kept":39,"cut":false,"hidden":false,"merged":[]}
["Jahr:",{"$f":"Stammblatt!$C$4","v":0}]
["Mandantennummer:",{"$f":"Stammblatt!$C$5","v":0}]
["Mandantenname:",{"$f":"Stammblatt!$C$6","v":0}]
[]
["1. Konto/Kontenbereich: ","2000-4999"]
["2. Thema: ","G+V Konten"]
["3. Prüfungsziel: ","keine"]
["4. Folgende Belege müssen vorliegen:","keine"]
["5. Erläuterungen/Berechnungen/Infos:","Es werden nur wichtige Sachverhalte erläutert."]
[null,"Zur freien Verfügung:"]
[]
[]
[]
[]
[]
[]
[]
[]
[]
[]
[]
[]
[]
[]
["6. Prüfungsvermerk der/des ausführenden Mitarbeiter/in:",null,"Monat:","Kürzel Mitarb."]
["Der/die Mitarbeiter/in bestätigt mit seinem/ihrem nachfolgenden Kürzel,",null,1]
["dass alle oben genannten Prüfungen vollständig und korrekt durchgeführt worden sind.",null,2]
[null,null,3]
[null,null,4]
[null,null,5]
[null,null,6]
[null,null,7]
[null,null,8]
[null,null,9]
[null,null,10]
[null,null,11]
[null,null,12]
[]
["7. Buchungssätze:"]

{"sheet":"7000-7140 Teilfertige","index":27,"n_rows":50,"n_cols":4,"rows_kept":50,"cut":false,"hidden":true,"merged":[]}
["Jahr:"]
["Mandantennummer:"]
["Mandantenname:"]
[]
["1. Konto/Kontenbereich: ","7000-7140"]
["2. Thema: ","Teilfertige Leistungen"]
["3. Prüfungsziel: ","Saldo muss mit Belegen übereinstimmen."]
["4. Folgende Belege müssen vorliegen:","Inventur des Mdt "]
["5. Erläuterungen/Berechnungen/Infos:","Inventur so einbuchen, wie sie vorliegen (mtl., vj. hj. j.)"]
["Saldo laut Inventur:",null,"31.01.",0]
["Saldo laut Rewe:",null,{"$f":"C10","v":"31.01."},0]
[{"$f":"A10","v":"Saldo laut Inventur:"},null,"28.02.",0]
["Saldo laut Rewe:",null,{"$f":"C12","v":"28.02."},0]
["Saldo laut Inventur:",null,"31.03.",0]
["Saldo laut Rewe:",null,{"$f":"C14","v":"31.03."},0]
["Saldo laut Inventur:",null,"30.04.",0]
["Saldo laut Rewe:",null,{"$f":"C16","v":"30.04."},0]
["Saldo laut Inventur:",null,"31.05.",0]
["Saldo laut Rewe:",null,{"$f":"C18","v":"31.05."},0]
["Saldo laut Inventur:",null,"30.06.",0]
["Saldo laut Rewe:",null,{"$f":"C20","v":"30.06."},0]
["Saldo laut Inventur:",null,"31.07.",0]
["Saldo laut Rewe:",null,{"$f":"C22","v":"31.07."},0]
["Saldo laut Inventur:",null,"31.08.",0]
["Saldo laut Rewe:",null,{"$f":"C24","v":"31.08."},0]
["Saldo laut Inventur:",null,"30.09.",0]
["Saldo laut Rewe:",null,{"$f":"C26","v":"30.09."},0]
["Saldo laut Inventur:",null,"31.10.",0]
["Saldo laut Rewe:",null,{"$f":"C28","v":"31.10."},0]
["Saldo laut Inventur:",null,"30.11.",0]
["Saldo laut Rewe:",null,{"$f":"C30","v":"30.11."},0]
["Saldo laut Inventur:",null,"31.12.",0]
["Saldo laut Rewe:",null,{"$f":"C32","v":"31.12."},0]
[]
["6. Prüfungsvermerk der/des ausführenden Mitarbeiter/in:",null,"Monat:","Kürzel Mitarb."]
["Der/die Mitarbeiter/in bestätigt mit seinem/ihrem nachfolgenden Kürzel,",null,1]
["dass alle oben genannten Prüfungen vollständig und korrekt durchgeführt worden sind.",null,2]
[null,null,3]
[null,null,4]
[null,null,5]
[null,null,6]
[null,null,7]
[null,null,8]
[null,null,9]
[null,null,10]
[null,null,11]
[null,null,12]
[]
["7. Buchungssätze:","7080 / 8970 (Erhöhung Bestand)"]
[null,"8970 / 7080 (Senkung Bestand)"]

{"sheet":"4957 mit ER","index":28,"n_rows":13,"n_cols":4,"rows_kept":13,"cut":false,"hidden":false,"merged":[]}
["Jahr:",{"$f":"Stammblatt!$C$4","v":0}]
["Mandantennummer:",{"$f":"Stammblatt!$C$5","v":0}]
["Mandantenname:",{"$f":"Stammblatt!$C$6","v":0}]
[]
["1. Konto/Kontenbereich: ",4957]
["2. Thema: ","ER-Pauschale"]
["3. Prüfungsziel: ","Das Honorar laut ER-Vertrag mit Steuerkanzlei muss mit Fibu übereinstimmen."]
["4. Folgende Belege müssen vorliegen:","ER-Vertrag mit Steuerkanzlei "]
["5. Erläuterungen/Berechnungen/Infos:","Der nicht abzugsfähige Privatanteil im Honorar wird wie folgt umgebucht:"]
[null,"1% vom Jahreshonorar (Jahres-ER-Pauschale)"]
[]
[null,"ER-Pauschale mtl. laut ER-Vertrag:",null,{"$f":"Stammblatt!G7","v":0}]
[null,"Mtl. Umbuchung Privatanteil 1% der ER-Pauschale (BS: 1800/904957):",null,{"$f":"D12*1%*1.19","v":0}]

{"sheet":"8100-8199","index":29,"n_rows":38,"n_cols":4,"rows_kept":38,"cut":false,"hidden":false,"merged":[]}
["Jahr:",{"$f":"Stammblatt!$C$4","v":0}]
["Mandantennummer:",{"$f":"Stammblatt!$C$5","v":0}]
["Mandantenname:",{"$f":"Stammblatt!$C$6","v":0}]
[]
["1. Konto/Kontenbereich: ","8100-8199"]
["2. Thema: ","Erlöse umsatzsteuerfrei"]
["3. Prüfungsziel: ","Sicherstellung, dass diese Erlöse ust-frei sind."]
["4. Folgende Belege müssen vorliegen:","Gesetzestext oder Literatur "]
["5. Erläuterungen/Berechnungen/Infos:","Es muss aus haftungsrechtlichen Gründen ausdrücklich geprüft werden,"]
[null,"dass diese Erlöse ust-frei sind."]
["Saldo laut Rewe:",null,"31.01.",0]
[{"$f":"A11","v":"Saldo laut Rewe:"},null,"28.02.",0]
["Saldo laut Rewe:",null,"31.03.",0]
["Saldo laut Rewe:",null,"30.04.",0]
["Saldo laut Rewe:",null,"31.05.",0]
["Saldo laut Rewe:",null,"30.06.",0]
["Saldo laut Rewe:",null,"31.07.",0]
["Saldo laut Rewe:",null,"31.08.",0]
["Saldo laut Rewe:",null,"30.09.",0]
["Saldo laut Rewe:",null,"31.10.",0]
["Saldo laut Rewe:",null,"30.11.",0]
["Saldo laut Rewe:",null,"31.12.",0]
[]
["6. Prüfungsvermerk der/des ausführenden Mitarbeiter/in:",null,"Monat:","Kürzel Mitarb."]
["Der/die Mitarbeiter/in bestätigt mit seinem/ihrem nachfolgenden Kürzel,",null,1]
["dass alle oben genannten Prüfungen vollständig und korrekt durchgeführt worden sind.",null,2]
[null,null,3]
[null,null,4]
[null,null,5]
[null,null,6]
[null,null,7]
[null,null,8]
[null,null,9]
[null,null,10]
[null,null,11]
[null,null,12]
[]
["7. Buchungssätze:","keine"]

{"sheet":"8300-8399","index":30,"n_rows":38,"n_cols":4,"rows_kept":38,"cut":false,"hidden":false,"merged":[]}
["Jahr:",{"$f":"Stammblatt!$C$4","v":0}]
["Mandantennummer:",{"$f":"Stammblatt!$C$5","v":0}]
["Mandantenname:",{"$f":"Stammblatt!$C$6","v":0}]
[]
["1. Konto/Kontenbereich: ","8300-8399"]
["2. Thema: ","Erlöse Umsatzsteuersatz 7%, 16%, § 13b UStG"]
["3. Prüfungsziel: ","Sicherstellung, dass diese Erlöse ermäßigt oder nach § 13b UStG versteuert werden."]
["4. Folgende Belege müssen vorliegen:","Gesetzestext oder Literatur "]
["5. Erläuterungen/Berechnungen/Infos:","Es muss aus haftungsrechtlichen Gründen ausdrücklich geprüft werden,"]
[null,"dass diese Erlöse ust-ermäßigt sind."]
["Saldo laut Rewe:",null,"31.01.",0]
[{"$f":"A11","v":"Saldo laut Rewe:"},null,"28.02.",0]
["Saldo laut Rewe:",null,"31.03.",0]
["Saldo laut Rewe:",null,"30.04.",0]
["Saldo laut Rewe:",null,"31.05.",0]
["Saldo laut Rewe:",null,"30.06.",0]
["Saldo laut Rewe:",null,"31.07.",0]
["Saldo laut Rewe:",null,"31.08.",0]
["Saldo laut Rewe:",null,"30.09.",0]
["Saldo laut Rewe:",null,"31.10.",0]
["Saldo laut Rewe:",null,"30.11.",0]
["Saldo laut Rewe:",null,"31.12.",0]
[]
["6. Prüfungsvermerk der/des ausführenden Mitarbeiter/in:",null,"Monat:","Kürzel Mitarb."]
["Der/die Mitarbeiter/in bestätigt mit seinem/ihrem nachfolgenden Kürzel,",null,1]
["dass alle oben genannten Prüfungen vollständig und korrekt durchgeführt worden sind.",null,2]
[null,null,3]
[null,null,4]
[null,null,5]
[null,null,6]
[null,null,7]
[null,null,8]
[null,null,9]
[null,null,10]
[null,null,11]
[null,null,12]
[]
["7. Buchungssätze:","keine"]

{"sheet":"8900-8959","index":31,"n_rows":52,"n_cols":13,"rows_kept":52,"cut":false,"hidden":false,"merged":[[4,6,4,12],[7,6,12,6],[7,7,7,8],[7,9,7,10],[7,11,7,12],[12,7,12,12]]}
["Jahr:",{"$f":"Stammblatt!$C$4","v":0}]
["Mandantennummer:",{"$f":"Stammblatt!$C$5","v":0}]
["Mandantenname:",{"$f":"Stammblatt!$C$6","v":0}]
[]
["1. Konto/Kontenbereich: ","8900-8959",null,null,null,null,"Eigenverbrauch / unentgeltliche Wertabgaben (Sachentnahmen)"]
["2. Thema: ","Eigenverbrauch Waren (kein Kfz)"]
["3. Prüfungsziel: ","Saldo muss mit Belegen oder Eigenverbrauchstabelle der DATEV übereinstimmen.",null,null,null,null,"Pauschbeträge ohne USt für 2013 und 2014"]
["4. Folgende Belege müssen vorliegen:","Belege oder Eigenverbrauchstabelle des DATEV-Heftes (Stichwort unter \"Eigenverbrauch\")",null,null,null,null,"Gewerbezweig","Ermäßigter Steuersatz",null,"Voller Steuersatz",null,"Insgesamt"]
[null,"Die Tabelle ist rechts von dieser Liste zu sehen."]
[null,"Beim Telefon-EV können wir 20% der Nettotelefonkosten ansetzen, wenn das zu zu hohen Ergebnissen"]
[null,"führt, kann er auch geringer ausfallen, aber bitte immer den %-Satz in Buchungssatz schreiben."]
["5. Erläuterungen/Berechnungen/Infos:","keine",null,null,null,null,null,2013,2014,2013,2014,2013,2014]
["Saldo laut Belegen/DATEV-Tabelle:",null,"31.01.",0,null,null,null,"in €"]
["Saldo laut Rewe:",null,{"$f":"C13","v":"31.01."},0,null,null,"Bäckerei",1133,1176,382,397,1515,1573]
[{"$f":"A13","v":"Saldo laut Belegen/DATEV-Tabelle:"},null,"28.02.",0,null,null,"Fleischerei",878,912,789,820,1667,1732]
["Saldo laut Rewe:",null,{"$f":"C15","v":"28.02."},0,null,null,"Gaststätten aller Art Abgaben von \na) kalten Speisen \nb) kalten und warmen  Speisen","1.107\n1.527\n","\n\n1.150\n1.586\n","929\n1.667\n","965\n1.731\n","2.036\n3.194\n","2.115\n3.3.17\n"]
["Saldo laut Belegen/DATEV-Tabelle:",null,"31.03.",0,null,null,"Getränkeeinzelhandel",90,93,280,291,370,384]
["Saldo laut Rewe:",null,{"$f":"C17","v":"31.03."},0,null,null,"Café und Konditorei",1095,1137,611,635,1706,1772]
["Saldo laut Belegen/DATEV-Tabelle:",null,"30.04.",0,null,null,"Milch, Milcherzeugnisse, Fettwaren und Eier (Einzelhandel)",611,635,64,67,675,702]
["Saldo laut Rewe:",null,{"$f":"C19","v":"30.04."},0,null,null,"Nahrungs.-und Genussmittel (Einzelhandel)",1247,1295,713,740,1960,2035]
["Saldo laut Belegen/DATEV-Tabelle:",null,"31.05.",0,null,null,"Obst, Gemüse, Südfrüchte und Kartoffeln (Einzelhandel)",280,291,204,212,484,503]
["Saldo laut Rewe:",null,{"$f":"C21","v":"31.05."},0]
["Saldo laut Belegen/DATEV-Tabelle:",null,"30.06.",0]
["Saldo laut Rewe:",null,{"$f":"C23","v":"30.06."},0]
["Saldo laut Belegen/DATEV-Tabelle:",null,"31.07.",0]
["Saldo laut Rewe:",null,{"$f":"C25","v":"31.07."},0]
["Saldo laut Belegen/DATEV-Tabelle:",null,"31.08.",0]
["Saldo laut Rewe:",null,{"$f":"C27","v":"31.08."},0]
["Saldo laut Belegen/DATEV-Tabelle:",null,"30.09.",0]
["Saldo laut Rewe:",null,{"$f":"C29","v":"30.09."},0]
["Saldo laut Belegen/DATEV-Tabelle:",null,"31.10.",0]
["Saldo laut Rewe:",null,{"$f":"C31","v":"31.10."},0]
["Saldo laut Belegen/DATEV-Tabelle:",null,"30.11.",0]
["Saldo laut Rewe:",null,{"$f":"C33","v":"30.11."},0]
["Saldo laut Belegen/DATEV-Tabelle:",null,"31.12.",0]
["Saldo laut Rewe:",null,{"$f":"C35","v":"31.12."},0]
[]
["6. Prüfungsvermerk der/des ausführenden Mitarbeiter/in:",null,"Monat:","Kürzel Mitarb."]
["Der/die Mitarbeiter/in bestätigt mit seinem/ihrem nachfolgenden Kürzel,",null,1]
["dass alle oben genannten Prüfungen vollständig und korrekt durchgeführt worden sind.",null,2]
[null,null,3]
[null,null,4]
[null,null,5]
[null,null,6]
[null,null,7]
[null,null,8]
[null,null,9]
[null,null,10]
[null,null,11]
[null,null,12]
[]
["7. Buchungssätze:","keine"]

{"sheet":"8921+8924","index":32,"n_rows":49,"n_cols":16,"rows_kept":49,"cut":false,"hidden":false,"merged":[[5,6,5,15]]}
["Jahr:",{"$f":"Stammblatt!$C$4","v":0}]
["Mandantennummer:",{"$f":"Stammblatt!$C$5","v":0}]
["Mandantenname:",{"$f":"Stammblatt!$C$6","v":0}]
[]
["1. Konto/Kontenbereich: ","8921-8924"]
["2. Thema: ","Private Kfz-Nutzung (nur für Einzelfirmen und Personengesellschaften)",null,null,null,null,"Erläuterungen zur privaten Kfz-Nutzung des Jahres ???"]
["3. Prüfungsziel: ","Saldo muss mit unserer Berechnung rechts übereinstimmen."]
["4. Folgende Belege müssen vorliegen:","Unsere Berechnung \"Erläuterungen zur privaten Kfz-Nutzung\""]
["5. Erläuterungen/Berechnungen/Infos:","keine",null,null,null,null,"Kfz","Anschaffung","Erstzulassung","Kraftstoff","VoSt-Abzug","Kennzeichen","BLP","Priv.-Nutz.","Anzahl","Priv.-Nutz."]
["Saldo laut \"Erläuterungen zur privaten Kfz-Nutzung\":",null,"31.01.",0,null,null,null,"Datum","Datum",null,"bei Kauf %",null,"in EUR","Monat","Monate","Jahr"]
["Saldo laut Rewe:",null,{"$f":"C10","v":"31.01."},0]
[{"$f":"A10","v":"Saldo laut \"Erläuterungen zur privaten Kfz-Nutzung\":"},null,"28.02.",0]
["Saldo laut Rewe:",null,{"$f":"C12","v":"28.02."},0,null,null,null,null,null,null,null,null,0,{"$f":"M13*1%","v":0},12,{"$f":"N13*O13","v":0}]
["Saldo laut \"Erläuterungen zur privaten Kfz-Nutzung\":",null,"31.03.",0]
["Saldo laut Rewe:",null,{"$f":"C14","v":"31.03."},0,null,null,null,null,null,null,null,null,0,{"$f":"M15*1%","v":0},12,{"$f":"N15*O15","v":0}]
["Saldo laut \"Erläuterungen zur privaten Kfz-Nutzung\":",null,"30.04.",0]
["Saldo laut Rewe:",null,{"$f":"C16","v":"30.04."},0,null,null,null,null,null,null,null,null,0,{"$f":"M17*1%","v":0},12,{"$f":"N17*O17","v":0}]
["Saldo laut \"Erläuterungen zur privaten Kfz-Nutzung\":",null,"31.05.",0]
["Saldo laut Rewe:",null,{"$f":"C18","v":"31.05."},0]
["Saldo laut \"Erläuterungen zur privaten Kfz-Nutzung\":",null,"30.06.",0,null,null,"Summen",null,null,null,null,null,null,{"$f":"SUM(N12:N19)","v":0},null,{"$f":"SUM(P12:P19)","v":0}]
["Saldo laut Rewe:",null,{"$f":"C20","v":"30.06."},0,null,null,"Abzug von 20% nicht steuerbaren Kosten",null,null,null,"BS: 1880/8924",null,null,{"$f":"-N20*20%","v":0},null,{"$f":"-P20*20%","v":0}]
["Saldo laut \"Erläuterungen zur privaten Kfz-Nutzung\":",null,"31.07.",0,null,null,"Zwischensumme",null,null,null,null,null,null,{"$f":"SUM(N20:N21)","v":0},null,{"$f":"SUM(P20:P21)","v":0}]
["Saldo laut Rewe:",null,{"$f":"C22","v":"31.07."},0]
["Saldo laut \"Erläuterungen zur privaten Kfz-Nutzung\":",null,"31.08.",0,null,null,"zzgl. gesetzliche USt",0.19,null,null,null,null,null,{"$f":"N22*H24","v":0},null,{"$f":"P22*H24","v":0}]
["Saldo laut Rewe:",null,{"$f":"C24","v":"31.08."},0,null,null,"Summe",null,null,null,"BS: 1880/8921",null,null,{"$f":"SUM(N22:N24)","v":0},null,{"$f":"SUM(P22:P24)","v":0}]
["Saldo laut \"Erläuterungen zur privaten Kfz-Nutzung\":",null,"30.09.",0]
["Saldo laut Rewe:",null,{"$f":"C26","v":"30.09."},0]
["Saldo laut \"Erläuterungen zur privaten Kfz-Nutzung\":",null,"31.10.",0,null,null,"Ermittlung der Fahrten Wohnung - Betrieb:"]
["Saldo laut Rewe:",null,{"$f":"C28","v":"31.10."},0,null,null,"BLP ?? x 0,03% x ?? km einfach =",null,null,null,"BS: 4679/4680",null,{"$f":"M13","v":0},{"$f":"M29*0.03%*76","v":0},12,{"$f":"N29*O29","v":0}]
["Saldo laut \"Erläuterungen zur privaten Kfz-Nutzung\":",null,"30.11.",0,null,null," - Entfernungsp. ?? Tage x ?? km einfach x 0,30 EUR/km =",null,null,null,"BS: 4678/4679",null,null,0,12,{"$f":"N30*O30","v":0}]
["Saldo laut Rewe:",null,{"$f":"C30","v":"30.11."},0,null,null,null,null,null,null,"Gewinnerhöhung:",null,null,{"$f":"N29-N30","v":0},null,{"$f":"P29-P30","v":0}]
["Saldo laut \"Erläuterungen zur privaten Kfz-Nutzung\":",null,"31.12.",0]
["Saldo laut Rewe:",null,{"$f":"C32","v":"31.12."},0,null,null,"Die 1% Regelung ist mit Lohnart 2501 abzurechnen."]
[null,null,null,null,null,null,"Die Fahrten Wohnung - Betriebsstätte sind mit Lohnart 2420 abzurechnen."]
["6. Prüfungsvermerk der/des ausführenden Mitarbeiter/in:",null,"Monat:","Kürzel Mitarb.",null,null,"Die Entfernungspauschale ist mit Lohnart 2440 abzurechnen."]
["Der/die Mitarbeiter/in bestätigt mit seinem/ihrem nachfolgenden Kürzel,",null,1]
["dass alle oben genannten Prüfungen vollständig und korrekt durchgeführt worden sind.",null,2]
[null,null,3]
[null,null,4]
[null,null,5]
[null,null,6]
[null,null,7]
[null,null,8]
[null,null,9]
[null,null,10]
[null,null,11]
[null,null,12]
[]
["7. Buchungssätze:","siehe rechts"]

{"sheet":"EV Kfz GmbH","index":33,"n_rows":49,"n_cols":16,"rows_kept":49,"cut":false,"hidden":true,"merged":[[5,6,5,15]]}
["Jahr:"]
["Mandantennummer:"]
["Mandantenname:"]
[]
["1. Konto/Kontenbereich: ","8921-8924"]
["2. Thema: ","Private Kfz-Nutzung (nur für GmbH)",null,null,null,null,"Erläuterungen zur privaten Kfz-Nutzung des Jahres ???"]
["3. Prüfungsziel: ","Saldo muss mit unserer Berechnung rechts übereinstimmen."]
["4. Folgende Belege müssen vorliegen:","Unsere Berechnung \"Erläuterungen zur privaten Kfz-Nutzung\""]
["5. Erläuterungen/Berechnungen/Infos:","keine",null,null,null,null,"Kfz","Anschaffung","Erstzulassung","Kraftstoff","VoSt-Abzug","Kennzeichen","BLP","Priv.-Nutz.","Anzahl","Priv.-Nutz."]
["Saldo laut \"Erläuterungen zur privaten Kfz-Nutzung\":",null,"31.01.",0,null,null,null,"Datum","Datum",null,"bei Kauf %",null,"in EUR","Monat","Monate","Jahr"]
["Saldo laut Rewe:",null,{"$f":"C10","v":"31.01."},0]
[{"$f":"A10","v":"Saldo laut \"Erläuterungen zur privaten Kfz-Nutzung\":"},null,"28.02.",0]
["Saldo laut Rewe:",null,{"$f":"C12","v":"28.02."},0,null,null,null,null,null,null,null,null,0,{"$f":"M13*1%","v":0},12,{"$f":"N13*O13","v":0}]
["Saldo laut \"Erläuterungen zur privaten Kfz-Nutzung\":",null,"31.03.",0]
["Saldo laut Rewe:",null,{"$f":"C14","v":"31.03."},0,null,null,null,null,null,null,null,null,0,{"$f":"M15*1%","v":0},12,{"$f":"N15*O15","v":0}]
["Saldo laut \"Erläuterungen zur privaten Kfz-Nutzung\":",null,"30.04.",0]
["Saldo laut Rewe:",null,{"$f":"C16","v":"30.04."},0,null,null,null,null,null,null,null,null,0,{"$f":"M17*1%","v":0},12,{"$f":"N17*O17","v":0}]
["Saldo laut \"Erläuterungen zur privaten Kfz-Nutzung\":",null,"31.05.",0]
["Saldo laut Rewe:",null,{"$f":"C18","v":"31.05."},0]
["Saldo laut \"Erläuterungen zur privaten Kfz-Nutzung\":",null,"30.06.",0,null,null,"Summen inkl. 19% Ust",null,null,null,null,null,null,{"$f":"SUM(N12:N19)","v":0},null,{"$f":"SUM(P12:P19)","v":0}]
["Saldo laut Rewe:",null,{"$f":"C20","v":"30.06."},0]
["Saldo laut \"Erläuterungen zur privaten Kfz-Nutzung\":",null,"31.07.",0,null,null,"Ermittlung der Fahrten Wohnung - Betrieb:"]
["Saldo laut Rewe:",null,{"$f":"C22","v":"31.07."},0,null,null,"BLP ?? x 0,03% x ?? km einfach =",null,null,null,null,null,{"$f":"M7","v":0},0,12,{"$f":"N23*O23","v":0}]
["Saldo laut \"Erläuterungen zur privaten Kfz-Nutzung\":",null,"31.08.",0,null,null," - Entfernungsp. ?? Tage x ?? km einfach x 0,30 EUR/km =",null,null,null,null,null,null,0,12,{"$f":"N24*O24","v":0}]
["Saldo laut Rewe:",null,{"$f":"C24","v":"31.08."},0]
["Saldo laut \"Erläuterungen zur privaten Kfz-Nutzung\":",null,"30.09.",0]
["Saldo laut Rewe:",null,{"$f":"C26","v":"30.09."},0,null,null,"Die 1% Regelung ist mit Lohnart 2501 abzurechnen."]
["Saldo laut \"Erläuterungen zur privaten Kfz-Nutzung\":",null,"31.10.",0,null,null,"Die Fahrten Wohnung - Betriebsstätte sind mit Lohnart 2420 abzurechnen."]
["Saldo laut Rewe:",null,{"$f":"C28","v":"31.10."},0,null,null,"Die Entfernungspauschale ist mit Lohnart 2440 abzurechnen."]
["Saldo laut \"Erläuterungen zur privaten Kfz-Nutzung\":",null,"30.11.",0]
["Saldo laut Rewe:",null,{"$f":"C30","v":"30.11."},0]
["Saldo laut \"Erläuterungen zur privaten Kfz-Nutzung\":",null,"31.12.",0]
["Saldo laut Rewe:",null,{"$f":"C32","v":"31.12."},0]
[]
["6. Prüfungsvermerk der/des ausführenden Mitarbeiter/in:",null,"Monat:","Kürzel Mitarb."]
["Der/die Mitarbeiter/in bestätigt mit seinem/ihrem nachfolgenden Kürzel,",null,1]
["dass alle oben genannten Prüfungen vollständig und korrekt durchgeführt worden sind.",null,2]
[null,null,3]
[null,null,4]
[null,null,5]
[null,null,6]
[null,null,7]
[null,null,8]
[null,null,9]
[null,null,10]
[null,null,11]
[null,null,12]
[]
["7. Buchungssätze:","siehe rechts"]

{"sheet":"Plausi-Prüf.","index":34,"n_rows":50,"n_cols":21,"rows_kept":50,"cut":false,"hidden":false,"merged":[]}
["Jahr:",{"$f":"Stammblatt!$C$4","v":0}]
["Mandantennummer:",{"$f":"Stammblatt!$C$5","v":0}]
["Mandantenname:",{"$f":"Stammblatt!$C$6","v":0},null,null,null,null,"Plausibilitätsprüfungen"]
[]
["1. Konto/Kontenbereich: ","keine",null,null,null,null,"Aufschlagsatz"]
["2. Thema: ","Plausibilitätsprüfung Rohaufschlagsatz",null,null,null,null,"Rohgewinn II"]
["3. Prüfungsziel: ","Plausibilitätsprüfung Rohaufschlagsatz"]
["4. Folgende Belege müssen vorliegen:","keine",null,null,null,null,null,null,null,"Januar","Februar","März","April","Mai","Juni","Juli","August","September","Oktober","November","Dezember"]
["5. Erläuterungen/Berechnungen/Infos:","In schwarzgeldgefährdeten Branchen (Gaststätte etc.) muss diese ",null,null,null,null,"wirtschaftlicher Umsatz",8140,null,6871.12,6871.12,6871.12,6871.12,6871.12,6871.12,6871.12,6871.12,6871.12,6871.12,6871.12,15770]
[null,"Berechnung durchgeführt werden.",null,null,null,null,null,8400,null,234446.05,234446.05,234446.05,234446.05,234446.05,234446.05,234446.05,234446.05,234446.05,234446.05,234446.05,234446.05]
["Saldo laut Berechnung rechts:",null,"31.01.",0,null,null,null,8409,null,917.17,917.17,917.17,917.17,917.17,917.17,917.17,917.17,917.17,917.17,917.17,917.17]
["Saldo laut Rewe:",null,{"$f":"C11","v":"31.01."},0,null,null,null,8736,null,-0.79,-0.79,-0.79,-0.79,-0.79,-0.79,-0.79,-0.79,-0.79,-0.79,-0.79,-0.79]
[{"$f":"A11","v":"Saldo laut Berechnung rechts:"},null,"28.02.",0,null,null,null,null,null,{"$f":"SUM(J9:J12)","v":242233.55},{"$f":"SUM(K9:K12)","v":242233.55},242233.55,242233.55,242233.55,242233.55,242233.55,242233.55,242233.55,242233.55,242233.55,251132.43]
["Saldo laut Rewe:",null,{"$f":"C13","v":"28.02."},0]
["Saldo laut Berechnung rechts:",null,"31.03.",0]
["Saldo laut Rewe:",null,{"$f":"C15","v":"31.03."},0,null,null,"Wareneinsatz",3106,null,7374.41,7374.41,7374.41,7374.41,7374.41,7374.41,7374.41,7374.41,7374.41,7374.41,7374.41,7374.41]
["Saldo laut Berechnung rechts:",null,"30.04.",0,null,null,null,3200,null,-1023.17,-1023.17,-1023.17,-1023.17,-1023.17,-1023.17,-1023.17,-1023.17,-1023.17,-1023.17,-1023.17,-1023.17]
["Saldo laut Rewe:",null,{"$f":"C17","v":"30.04."},0,null,null,null,3400,null,104605.1,104605.1,104605.1,104605.1,104605.1,104605.1,104605.1,104605.1,104605.1,104605.1,104605.1,111115]
["Saldo laut Berechnung rechts:",null,"31.05.",0,null,null,null,3425,null,240.48,240.48,240.48,240.48,240.48,240.48,240.48,240.48,240.48,240.48,240.48,240.48]
["Saldo laut Rewe:",null,{"$f":"C19","v":"31.05."},0,null,null,null,3736,null,0,0,0,0,0,0,0,0,0,0,0,0]
["Saldo laut Berechnung rechts:",null,"30.06.",0,null,null,null,3760,null,0,0,0,0,0,0,0,0,0,0,0,0]
["Saldo laut Rewe:",null,{"$f":"C21","v":"30.06."},0,null,null,null,3960,null,2405.2600000000002,2405.2600000000002,2405.2600000000002,2405.2600000000002,2405.2600000000002,2405.2600000000002,2405.2600000000002,2405.2600000000002,2405.2600000000002,2405.2600000000002,2405.2600000000002,2405.2600000000002]
["Saldo laut Berechnung rechts:",null,"31.07.",0,null,null,null,null,null,{"$f":"SUM(J17:J22)","v":106227.67},{"$f":"SUM(K17:K22)","v":106227.67},106227.67,106227.67,106227.67,106227.67,106227.67,106227.67,106227.67,106227.67,106227.67,112737.56999999999]
["Saldo laut Rewe:",null,{"$f":"C23","v":"31.07."},0]
["Saldo laut Berechnung rechts:",null,"31.08.",0,null,null,{"$f":"G9","v":"wirtschaftlicher Umsatz"},null,null,{"$f":"J13","v":242233.55},{"$f":"K13","v":242233.55},242233.55,242233.55,242233.55,242233.55,242233.55,242233.55,242233.55,242233.55,242233.55,251132.43]
["Saldo laut Rewe:",null,{"$f":"C25","v":"31.08."},0,null,null,{"$f":"G16","v":"Wareneinsatz"},null,null,{"$f":"-J23","v":-106227.67},{"$f":"-K23","v":-106227.67},-106227.67,-106227.67,-106227.67,-106227.67,-106227.67,-106227.67,-106227.67,-106227.67,-106227.67,-112737.56999999999]
["Saldo laut Berechnung rechts:",null,"30.09.",0,null,null,"Rohgewinn I",null,null,{"$f":"SUM(J25:J26)","v":136005.88},{"$f":"SUM(K25:K26)","v":136005.88},136005.88,136005.88,136005.88,136005.88,136005.88,136005.88,136005.88,136005.88,136005.88,138394.85999999999]
["Saldo laut Rewe:",null,{"$f":"C27","v":"30.09."},0,null,null,"Löhne lt. BG",null,null,-42934,-42933,-42932,-42931,-42930,-42929,-42928,-42927,-42926,-42925,-42924,-42923]
["Saldo laut Berechnung rechts:",null,"31.10.",0,null,null,"Rohgewinn II",null,null,{"$f":"SUM(J27:J28)","v":93071.88},93072.88,93073.88,93074.880000000005,93075.88,93076.88,93077.88,93078.88,93079.88,93080.88,93081.88,95471.859999999986]
["Saldo laut Rewe:",null,{"$f":"C29","v":"31.10."},0]
["Saldo laut Berechnung rechts:",null,"30.11.",0,null,null,"Rohgewinn II : w. Umsatz",null,null,{"$f":"J29/J25","v":0.38422373779354679},0.38422786604085196,0.38423199428815707,0.38423612253546219,0.38424025078276736,0.38424437903007247,0.38424850727737758,0.38425263552468275,0.38425676377198786,0.38426089201929298,0.38426502026659815,0.3801653971970087]
["Saldo laut Rewe:",null,{"$f":"C31","v":"30.11."},0]
["Saldo laut Berechnung rechts:",null,"31.12.",0,null,null,null,null,"ER"]
["Saldo laut Rewe:",null,{"$f":"C33","v":"31.12."},0,null,null,null,null,"Datum"]
[null,null,null,null,null,null,null,null,"C"]
["6. Prüfungsvermerk der/des ausführenden Mitarbeiter/in:",null,"Monat:","Kürzel Mitarb."]
["Der/die Mitarbeiter/in bestätigt mit seinem/ihrem nachfolgenden Kürzel,",null,1,null,null,null,"wirtschaftl. Umsatz bis 300.000 €, 36-55%/45%"]
["dass alle oben genannten Prüfungen vollständig und korrekt durchgeführt worden sind.",null,2]
[null,null,3,null,null,null,"Siehe Richtsatzsammlung des BMF unter Link:",null,null,null,"Download: Richtsatzsammlung für das Kalenderjahr 2013 (PDF, 382,1 KB) ",null,null,null,null,null,null,null,"zurück zum Ablauf"]
[null,null,4]
[null,null,5]
[null,null,6]
[null,null,7]
[null,null,8]
[null,null,9]
[null,null,10]
[null,null,11]
[null,null,12]
[]
["7. Buchungssätze:","siehe rechts"]

{"sheet":"USt-Konsolidierung","index":35,"n_rows":50,"n_cols":12,"rows_kept":50,"cut":false,"hidden":false,"merged":[[4,9,4,11],[5,9,5,11]]}
["Jahr:",{"$f":"Stammblatt!$C$4","v":0}]
["Mandantennummer:",{"$f":"Stammblatt!$C$5","v":0}]
["Mandantenname:",{"$f":"Stammblatt!$C$6","v":0}]
[]
["1. Konto/Kontenbereich: ","relevante USt-Konten",null,null,null,null,null,null,null,"Erläuterungen zur Umsatzsteuererklärung ????"]
["2. Thema: ","Umsatzsteuer-Konsolidierung",null,null,null,null,null,null,null,"(nur bei Konsolidierung erforderlich)"]
["3. Prüfungsziel: ","Saldo muss mit unserer Berechnung rechts übereinstimmen."]
["4. Folgende Belege müssen vorliegen:","Unsere Berechnung \"Erläuterungen zur Umsatzsteuererklärung\""]
["5. Erläuterungen/Berechnungen/Infos:","Diese Berechnung ist nur notwendig, wenn USt-relevante Sachverhalte",null,null,null,null,null,null,null,"Umsätze 19% (Zeile 33)","Erlöse aus ???"]
[null,"nicht über Rewe gebucht werden."]
["Saldo laut \"Erläuterungen zur Umsatzsteuererklärung\":",null,"31.01.",0,null,null,null,null,null,"Umsätze 19% (Zeile 33)","Erlöse aus ???"]
["Saldo laut Rewe:",null,{"$f":"C11","v":"31.01."},0]
[{"$f":"A11","v":"Saldo laut \"Erläuterungen zur Umsatzsteuererklärung\":"},null,"28.02.",0,null,null,null,null,null,"Unentgeltliche Wertabgabe (Zeile 35)","Erlöse aus ???"]
["Saldo laut Rewe:",null,{"$f":"C13","v":"28.02."},0]
["Saldo laut \"Erläuterungen zur Umsatzsteuererklärung\":",null,"31.03.",0,null,null,null,null,null,"Summe Umsätze",null,{"$f":"SUM(L9:L14)","v":0}]
["Saldo laut Rewe:",null,{"$f":"C15","v":"31.03."},0,null,null,null,null,null,"darauf 19% Ust (Zeile 60)",null,{"$f":"L15*19%","v":0}]
["Saldo laut \"Erläuterungen zur Umsatzsteuererklärung\":",null,"30.04.",0]
["Saldo laut Rewe:",null,{"$f":"C17","v":"30.04."},0,null,null,null,null,null,"Vorsteuer (Zeile 62)","Erlöse aus ???"]
["Saldo laut \"Erläuterungen zur Umsatzsteuererklärung\":",null,"31.05.",0]
["Saldo laut Rewe:",null,{"$f":"C19","v":"31.05."},0,null,null,null,null,null,"Vorsteuer (Zeile 62)","Erlöse aus ???"]
["Saldo laut \"Erläuterungen zur Umsatzsteuererklärung\":",null,"30.06.",0]
["Saldo laut Rewe:",null,{"$f":"C21","v":"30.06."},0,null,null,null,null,null,"Vorsteuer i.g.E. (Zeile 63)"]
["Saldo laut \"Erläuterungen zur Umsatzsteuererklärung\":",null,"31.07.",0]
["Saldo laut Rewe:",null,{"$f":"C23","v":"31.07."},0,null,null,null,null,null,"Umsatzsteuer i.g.E. (Zeile 93)",null,{"$f":"-L22","v":0}]
["Saldo laut \"Erläuterungen zur Umsatzsteuererklärung\":",null,"31.08.",0]
["Saldo laut Rewe:",null,{"$f":"C25","v":"31.08."},0,null,null,null,null,null,"Summe Vorsteuer",null,{"$f":"SUM(L18:L25)","v":0}]
["Saldo laut \"Erläuterungen zur Umsatzsteuererklärung\":",null,"30.09.",0]
["Saldo laut Rewe:",null,{"$f":"C27","v":"30.09."},0,null,null,null,null,null,"Summe Ust-Zahllast",null,{"$f":"L16-L26","v":0}]
["Saldo laut \"Erläuterungen zur Umsatzsteuererklärung\":",null,"31.10.",0]
["Saldo laut Rewe:",null,{"$f":"C29","v":"31.10."},0,null,null,null,null,null,"Ust-Vorauszahlungssoll (Zeile 108)"]
["Saldo laut \"Erläuterungen zur Umsatzsteuererklärung\":",null,"30.11.",0]
["Saldo laut Rewe:",null,{"$f":"C31","v":"30.11."},0,null,null,null,null,null,"Umsatzsteuer-Abschlusszahlung (+)/Erstattung (-)",null,{"$f":"L28-L30","v":0}]
["Saldo laut \"Erläuterungen zur Umsatzsteuererklärung\":",null,"31.12.",0]
["Saldo laut Rewe:",null,{"$f":"C33","v":"31.12."},0]
[]
["6. Prüfungsvermerk der/des ausführenden Mitarbeiter/in:",null,"Monat:","Kürzel Mitarb."]
["Der/die Mitarbeiter/in bestätigt mit seinem/ihrem nachfolgenden Kürzel,",null,1]
["dass alle oben genannten Prüfungen vollständig und korrekt durchgeführt worden sind.",null,2]
[null,null,3]
[null,null,4]
[null,null,5]
[null,null,6]
[null,null,7]
[null,null,8]
[null,null,9]
[null,null,10]
[null,null,11]
[null,null,12]
[]
["7. Buchungssätze:","siehe rechts"]

{"sheet":"Überleitung HB zu StB","index":36,"n_rows":65,"n_cols":107,"rows_kept":65,"cut":false,"hidden":true,"merged":[[0,18,0,19],[1,18,1,19],[3,27,3,29],[4,22,4,26],[4,27,4,29],[42,19,42,22],[43,19,43,22],[65,18,65,29],[66,18,66,29],[67,18,67,29],[68,18,68,29],[16,0,16,1],[3,11,3,15],[4,0,4,4],[4,5,4,9],[4,11,4,15],[5,0,5,15],[6,0,8,1],[6,13,8,13],[11,0,11,1],[12,0,12,1],[13,0,13,1],[14,0,14,1],[15,0,15,1],[30,0,30,1],[17,0,17,1],[18,0,18,1],[19,0,19,1],[20,0,20,1],[23,0,23,1],[24,0,24,1],[25,0,25,1],[26,0,26,1],[27,0,27,1],[28,0,28,1],[29,0,29,1],[42,0,42,15],[43,0,43,15],[31,0,31,1],[32,0,32,1],[38,0,38,15],[39,0,39,15],[40,0,40,15],[41,0,41,15]]}
[]
["Hilfe",null,null,null,null,null,null,null,null,null,null,null,null,null,null,null,null,null,"Hilfe"]
[]
[{"$f":"CONCATENATE([2]Programmeinstellungen!G19,\" \",YEAR(WJEnde))","v":{"$error":"#NAME?"}},null,null,null,null,null,null,null,null,null,null,null,null,null,null,null,null,null,{"$f":"CONCATENATE([2]Programmeinstellungen!Y19,\" \",YEAR(WJEnde))","v":{"$error":"#REF!"}}]
[null,null,null,null,null,{"$f":"[2]Programmeinstellungen!B63","v":"Überleitungsrechnung"},null,null,null,null,null,null,null,null,null,null,null,null,null,null,null,null,{"$f":"[2]Programmeinstellungen!T64","v":{"$error":"#REF!"}},null,null,null,null,null,null,null,null,null,null,null,null,null,null,null,null,null,null,null,null,null,null,null,null,null,null,null,null,null,null,null,null,null,null,null,null,null,null,null,null,null,null,null,null,null,null,null,null,null,null,null,null,null,null,null,null,null,null,null,null,null,null,null,null,null,null,null,null,null,null,null,null,null,null,null,null,null,null,null,null,null,null,null,{"$f":"[2]Berechnungen!B516","v":1}]
["ENTFÄLLT BEI GEWINNERMITTLUNG NACH § 4 (3) ESTG"]
["Posten",null,null,null,null,"Handelsbilanz",null,"Handelsbilanz",null,"Steuerbilanz",null,"Steuerbilanz",null,"Gewinn-\nkorrektur\nin Euro",null,null,null,null,null,null,null,null,null,"Gesamt","<<Name>>","<<Name>>","<<Name>>","<<Name>>","<<Name>>","<<Name>>"]
[null,null,null,null,null,{"$f":"WJBeginn-1","v":{"$error":"#NAME?"}},null,{"$f":"WJEnde","v":{"$error":"#NAME?"}},null,{"$f":"WJBeginn-1","v":{"$error":"#NAME?"}},null,{"$f":"WJEnde","v":{"$error":"#NAME?"}},null,null,null,null,null,null,null,null,null,null,null,{"$f":"SUM(Y8:AD8)","v":1},1,0,0,0,0,0]
[null,null,null,null,null,"in Euro",null,"in Euro",null,"in Euro",null,"in Euro",null,null,null,null,null,null,null,null,null,null,null,"in Euro","in Euro","in Euro","in Euro","in Euro","in Euro","in Euro"]
[null,null,null,null,null,null,null,null,null,null,null,null,null,null,null,null,null,null,"Ergebnis lt. Handelsbilanz",null,null,null,null,0,{"$f":"IF(X8=100%,\"\",\"Achtung!    Aufteilungsprozente ergeben nicht 100!\")","v":""}]
["Aktivposten",null,null,null,null,null,null,null,null,null,null,null,null,null,null,null,null,null,"Vorabgewinn",null,null,null,null,{"$f":"SUM(Y11:AD11)","v":0},0,0,0,0,0,0]
["Aktivierte Entwicklungskosten",null,null,null,null,null,null,null,null,null,null,null,null,{"$f":"F12-H12-J12+L12","v":0},null,null,null,null,"Restgewinn",null,null,null,null,{"$f":"X10-X11","v":0},{"$f":"ROUND($G$13*Y$8,2)","v":0},0,0,0,0,0]
["Sachanlagen",null,null,null,null,null,null,null,null,null,null,null,null,0]
["Vorräte",null,null,null,null,null,null,null,null,null,null,null,null,0,null,null,null,null,"Handelsrechtliche Gewinnverteilung",null,null,null,null,{"$f":"SUM(Y14:AD14)","v":0},{"$f":"SUM(Y11:Y12)","v":0},0,0,0,0,0]
["Wertpapiere",null,null,null,null,null,null,null,null,null,null,null,null,0]
[null,null,null,null,null,null,null,null,null,null,null,null,null,0,null,null,null,null,"+/-","Ergebnis aus Überleitungsrechnung",null,null,null,{"$f":"Ergebnis_Ueberleitung","v":{"$error":"#NAME?"}},{"$f":"ROUND($G17*Y$8,2)","v":0},0,0,0,0,0]
[null,null,null,null,null,null,null,null,null,null,null,null,null,0]
[null,null,null,null,null,null,null,null,null,null,null,null,null,0,null,null,null,null,"Steuerrechtliche Gewinnverteilung",null,null,null,null,{"$f":"SUM(Y18:AD18)","v":0},{"$f":"SUM(Y14:Y16)","v":0},0,0,0,0,0]
[null,null,null,null,null,null,null,null,null,null,null,null,null,0]
[null,null,null,null,null,null,null,null,null,null,null,null,null,0,null,null,null,null,"+","Körperschaftsteuer",null,null,null,0,{"$f":"ROUND($G21*Y$8,2)","v":0},{"$f":"ROUND($G21*Z$8,2)","v":0},{"$f":"ROUND($G21*AA$8,2)","v":0},{"$f":"ROUND($G21*AB$8,2)","v":0},{"$f":"ROUND($G21*AC$8,2)","v":0},{"$f":"ROUND($G21*AD$8,2)","v":0}]
[null,null,null,null,null,null,null,null,null,null,null,null,null,0,null,null,null,null,"+","Kapitalertragsteuer",null,null,null,0,0,0,0,0,0,0]
[null,null,null,null,null,null,null,null,null,null,null,null,null,null,null,null,null,null,"+","Zinsabschlagsteuer",null,null,null,0,0,0,0,0,0,0]
["Passivposten",null,null,null,null,null,null,null,null,null,null,null,null,null,null,null,null,null,"+","Solidaritätszuschlag zur KapSt, ZaSt, KSt",null,null,null,0,0,0,0,0,0,0]
["Rücklage § 6b EStG",null,null,null,null,null,null,null,null,null,null,null,null,{"$f":"H24-F24-L24+J24","v":0},null,null,null,null,"+","Schuldzinsen nach § 4 Abs. 4a EStG",null,null,null,0,0,0,0,0,0,0]
["Pensionsrückstellung",null,null,null,null,null,null,0,null,0,null,0,null,{"$f":"H25-F25-L25+J25","v":0},null,null,null,null,"+","Verzinsung Auflösung Rücklage § 7g EStG",null,null,null,0,0,0,0,0,0,0]
["Drohverlustrückstellung",null,null,null,null,null,null,null,null,null,null,null,null,0,null,null,null,null,"+","Fahrten Wohnung - Arbeitsstätte",null,null,null,0,0,0,0,0,0,0]
[null,null,null,null,null,null,null,null,null,null,null,null,null,0,null,null,null,null,"+","nichtabzugsfähige Bewirtungskosten",null,null,null,0,0,0,0,0,0,0]
[null,null,null,null,null,null,null,null,null,null,null,null,null,0,null,null,null,null,"+","nichtabzugsfähige Geschenke",null,null,null,0,0,0,0,0,0,0]
[null,null,null,null,null,null,null,null,null,null,null,null,null,0,null,null,null,null,"+","Spenden",null,null,null,0,0,0,0,0,0,0]
[null,null,null,null,null,null,null,null,null,null,null,null,null,0,null,null,null,null,"+","Gewerbesteuer",null,null,null,0,0,0,0,0,0,0]
[null,null,null,null,null,null,null,null,null,null,null,null,null,0,null,null,null,null,"+","sonstige nichtabzugsfähige Betriebsausgaben",null,null,null,0,0,0,0,0,0,0]
[null,null,null,null,null,null,null,null,null,null,null,null,null,0,null,null,null,null,"+","Auflösung Investitionsabzugsbeträge § 7g EStG",null,null,null,0,0,0,0,0,0,0]
[null,null,null,null,null,null,null,null,null,null,null,null,null,0,null,null,null,null,"-","Bildung Investitionsabzugsbeträge § 7g EStG",null,null,null,0,0,0,0,0,0,0]
[]
["Gewinnkorrektur gesamt (+ = Gewinnerhöhung / - = Gewinnminderung)",null,null,null,null,null,null,null,null,null,null,null,null,{"$f":"SUM(N12:N33)","v":0},null,null,null,null,"Zwischensumme / Übertrag",null,null,null,null,{"$f":"SUM(X18:X33)","v":0},0,0,0,0,0,0]
[]
["Hinweise:",null,null,null,null,null,null,null,null,null,null,null,null,null,null,null,null,null,{"$f":"S35","v":"Zwischensumme / Übertrag"},null,null,null,null,{"$f":"X35","v":0},0,0,0,0,0,0]
[]
[null,null,null,null,null,null,null,null,null,null,null,null,null,null,null,null,null,null,"-","Periodenfremde Erträge lt. BP",null,null,null,0,{"$f":"ROUND($G40*Y$8,2)","v":0},0,0,0,0,0]
[null,null,null,null,null,null,null,null,null,null,null,null,null,null,null,null,null,null,"-","Dividenden (Teileinkünfteverfahren)",null,null,null,0,0,0,0,0,0,0]
[null,null,null,null,null,null,null,null,null,null,null,null,null,null,null,null,null,null,"-","Aufzinsung Körperschaftsteuerguthaben § 37 KStG",null,null,null,0,0,0,0,0,0,0]
[null,null,null,null,null,null,null,null,null,null,null,null,null,null,null,null,null,null,"-","Kinderbetreuungskosten",null,null,null,0,0,0,0,0,0,0]
[null,null,null,null,null,null,null,null,null,null,null,null,null,null,null,null,null,null,null,null,null,null,null,0,0,0,0,0,0,0]
[null,null,null,null,null,null,null,null,null,null,null,null,null,null,null,null,null,null,null,null,null,null,null,0,{"$f":"ROUND($G45*Y$8,2)","v":0},{"$f":"ROUND($G45*Z$8,2)","v":0},0,{"$f":"ROUND($G45*AB$8,2)","v":0},{"$f":"ROUND($G45*AC$8,2)","v":0},{"$f":"ROUND($G45*AD$8,2)","v":0}]
[]
[null,null,null,null,null,null,null,null,null,null,null,null,null,null,null,null,null,null,"Zwischensumme / Übertrag",null,null,null,null,{"$f":"SUM(X37:X44)","v":0},0,0,0,0,0,0]
[]
[]
[null,null,null,null,null,null,null,null,null,null,null,null,null,null,null,null,null,null,"Zwischensumme",null,null,null,null,{"$f":"X46","v":0},0,0,0,0,0,0]
[]
[null,null,null,null,null,null,null,null,null,null,null,null,null,null,null,null,null,null,"+/-","Ergebnis aus Wechsel der Gewinnermittlungsart",null,null,null,{"$f":"SUM(Y51:AD51)","v":0},0,0,0,0,0,0]
[null,null,null,null,null,null,null,null,null,null,null,null,null,null,null,null,null,null,"+/-","Ergebnis Ergänzungsbilanzen",null,null,null,{"$f":"SUM(Y52:AD52)","v":0},0,0,0,0,0,0]
[]
[null,null,null,null,null,null,null,null,null,null,null,null,null,null,null,null,null,null,"=","steuerlicher Gewinn Gesamthand",null,null,null,{"$f":"SUM(Y54:AD54)","v":0},{"$f":"SUM(Y49:Y52)","v":0},0,0,0,0,0]
[]
[null,null,null,null,null,null,null,null,null,null,null,null,null,null,null,null,null,null,"Steuerlicher Sonderbereich"]
[null,null,null,null,null,null,null,null,null,null,null,null,null,null,null,null,null,null,"+","Geschäftsführergehalt",null,null,null,{"$f":"SUM(Y57:AD57)","v":0},0,0,0,0,0,0]
[null,null,null,null,null,null,null,null,null,null,null,null,null,null,null,null,null,null,"+","Haftungsvergütung",null,null,null,{"$f":"SUM(Y58:AD58)","v":0},0,0,0,0,0,0]
[null,null,null,null,null,null,null,null,null,null,null,null,null,null,null,null,null,null,"+","Zinsen (Gesellschafterdarlehen)",null,null,null,{"$f":"SUM(Y59:AD59)","v":0},0,0,0,0,0,0]
[null,null,null,null,null,null,null,null,null,null,null,null,null,null,null,null,null,null,"+/-","Ergebnis aus Sonderbilanzen",null,null,null,{"$f":"SUM(Y60:AD60)","v":0},0,0,0,0,0,0]
[]
[null,null,null,null,null,null,null,null,null,null,null,null,null,null,null,null,null,null,"=","Steuerliches Ergebnis",null,null,null,{"$f":"X54+X57+X58+X59+X60","v":0},{"$f":"SUM(Y54:Y60)","v":0},0,0,0,0,0]
[]
[]
[null,null,null,null,null,null,null,null,null,null,null,null,null,null,null,null,null,null,"Hinweise:"]

{"sheet":"0956-0963 RS GewSt+KSt","index":37,"n_rows":54,"n_cols":16,"rows_kept":54,"cut":false,"hidden":true,"merged":[[30,8,30,9],[30,10,30,11],[29,12,29,13],[29,14,29,15]]}
["Jahr:"]
["Mandantennummer:"]
["Mandantenname:"]
[]
["1. Konto/Kontenbereich: ","956-963",null,null,null,null,"Berechnung der vierteljährlichen Gewerbesteuerrückstellung",null,null,"Eingabefeld"]
["2. Thema: ","Rückstellungen für GewSt und KSt",null,null,null,null,null,null,null,"Ergebnisfeld"]
["3. Prüfungsziel: ","Die Berechnung rechts müssen mit der Fibu übereinstimmen."]
["4. Folgende Belege müssen vorliegen:","Berechnung rechts",null,null,null,null,null,null,"März","Juni","September","Dezember"]
["5. Erläuterungen/Berechnungen/Infos:","Einmal pro Jahr wird der Saldo laut unserer endgültigen Steuerberechnung abgestimmt. ",null,null,null,null,"vorl. Gewinn lt. BWA",null,10000,20000,30000,40000]
[null,"Unterjährig wird die Rückstellung laut Vorjahr oder geschätzt mit 1/12 Anteil gebucht.",null,null,null,null,"+ GewSt",null,400,800,1200,1600]
["Saldo laut Berechnung rechts:",null,"31.01.",0,null,null,"+ Hinzurechnungen",null,1000,1000,1000,1000]
[{"$f":"A11","v":"Saldo laut Berechnung rechts:"},null,"28.02.",0,null,null,"- Kürzungen",null,-1200,-1200,-1200,-1200]
["Saldo laut Berechnung rechts:",null,"31.03.",0,null,null,"= Gewerbeertrag",null,{"$f":"SUM(I9:I12)","v":10200},{"$f":"SUM(J9:J12)","v":20600},{"$f":"SUM(K9:K12)","v":31000},{"$f":"SUM(L9:L12)","v":41400}]
["Saldo laut Berechnung rechts:",null,"30.04.",0,null,null,"- anteiliger Freibetrag",24500,{"$f":"-H14*1/4","v":-6125},{"$f":"-H14*2/4","v":-12250},{"$f":"-H14*3/4","v":-18375},{"$f":"-H14","v":-24500}]
["Saldo laut Berechnung rechts:",null,"31.05.",0,null,null,"= stpfl. Gewerbeertrag",null,{"$f":"SUM(I13:I14)","v":4075},{"$f":"SUM(J13:J14)","v":8350},{"$f":"SUM(K13:K14)","v":12625},{"$f":"SUM(L13:L14)","v":16900}]
["Saldo laut Berechnung rechts:",null,"30.06.",0,null,null,"x Steuermesszahl 3,5 % = Steuermessbetrag",null,{"$f":"I15*0.035","v":142.625},{"$f":"J15*0.035","v":292.25},{"$f":"K15*0.035","v":441.87500000000006},{"$f":"L15*0.035","v":591.5}]
["Saldo laut Berechnung rechts:",null,"31.07.",0,null,null,"x Hebesatz in %","353"]
["Saldo laut Berechnung rechts:",null,"31.08.",0,null,null,"= Gewerbesteuer",null,{"$f":"I16*H17/100","v":503.46625},{"$f":"J16*H17/100","v":1031.6424999999999},{"$f":"K16*H17/100","v":1559.8187500000004},{"$f":"L16*H17/100","v":2087.9949999999999}]
["Saldo laut Berechnung rechts:",null,"30.09.",0,null,null,"- VZ lt. GuV",null,-600,-800,-1200,-1600]
["Saldo laut Berechnung rechts:",null,"31.10.",0,null,null,"= Rückstellung/Aktivierung (-)",null,{"$f":"SUM(I18:I19)","v":-96.533749999999998},{"$f":"SUM(J18:J19)","v":231.64249999999993},{"$f":"SUM(K18:K19)","v":359.81875000000036},{"$f":"SUM(L18:L19)","v":487.99499999999989}]
["Saldo laut Berechnung rechts:",null,"30.11.",0]
["Saldo laut Berechnung rechts:",null,"31.12.",0]
[]
["6. Prüfungsvermerk der/des ausführenden Mitarbeiter/in:",null,"Monat:","Kürzel Mitarb."]
["Der/die Mitarbeiter/in bestätigt mit seinem/ihrem nachfolgenden Kürzel,",null,1,null,null,null,null,null,null,null,null,"zurück zum Ablauf"]
["dass alle oben genannten Prüfungen vollständig und korrekt durchgeführt worden sind.",null,2]
[null,null,3,null,null,null,null,null,null,null,null,null,"Eingabefeld"]
[null,null,4,null,null,null,"Berechnung der vierteljährlichen Körperschaftsteuerrückstellung",null,null,null,null,null,"Ergebnisfeld"]
[null,null,5]
[null,null,6,null,null,null,null,null,null,null,null,null,"September",null,"Dezember"]
[null,null,7,null,null,null,null,null,"März",null,"Juni",null,null,30002,null,40003]
[null,null,8,null,null,null,"vorl. Gewinn lt. BWA",null,null,15000,null,20001,3000,null,4000]
[null,null,9,null,null,null,"+ nicht abziehb. Aufwendg.","KSt",1000,null,2000,null,200,null,300]
[null,null,10,null,null,null,null,"SolZ, SolZ auf KapSt",100,null,200,null,3000,null,3000]
[null,null,11,null,null,null,null,"GewSt-Aufwand",1000,null,2000,null,500,null,500]
[null,null,12,null,null,null,null,"KapSt",500,null,500,null,1200,null,1200]
[null,null,null,null,null,null,null,"n. abzf. Betr.ausg.",1200,null,1200,null,700,{"$f":"SUM(M32:M37)","v":8600},700,{"$f":"SUM(O32:O37)","v":9700}]
["7. Buchungssätze:","4320 / 956 (Zuführung GewSt-Rückstellung)",null,null,null,null,null,"Spenden",600,{"$f":"SUM(I33:I38)","v":4400},600,{"$f":"SUM(K33:K38)","v":6500},null,102,null,103]
[null,"956 / 2283 (Auflösung GewSt-Rückstellung)",null,null,null,null,"+/-sonst. Mehrungen/Minderungen",4000,null,100,null,100,null,{"$f":"SUM(N31:N38)","v":38704},null,{"$f":"SUM(P31:P38)","v":49806}]
[null,null,null,null,null,null,"Summe der Einkünfte",null,null,{"$f":"SUM(J32:J39)","v":19500},null,{"$f":"SUM(L32:L39)","v":26601},null,{"$f":"-M37","v":-700},null,{"$f":"-O37","v":-700}]
["Umsatz","Sollkonto / Habenkonto","Datum","Buchungstext",null,null,"- abziehbare Spenden",null,null,{"$f":"-I38","v":-600},null,{"$f":"-K38","v":-600},null,{"$f":"SUM(N39:N40)","v":38004},null,{"$f":"SUM(P39:P40)","v":49106}]
[null,null,"31.01.",null,null,null,"Gesamtbetrag d. Einkünfte",15,null,{"$f":"SUM(J40:J41)","v":18900},null,{"$f":"SUM(L40:L41)","v":26001},null,{"$f":"-H39*3/4","v":-3000},null,{"$f":"-H39","v":-4000}]
[null,null,"28.02.",null,null,null,"- Verlustabzug anteilig",null,null,{"$f":"-H39*1/4","v":-1000},null,{"$f":"-H39*2/4","v":-2000},null,{"$f":"SUM(N41:N42)","v":35004},null,{"$f":"SUM(P41:P42)","v":45106}]
[null,null,"31.03.",null,null,null,"zu versteuerndes Einkommen",null,null,{"$f":"SUM(J42:J43)","v":17900},null,{"$f":"SUM(L42:L43)","v":24001}]
[null,null,"30.04.",null,null,null,null,null,null,null,null,null,null,{"$f":"N43*0.15","v":5250.5999999999995},null,{"$f":"P43*0.15","v":6765.9}]
[null,null,"31.05.",null,null,null,"Körperschaftsteuer in %",null,null,{"$f":"J44*0.15","v":2685},null,{"$f":"L44*0.15","v":3600.15},null,{"$f":"-M32","v":-3000},null,{"$f":"-O32","v":-4000}]
[null,null,"30.06.",null,null,null,"- KSt-VZ",5.5,null,{"$f":"-I33","v":-1000},null,{"$f":"-K33","v":-2000},null,{"$f":"-M35","v":-500},null,{"$f":"-O35","v":-500}]
[null,null,"31.07.",null,null,null,"- KapSt",null,null,{"$f":"-I36","v":-500},null,{"$f":"-K36","v":-500},null,{"$f":"SUM(N45:N47)","v":1750.5999999999995},null,{"$f":"SUM(P45:P47)","v":2265.8999999999996}]
[null,null,"31.08.",null,null,null,"= Rückstellung/Aktivierung (-)",null,null,{"$f":"SUM(J46:J48)","v":1185},null,{"$f":"SUM(L46:L48)","v":1100.1500000000001}]
[null,null,"30.09.",null,null,null,null,null,null,null,null,null,null,{"$f":"N45*0.055","v":288.78299999999996},null,{"$f":"P45*0.055","v":372.12449999999995}]
[null,null,"31.10.",null,null,null,"SolZ in % der KSt",null,null,{"$f":"J46*0.055","v":147.67500000000001},null,{"$f":"L46*0.055","v":198.00825},null,{"$f":"-M33","v":-200},null,{"$f":"-O33","v":-300}]
[null,null,"30.11.",null,null,null,"- SolZ-VZ",null,null,{"$f":"-I34","v":-100},null,{"$f":"-K34","v":-200},null,{"$f":"SUM(N50:N51)","v":88.782999999999959},null,{"$f":"SUM(P50:P51)","v":72.124499999999955}]
[null,null,"31.12.",null,null,null,"= Rückstellung/Aktivierung (-)",null,null,{"$f":"SUM(J51:J52)","v":47.675000000000011},null,{"$f":"SUM(L51:L52)","v":-1.9917499999999961}]
[null,null,null,null,null,null,null,null,null,null,null,null,null,"zurück zum Ablauf"]

{"sheet":"Checkliste Anhang","index":38,"n_rows":115,"n_cols":103,"rows_kept":115,"cut":false,"hidden":true,"merged":[[15,2,15,4],[2,5,2,9],[3,3,3,4],[3,7,3,9],[7,2,7,4],[8,2,8,4],[9,2,9,4],[10,2,10,4],[11,2,11,4],[12,2,12,4],[13,2,13,4],[14,2,14,4],[28,2,28,4],[16,2,16,4],[17,2,17,4],[18,2,18,4],[20,2,20,4],[21,2,21,4],[22,2,22,4],[23,2,23,4],[24,2,24,4],[25,2,25,4],[26,2,26,4],[27,2,27,4],[40,2,40,4],[29,2,29,4],[30,2,30,4],[31,2,31,4],[32,2,32,4],[33,2,33,4],[34,2,34,4],[35,2,35,4],[36,2,36,4],[37,2,37,4],[38,2,38,4],[39,2,39,4],[53,2,53,4],[41,2,41,4],[42,2,42,4],[43,2,43,4],[44,2,44,4],[45,2,45,4],[46,2,46,4],[48,2,48,4],[49,2,49,4],[50,2,50,4],[51,2,51,4],[52,2,52,4],[67,2,67,4],[54,2,54,4],[55,2,55,4],[56,2,56,4],[57,2,57,4],[58,2,58,4],[60,2,60,4],[61,2,61,4],[62,2,62,4],[64,2,64,4],[65,2,65,4],[66,2,66,4],[82,2,82,4],[68,2,68,4],[69,2,69,4],[70,2,70,4],[72,2,72,4],[73,2,73,4],[74,2,74,4],[75,2,75,4],[77,2,77,4],[78,2,78,4],[79,2,79,4],[80,2,80,4],[95,2,95,4],[83,2,83,4],[84,2,84,4],[85,2,85,4],[87,2,87,4],[88,2,88,4],[89,2,89,4],[90,2,90,4],[91,2,91,4],[92,2,92,4],[93,2,93,4],[94,2,94,4],[103,2,103,7],[96,2,96,4],[97,2,97,4],[98,2,98,4],[99,2,99,4],[100,2,100,4],[101,2,101,4]]}
[null,null,null,null,null,null,null,null,null,null,null,null,null,null,null,null,null,null,null,null,null,null,null,null,null,null,null,null,null,null,null,null,null,null,null,null,null,null,null,null,null,null,null,null,null,null,null,null,null,null,null,null,null,null,null,null,null,null,null,null,null,null,null,null,null,null,null,null,null,null,null,null,null,null,null,null,null,null,null,null,null,null,null,null,null,null,null,null,null,null,null,null,null,null,null,null,null,null,null,null,null,null,{"$f":"[2]Berechnungen!B416","v":1}]
["Hilfe"]
[{"$f":"CONCATENATE([2]Programmeinstellungen!G19,\" \",YEAR(WJEnde))","v":{"$error":"#NAME?"}},null,null,null,null,{"$f":"[2]Programmeinstellungen!$G$23","v":"Werner & Wollscheid StB"}]
[null,null,null,{"$f":"[2]Programmeinstellungen!B67","v":"Checkliste Anhang"}]
[]
[null,null,"Größenklasse auswählen:"]
[]
[null,null,"Allgemeine Pflichtangaben",null,null,"kleine KapG","mittlere KapG","große KapG","erledigt"]
[null,null,"Bilanzierungs- und Bewertungsmethoden (§ 284 Abs. 2 Nr. 1 HGB)",null,null,"ja","ja","ja"]
[null,null,"Durchbrechung der Darstellungsstetigkeit (§ 265 Abs. 1 S. 2 HGB)",null,null,"ja","ja","ja"]
[null,null,"Keine Vergleichbarkeit mit dem Vorjahr (§ 265 Abs. 2 S. 2 HGB)",null,null,"ja","ja","ja"]
[null,null,"Anpassung der Vorjahreszahlen (§ 265 Abs. 2 S. 3 HGB)",null,null,"ja","ja","ja"]
[null,null,"Verschiedene Gliederungsvorschriften bei mehreren Geschäftszweigen (§ 265 Abs. 4 HGB)",null,null,"ja","ja","ja"]
[null,null,"Währungsumrechnung (§ 284 Abs. 2 Nr. 2 HGB)",null,null,"ja","ja","ja"]
[null,null,"Abweichung der Methoden mit Einfluss auf Vermögens-, Finanz- und Ertragslage (§ 284 Abs. 2 Nr. 3 HGB)",null,null,"ja","ja","ja"]
[null,null,"Einbeziehung der Fremdkapitalzinsen in Herstellungskosten (§ 284 Abs. 2 Nr. 5 HGB)",null,null,"ja","ja","ja"]
[null,null,"Besondere Umstände, die dazu führen, dass der Jahresabschluss kein den tatsächlichen Verhältnissen entsprechendes Bild der Vermögens-, Finanz- und Ertragslage vermittelt (§ 264 Abs. 2 S. 2 HGB)",null,null,"ja","ja","ja"]
[null,null,"Unterschiedsbeträge bei Anwendung Gruppenbewertung/Verbrauchsfolgeverfahren bei erheblicher Abweichung zum Börsen-/Marktpreis (§§ 240 Abs. 4, 256 S. 1, 284 Abs. 2 Nr. 4 HGB)",null,null,"nein","ja","ja"]
[null,null,"Art, Umfang, beizulegende Zeitwerte, angewendete Bewertungsmethode für jede Kategorie derivativer Finanzinstrumente sowie Angabe des Bilanzpostens, in dem der Buchwert erfasst ist (§ 285 S. 1 Nr. 18 und Nr. 19 HGB)",null,null,"nein","ja","ja"]
[]
[null,null,"Pflichtangaben zur Bilanz",null,null,"kleine KapG","mittlere KapG","große KapG","erledigt"]
[null,null,"Vermögensgegenstand / Schuld unter mehreren Posten (§ 265 Abs. 3 S. 1 HGB)",null,null,"ja1)","ja1)","ja1)"]
[null,null,"Zusammenfassung von Abschlussposten (§ 265 Abs. 7 HGB)",null,null,"ja1)","ja1)","ja1)"]
[null,null,"Größere Beträge, die rechtlich nach dem Abschlusszeitpunkt entstehen"]
[null,null,"- Vermögensgegenstände (§ 268 Abs. 4 S. 2 HGB)",null,null,"nein","ja","ja"]
[null,null,"- Verbindlichkeiten (§ 268 Abs. 5 S. 3 HGB)",null,null,"nein","ja","ja"]
[null,null,"Anlagespiegel (§ 268 Abs. 2 HGB)",null,null,"nein","ja1)","ja1)"]
[null,null,"Abschreibungen des Geschäftsjahres (§ 268 Abs. 2 S. 3 HGB)",null,null,"nein","ja2)","ja2)"]
[null,null,"Gewinn- oder Verlustvortrag bei teilweiser Verwendung des Jahresergebnisses (§ 268 Abs. 1 S. 2 HGB)",null,null,"ja1)","ja1)","ja1)"]
[null,null,"Gründe für planmäßige Abschreibung des Geschäfts- oder Firmenwertes über mehr als fünf Jahre (§ 285 S. 1 Nr. 13 HGB)",null,null,"ja","ja","ja"]
[null,null,"Disagio im Rechnungsabgrenzungsposten nach § 250 Abs. 3 HGB eingestellt (§ 268 Abs. 6 HGB)",null,null,"nein","ja1)","ja1)"]
[null,null,"Rückstellung für passivische latente Steuern (§ 274 Abs. 1 S. 1 HGB)",null,null,"ja1)","ja1)","ja1)"]
[null,null,"Bilanzierungshilfe für aktivische latente Steuern (§ 274 Abs. 2 S. 2 HGB)",null,null,"ja","ja","ja"]
[null,null,"Verbindlichkeiten mit Restlaufzeit größer als fünf Jahre, Gesamtbetrag (§ 285 S. 1 Nr. 1a HGB)",null,null,"ja","ja","ja"]
[null,null,"Verbindlichkeiten, durch Pfandrechte u.Ä. gesichert, Gesamtbetrag (§ 285 S. 1 Nr. 1b HGB)",null,null,"ja","ja","ja"]
[null,null,"Aufgliederung für jeden Posten nach § 285 S. 1 Nr. 1 HGB (§ 285 S. 1 Nr. 2 HGB)",null,null,"nein","ja","ja"]
[null,null,"Betrag der in der Bilanz nicht ausgewiesenen Rückstellungen für vor dem 01.01.1987 entstandene Pensionsverpflichtungen, mittelbare Verpflichtungen und ähnliche Verpflichtungen (§ 249 Abs. 1 S. 1 HGB i.V.m. Art. 28 EGHGB)",null,null,"ja","ja","ja"]
[null,null,"Nicht in der Bilanz ausgewiesene \"sonstige Rückstellungen\" von nicht unerheblichem Umfang (§ 285 S. 1 Nr. 12 HGB)",null,null,"nein","0","ja"]
[null,null,"Zu den Finanzanlagen gehörende Finanzinstrumente, die über ihrem beizulegenden Zeitwert ausgewiesen werden, da insoweit eine außerplanmäßige Abschreibung gem. § 253 Abs. 2 S. 3 HGB unterblieben ist: Angabe der Buchwerte und der beilzulegenden Zeitwerte (für einzelne Vermögensgegenstände oder angemessene Gruppierungen) sowie die Gründe für das Unterlassen einer Abschreibung gem. § 253 Abs. 2 S. 3 HGB und der Anhaltspunkte, dass die Wertminderung voraussichtlich nicht von Dauer ist (§ 285 S. 1 Nr. 19 und 20 HGB)",null,null,"ja","ja","ja"]
[null,null,"Geschäfte mit nahestehenden Unternehmen und Personen, die nicht zu marktüblichen Bedingungen zustande gekommen sind und die für die Beurteilung der Finanzlage von Bedeutung sind (§ 285 Nr. 21 HGB)",null,null,"nein","0","ja"]
[null,null,"Gesamtbetrag der Forschungs- und Entwicklungsaufwendungen sowie der auf selbstgeschaffene immaterielle Vermögensgegenstände des Anlagevermögens entfallende Betrag (§ 285 Nr. 22 HGB)",null,null,"nein","ja","ja"]
[null,null,"Nach § 254 HGB gebildete Bewertungseinheiten sind zu erläutern und nach den abgesicherten Risiken (Preisänderungs-, Zins-, Währungs-, Ausfall- oder Liquiditätsrisiken) zu unterteilen (§ 285 Nr. 23 HGB)",null,null,"ja","ja","ja"]
[null,null,"Angabe der Beträge der nach § 246 Abs. 2 S. 2 HGB verrechneten Vermögensgegenstände und Schulden (§ 285 Nr. 25 HGB)",null,null,"ja","ja","ja"]
[null,null,"Aufgliederung des Gesamtbetrags der Beträge i.S.d. § 268 Abs. 8 HGB in Beträge aus der Aktivierung selbstgeschaffener immaterieller Vermögensgegenstände des Anlagevermögens und latenter Steuern sowie aus der Bewertung von Vermögensgegenständen zum beizulegenden Zeitwert (§ 285 Nr. 28 HGB)",null,null,"ja","ja","ja"]
[null,null,"Bericht, auf welchen Differenzen oder steuerlichen Verlustvorträgen die latenten Steuern beruhen, wobei diese Angabe unabhängig davon vorzunehmen ist, ob in der Bilanz latente Steuern ausgewiesen werden, denn gerade wenn - aufgrund der Gesamtdifferenzbetrachtung - kein Ausweis latenter Steuern erfolgt, ist anzugeben, aufgrund welcher Differenzen oder steuerlicher Verlustvorträge per Saldo ein Ausweis unterbleibt (§ 285 Nr. 29 HGB)",null,null,"nein","nein","ja"]
[null,null,"Für GmbH Gewinnrücklagen nach § 29 Abs. 4 GmbHG",null,null,"ja1)","ja1)","ja1)"]
[null,null,"Für GmbH Ausleihungen, Forderungen und Verbindlichkeiten gegenüber Gesellschaftern (§ 42 Abs. 3 GmbHG, § 264c Abs. 1 S. 1 HGB)",null,null,"ja1)","ja1)","ja1)"]
[]
[null,null,"Pflichtangaben zur GuV",null,null,"kleine KapG","mittlere KapG","große KapG","erledigt"]
[null,null,"Zusammengefasste Abschlussposten (§ 275 Abs. 2 HGB)",null,null,"0","ja4)","ja4)"]
[null,null,"Abschreibungen nach §§ 253 Abs. 2 Satz 3 und 253 Abs. 3 Satz 3 HGB (§ 277 Abs. 3 HGB)",null,null,"0","ja4)","ja4)"]
[null,null,"Außerordentliche Aufwendungen und Erträge mit Bedeutung für die Ertragslage (§ 277 Abs. 4 S. 2 HGB)",null,null,"nein","ja","ja"]
[null,null,"Periodenfremde Aufwendungen und Erträge mit Bedeutung für die Ertragslage (§ 277 Abs. 4 S. 3 HGB)",null,null,"nein","ja","ja"]
[null,null,"Aufgliederung Umsatzerlöse (§ 285 S. 1 Nr. 4 HGB)",null,null,"nein","nein","ja5)"]
[null,null,"Aufteilung der Einkommen- und Ertragsteuern auf ordentliche und außerordentliche Ergebnisse (§ 285 S. 1 Nr. 6 HGB)",null,null,"nein","ja","ja"]
[null,null,"Beim Umsatzkostenverfahren Gliederung des"]
[null,null,"- Materialaufwands gem. § 275 Abs. 2 Nr. 5 HGB (§ 285 S. 1 Nr. 8a HGB)",null,null,"nein","0","ja"]
[null,null,"- Personalaufwands gem. § 275 Abs. 2 Nr. 6 HGB (§ 285 S. 1 Nr. 8b HGB)",null,null,"0","ja","ja"]
[null,null,"Angabe der Beträge der nach § 246 Abs. 2 S. 2 HGB mit den Bewertungseinheiten zusammenhängenden Erträge und Aufwendungen, die in der GuV-Rechnung ebenfalls verrechnet werden (§ 285 Nr. 20a HGB)",null,null,"ja","ja","ja"]
[]
[null,null,"Pflichtangaben zu Haftungsverhältnissen",null,null,"kleine KapG","mittlere KapG","große KapG","erledigt"]
[null,null,"Betrag der Haftungsverhältnisse nach § 251 HGB mit Angabe von Pfandrechten und Sicherheiten; gesonderte Angabe der unter den Haftungsverhältnissen ausgewiesenen Verpflichtungen gegenüber verbundenen Unternehmen (§ 268 Abs. 7 HGB)",null,null,"ja6)","ja6)","ja6)"]
[null,null,"Gesamtbetrag der sonstigen Verpflichtungen, die nicht in der Bilanz erscheinen und nicht zu den Haftungsverhältnissen nach § 251 HGB gehören (§ 285 S. 1 Nr. 3 HGB)",null,null,"nein","ja1)","ja1)"]
[]
[null,null,"Pflichangaben zu Mitarbeitern und Organen",null,null,"kleine KapG","mittlere KapG","große KapG","erledigt"]
[null,null,"Mitglieder der Geschäftsführungsorgane und Aufsichtsräte, Benennung des Aufsichtsratsvorsitzenden, seines Stellvertreters und falls vorhanden des Vorsitzenden der Geschäftsführung; bei börsennotierten auch deren Mitgliedschaft in anderen Aufsichtsräten oder Kontrollgremien (§ 285 S. 1 Nr. 10 HGB)",null,null,"ja","ja","ja"]
[null,null,"Vorschüsse, Kredite, Haftungsverhältnisse bei Vorstand, Geschäftsführung, Aufsichtsrat, Beirat   u. Ä. (§ 285 S. 1 Nr. 9c HGB)",null,null,"ja","ja","ja"]
[null,null,"Gesamtbezüge von Vorstands-, Geschäftsführungs-, Aufsichtsrats- , Beiratsmitgliedern u. Ä. (§ 285 S. 1 Nr. 9a HGB)",null,null,"nein","ja","ja"]
[null,null,"Gesamtbezüge von früheren Vorstands-, Geschäftsführungs-, Aufsichtsrats- , Beiratsmitgliedern   u. Ä. und deren Hinterbliebenen; Rückstellungen für deren Pensionen und Anwartschaften auf Pensionen sowie nicht gebildete Rückstellungen für diese Verpflichtungen (§ 285 S. 1 Nr. 9b HGB)",null,null,"nein","ja","ja"]
[null,null,"Durchschnittliche Zahl der Arbeitnehmer getrennt nach Gruppen (§ 285 S. 1 Nr. 7 HGB)",null,null,"nein","ja","ja"]
[null,null,"Angabe des angewandten versicherungsmathematischen Bewertungsverfahrens für Pensionsrückstellungen (§ 285 Nr. 24 HGB)",null,null,"ja","ja","ja"]
[]
[null,null,"Pflichtangaben zur Beteiligungsverhältnissen",null,null,"kleine KapG","mittlere KapG","große KapG","erledigt"]
[null,null,"Name und Sitz anderer Unternehmen bei mind. 20 %iger Beteiligung der KapG oder der für sie handelnden Personen sowie Angaben der Beteiligungsquote, das Eigenkapital und das Ergebnis; bei börsennotierten Unternehmen auch Name und Sitz von allen großen Kapitalgesellschaften, an denen das Unternehmen mehr als 5 % der Stimmrechte besitzt (§ 285 S. 1 Nr. 11 HGB)",null,null,"ja","ja","ja"]
[null,null,"Name, Sitz und Rechtsform der Unternehmen, deren unbeschränkt haftender Gesellschafter die Kapitalgesellschaft ist (§ 285 S. 1 Nr. 11a HGB)",null,null,"ja","ja","ja"]
[null,null,"Darstellung des Zwecks des Erwerbs von Anteilen an Spezialfonds, Buchwert, beizulegender Zeitwert, thesaurierte und ausgeschüttete Gewinne sowie Aufgliederung des Fondsvermögens (§ 285 Nr. 26 HGB)",null,null,"ja","ja","ja"]
[]
[null,null,"Sonstige Pflichtangaben",null,null,"kleine KapG","mittlere KapG","große KapG","erledigt"]
[null,null,"Name, Sitz und Ort der Offenlegung des Mutterunternehmens bei Konzernabschluss (§ 285 S. 1 Nr. 14 HGB)",null,null,"ja","ja","ja"]
[null,null,"Name und Sitz des Mutterunternehmens, das den befreienden Konzernabschluss und -lagebericht aufstellt, sowie einen Hinweis darauf, dass die Befreiungsmöglichkeit in Anspruch genommen wird und eine Erläuterung der im befreienden Konzernabschluss vom deutschen Recht abweichend angewandten Bilanzierungs-, Bewertungs- und Konsolidierungsmethoden (§ 291 Abs. 2 Nr. 3 HGB)",null,null,"ja","ja","ja"]
[null,null,"Als Aufwand erfasstes Honorar des Abschlussprüfers, sonstige Bestätigungs- oder Bewertungsleistungen, Steuerberatungsleistungen und sonstige Leistungen (§ 285 S. 1 Nr. 17 HGB)",null,null,"nein","0","ja"]
[]
[null,null,"Zusätzliche Pflichtangaben für Personengesellschaften",null,null,"kleine KapG","mittlere KapG","große KapG","erledigt"]
[null,null,"Angaben der in der Bilanz nicht gesondert ausgewiesenen Ausleihungen, Forderungen und Verbindlichkeiten gegenüber Gesellschaftern (§ 264c Abs. 1 HGB)",null,null,"ja1)","ja1)","ja1)"]
[null,null,"Angaben der gem. § 172 Abs. 1 HGB im Handelsregister eingetragenen, nicht geleisteten Hafteinlagen (§264c Abs. 2 S. 9 HGB)",null,null,"ja","ja","ja"]
[null,null,"Name, Sitz und gezeichnetes Kapital der Gesellschaften, die persönlich haftende Gesellschafter des berichtenden Unternehmens sind (§ 285 S. 1 Nr. 15 HGB)",null,null,"ja","ja","ja"]
[]
[null,null,"Zusätzliche Pflichtangaben für AG und KGaA",null,null,"kleine KapG","mittlere KapG","große KapG","erledigt"]
[null,null,"Angabe der Beträge zu dem Posten Kapitalrücklage, die während des Geschäftsjahres eingestellt wurden und die für das Geschäftsjahr entnommen wurden (§ 152 Abs. 2 AktG)",null,null,"ja1)","ja1)","ja1)"]
[null,null,"Angabe der Beträge zu den einzelnen Posten der Gewinnrücklagen, die die Hauptversammlung aus dem Bilanzgewinn des Vorjahres eingestellt hat, die aus dem Jahresüberschuss des Geschäftsjahres eingestellt wurden und die für das Geschäftsjahr entnommen wurden (§ 152 Abs. 3 AktG)",null,null,"ja1)","ja1)","ja1)"]
[null,null,"Erweiterung der Gewinn- und Verlustrechnung (§ 158 Abs. 1 AktG)",null,null,"ja4)","ja4)","ja4)"]
[null,null,"Angabe zu Vorratsaktien (§160 Abs. 1 Nr. 1 AktG)",null,null,"ja","ja","ja"]
[null,null,"Angabe zu eigenen Aktien (§ 160 Abs. 1 Nr. 2 AktG)",null,null,"ja","ja","ja"]
[null,null,"Zahl jeder Aktiengattung sowie bei Nennbetragsaktien der Nennbetrag; gesonderte Angabe der Aktien, die bei einer bedingten Kapitalerhöhung oder einem genehmigten Kapital im Geschäftsjahr gezeichnet wurden (§ 160 Abs. 1 Nr. 3 AktG)",null,null,"ja1)","ja1)","ja1)"]
[null,null,"Angaben zum genehmigten Kapital (§ 160 Abs. 1 Nr. 4 AktG)",null,null,"ja","ja","ja"]
[null,null,"Angaben zur Zahl der Bezugsrechte nach § 192 Abs. 2 Nr. 3 AktG, zu Wandelschuldverschreibungen und zu vergleichbaren Wertpapieren unter Angabe der Rechte, die sie verbriefen (§ 160 Abs. 1 Nr. 5 AktG)",null,null,"ja","ja","ja"]
[null,null,"Angaben zu Genussrechten, Rechten aus Besserungsscheinen und ähnlichen Rechten unter Angabe der Art und Zahl der jeweiligen Rechte sowie der im Geschäftsjahr neu entstandenen Rechte (§ 160 Abs. 1 Nr. 6 AktG)",null,null,"ja","ja","ja"]
[null,null,"Angabe des Bestehens einer wechselseitigen Beteiligung (§160 Abs. 1 Nr. 7 AktG)",null,null,"ja","ja","ja"]
[null,null,"Angaben der Beteiligungen, die der Gesellschaft nach § 20 Abs. 1 oder 4 AktG oder § 21 Abs. 1 oder 1a WpHG mitgeteilt worden sind (§ 160 Abs. 1 Nr. 8 AktG)",null,null,"ja","ja","ja"]
[null,null,"Erläuterung der Verwendung von aus einer Kapitalherabsetzung oder einer Auflösung von Gewinnrücklagen gewonnenen Beträge zum Ausgleich von Wertminderungen, zur Deckung von sonstigen Verlusten oder zur Einstellung in die Kapitalrücklage (§ 240 AktG)",null,null,"ja","ja","ja"]
[null,null,"Angaben gem. § 261 Abs. 1 S. 3 und 4 AktG nach einer in einer Sonderprüfung festgestellten unzulässigen Unterbewertung",null,null,"ja","ja","ja"]
[null,null,"Zusätzlich zur Angabe, dass die nach § 161 AktG vorgeschriebene Erklärung abgegeben und den Aktionären zugänglich gemacht worden ist, besteht künftig auch die Verpflichtung zur Offenlegung, an welchem Ort (z.B. Internetseite o.Ä.) die Erklärung zur Corporate Governance (§ 161 AktG) öffentlich (nicht nur den Aktionären, sondern auch der Allgemeinheit) zugänglich ist (§ 285 Nr. 16 HGB)",null,null,"ja","ja","ja"]
[]
[null,null,"Im Zusammenhang mit der Erstanwendung der Vorschriften des BilMoG ist in Bezug auf die Berichterstattung im Anhang darüber hinaus zu beachten, dass die § 265 Abs. 1, § 284 Abs. 2 Nr. 3 HGB gem. Art. 67 Abs. 8 EGHGB nicht anzuwenden sind. Aufgrund dieser Erleichterungsvorschrift müssen die aus den Gesetzesänderungen folgenden Abweichungen der Ansatz-, Bewertungs- und Ausweismethoden gegenüber dem Vorjahr nicht als solche im Anhang genannt und begründet werden. Ebenso kann die Darstellung ihres Einflusses auf die Vermögens-, Finanz- und Ertragslage des berichtenden Unternehmens bzw. eine Anpassung der Vergleichswerte der Vorperiode unterbleiben. Letzteres ist konsequent, da sich andernfalls faktisch ein um ein Jahr früherer Erstanwendungszeitpunkt in Bezug auf die durch das BilMoG geänderten Vorschriften ergeben würde."]
[]
[null,null,"                                  Zeichenerklärung"]
[null,null,"ja","= Angabe muss gemacht werden"]
[null,null,"nein","= Angabe muss nicht gemacht werden"]
[null,null,0,"= Angabe kann bei Offenlegung entfallen"]
[null,null,"1)","= Angabe auch in Bilanz möglich"]
[null,null,"2)","= Angabe auch in Bilanz oder Anlagenspiegel möglich"]
[null,null,"3)","= Angabe auch in Bilanz oder GuV möglich"]
[null,null,"4)","= Angabe auch in GuV möglich"]
[null,null,"5)","= Angabe kann unterbleiben bei erheblichem Nachteil"]
[null,null,"6)","= Angabe kann auch unter der Bilanz erfolgen"]

{"sheet":"ESt-Planung","index":39,"n_rows":33,"n_cols":6,"rows_kept":33,"cut":false,"hidden":false,"merged":[[5,0,5,5]]}
["Jahr:",{"$f":"Stammblatt!$C$4","v":0}]
["Mandantennummer:",{"$f":"Stammblatt!$C$5","v":0}]
["Mandantenname:",{"$f":"Stammblatt!$C$6","v":0}]
[]
[]
["Steuer-Planungsreport für das Jahr ??"]
[]
[]
["Gewinn lt. BWA",null,"Monat"]
[null,null,"Jahr"]
[]
[]
["Berechnung der Einkommensteuer+Soli+Kirchensteuer"]
[]
["Hochrechnung des Gewinns/Verlusts lt. aktueller BWA auf 12 Monate",null,null,null,null,{"$f":"SUM(F9/D9*12)","v":{"$error":"#DIV/0!"}}]
["Einkommensteuer laut Est-Vorausberechnungsprogramm",null,null,null,null,{"$f":"SUM(F15*15%)","v":{"$error":"#DIV/0!"}}]
["Solidaritätszuschlag 5,5% von der Einkommensteuer",null,null,null,null,{"$f":"F16*5.5%","v":{"$error":"#DIV/0!"}}]
["Kirchensteuer 9% von der Einkommensteuer",null,null,null,null,{"$f":"F16*9%","v":{"$error":"#DIV/0!"}}]
["Summe Einkommensteuer + Solidaritätszuschlag + Kirchensteuer",null,null,null,null,{"$f":"SUM(F16:F18)","v":{"$error":"#DIV/0!"}}]
["Abzüglich Vorauszahlungen (mit Minus eingeben)"]
[null,"1. Quartal","zur Zahlung fällig am 10.03."]
[null,"2. Quartal","zur Zahlung fällig am 10.06."]
[null,"3. Quartal","zur Zahlung fällig am 10.09."]
[null,"4. Quartal","zur Zahlung fällig am 10.12."]
["Vorraussichtliche Nachzahlung(+) / Erstattung (-) für das aktuelle Jahr",null,null,null,null,{"$f":"SUM(F19:F24)","v":{"$error":"#DIV/0!"}}]
[]
["Hinweise:"]
["Es erfolgte eine lineare Hochrechnung des aktuellen Gewinns/Verlusts auf das Gesamtjahr."]
["Es wurden keine besonderen Steuergestaltungsmaßnahmen eingerechnet."]
[]
["Fazit:"]
["Nach heutigem Stand reichen die vom Finanzamt festgesetzten Vorauszahlungen nicht aus, somit wären für das"]
[{"$f":"\"aktuelle Jahr weitere Einkommensteuervorauszahlungen in Höhe von \"&TEXT(F25,\"0.000,00 €\")&\" notwendig.\"","v":{"$error":"#DIV/0!"}}]

{"sheet":"GewSt zur ESt","index":40,"n_rows":27,"n_cols":4,"rows_kept":27,"cut":false,"hidden":false,"merged":[[5,0,5,3]]}
["Jahr:",{"$f":"Stammblatt!$C$4","v":0}]
["Mandantennummer:",{"$f":"Stammblatt!$C$5","v":0}]
["Mandantenname:",{"$f":"Stammblatt!$C$6","v":0}]
[]
[]
[{"$f":"[4]ESt!A6","v":"Steuer-Planungsreport für das Jahr ??"}]
[]
[]
["Berechnung der Gewerbesteuer"]
[]
[{"$f":"[4]ESt!A15","v":"Hochrechnung des Gewinns/Verlusts lt. aktueller BWA auf 12 Monate"},null,null,{"$f":"[4]ESt!F15","v":{"$error":"#DIV/0!"}}]
["Gewerbesteuer ca. 15%",null,null,{"$f":"SUM(D11*15%)","v":{"$error":"#DIV/0!"}}]
[{"$f":"[4]KSt!A19","v":"Abzüglich Vorauszahlungen (mit Minus eingeben)"}]
[null,{"$f":"[4]ESt!B21","v":"1. Quartal"},"zur Zahlung fällig am 15.02.",0]
[null,{"$f":"[4]ESt!B22","v":"2. Quartal"},"zur Zahlung fällig am 15.05.",0]
[null,{"$f":"[4]ESt!B23","v":"3. Quartal"},"zur Zahlung fällig am 15.08.",0]
[null,{"$f":"[4]ESt!B24","v":"4. Quartal"},"zur Zahlung fällig am 15.11.",0]
[{"$f":"[4]ESt!A25","v":"Vorraussichtliche Nachzahlung(+) / Erstattung (-) für das aktuelle Jahr"},null,null,{"$f":"SUM(D12:D17)","v":{"$error":"#DIV/0!"}}]
[]
[{"$f":"[4]ESt!A27","v":"Hinweise:"}]
[{"$f":"[4]ESt!A28","v":"Es erfolgte eine lineare Hochrechnung des aktuellen Gewinns/Verlusts auf das Gesamtjahr."}]
[{"$f":"[4]ESt!A29","v":"Es wurden keine besonderen Steuergestaltungsmaßnahmen eingerechnet."}]
[]
[{"$f":"[4]KSt!A30","v":"Fazit:"}]
["Nach heutigem Stand reichen die von der Stadt/Gemeinde festgesetzten Vorauszahlungen"]
[{"$f":"\"nicht aus, somit wären für das aktuelle Jahr weitere Gewerbesteuervorauszahlungen in Höhe von ca. \"&TEXT(D18,\"0.000,00 €\")","v":{"$error":"#DIV/0!"}}]
["notwendig."]

{"sheet":"KSt-Planung","index":41,"n_rows":32,"n_cols":6,"rows_kept":32,"cut":false,"hidden":true,"merged":[[5,0,5,5]]}
["«SDV/Bezeichnung»"]
["«SDV/Strasse»"]
["«SDV/Ort»"]
[]
[]
["Steuer-Planungsreport für das Jahr ??"]
[]
[]
["Gewinn lt. BWA",null,"Monat"]
[null,null,"Jahr",2014]
[]
[]
["Berechnung der Körperschaftsteuer+Soli "]
[]
["Hochrechnung des Gewinns/Verlusts lt. aktueller BWA auf 12 Monate",null,null,null,null,{"$f":"SUM(F9/D9*12)","v":{"$error":"#DIV/0!"}}]
["Körperschaftsteuer 15%",null,null,null,null,{"$f":"SUM(F15*15%)","v":{"$error":"#DIV/0!"}}]
["Solidaritätszuschlag 5,5% von der Körperschafteuer",null,null,null,null,{"$f":"SUM(F16*5.5%)","v":{"$error":"#DIV/0!"}}]
["Summe Körperschaftsteuer + Solidaritätszuschlag",null,null,null,null,{"$f":"SUM(F16:F17)","v":{"$error":"#DIV/0!"}}]
["Abzüglich Vorauszahlungen (mit Minus eingeben)"]
[null,"1. Quartal","zur Zahlung fällig am 10.03.",null,null,0]
[null,"2. Quartal","zur Zahlung fällig am 10.06.",null,null,0]
[null,"3. Quartal","zur Zahlung fällig am 10.09.",null,null,0]
[null,"4. Quartal","zur Zahlung fällig am 10.12.",null,null,0]
["Vorraussichtliche Nachzahlung(+) / Erstattung (-) für das aktuelle Jahr",null,null,null,null,{"$f":"SUM(F18:F23)","v":{"$error":"#DIV/0!"}}]
[]
["Hinweise:"]
["Es erfolgte eine lineare Hochrechnung des aktuellen Gewinns/Verlusts auf das Gesamtjahr."]
["Es wurden keine besonderen Steuergestaltungsmaßnahmen eingerechnet."]
[]
["Fazit:"]
["Nach heutigem Stand reichen die vom Finanzamt festgesetzten Vorauszahlungen nicht aus, somit wären für das"]
[{"$f":"\"aktuelle Jahr weitere Körperschaftsteuervorauszahlungen in Höhe von \"&TEXT(F24,\"0.000,00 €\")&\" notwendig.\"","v":{"$error":"#DIV/0!"}}]

{"sheet":"GewSt-Planung zur KSt","index":42,"n_rows":27,"n_cols":4,"rows_kept":27,"cut":false,"hidden":true,"merged":[[5,0,5,3]]}
[{"$f":"[4]KSt!A1","v":"«SDV/Bezeichnung»"}]
[{"$f":"[4]KSt!A2","v":"«SDV/Strasse»"}]
[{"$f":"[4]KSt!A3","v":"«SDV/Ort»"}]
[]
[]
[{"$f":"[4]KSt!A6","v":"Steuer-Planungsreport für das Jahr ??"}]
[]
[]
["Berechnung der Gewerbesteuer"]
[]
[{"$f":"[4]KSt!A15","v":"Hochrechnung des Gewinns/Verlusts lt. aktueller BWA auf 12 Monate"},null,null,{"$f":"SUM([4]KSt!F15)","v":{"$error":"#DIV/0!"}}]
["Gewerbesteuer ca. 15%",null,null,{"$f":"SUM(D11*15%)","v":{"$error":"#DIV/0!"}}]
[{"$f":"[4]KSt!A19","v":"Abzüglich Vorauszahlungen (mit Minus eingeben)"}]
[null,{"$f":"[4]KSt!B20","v":"1. Quartal"},"zur Zahlung fällig am 15.02.",0]
[null,{"$f":"[4]KSt!B21","v":"2. Quartal"},"zur Zahlung fällig am 15.05.",0]
[null,{"$f":"[4]KSt!B22","v":"3. Quartal"},"zur Zahlung fällig am 15.08.",0]
[null,{"$f":"[4]KSt!B23","v":"4. Quartal"},"zur Zahlung fällig am 15.11.",0]
[{"$f":"[4]KSt!A24","v":"Vorraussichtliche Nachzahlung(+) / Erstattung (-) für das aktuelle Jahr"},null,null,{"$f":"SUM(D12:D17)","v":{"$error":"#DIV/0!"}}]
[]
[{"$f":"[4]KSt!A26","v":"Hinweise:"}]
[{"$f":"[4]KSt!A27","v":"Es erfolgte eine lineare Hochrechnung des aktuellen Gewinns/Verlusts auf das Gesamtjahr."}]
[{"$f":"[4]KSt!A28","v":"Es wurden keine besonderen Steuergestaltungsmaßnahmen eingerechnet."}]
[]
[{"$f":"[4]KSt!A30","v":"Fazit:"}]
["Nach heutigem Stand reichen die von der Stadt/Gemeinde festgesetzten Vorauszahlungen"]
[{"$f":"\"nicht aus, somit wären für das aktuelle Jahr weitere Gewerbesteuervorauszahlungen in Höhe von ca. \"&TEXT(D18,\"0.000,00 €\")","v":{"$error":"#DIV/0!"}}]
["notwendig."]

{"sheet":"Aktivitätenplan","index":43,"n_rows":26,"n_cols":9,"rows_kept":26,"cut":false,"hidden":false,"merged":[[5,0,5,6]]}
["Jahr:",{"$f":"Stammblatt!$C$4","v":0}]
["Mandantennummer:",{"$f":"Stammblatt!$C$5","v":0},null,null,null,null,null,null,"Stichwort: Aktive Beratung"]
["Mandantenname:",{"$f":"Stammblatt!$C$6","v":0}]
[]
[]
["ErfolgsReport: Aktivitätenplan (To-Do-Liste) für das Jahr ??",null,null,null,null,null,null,null,"Interne Standard-Vorschläge der Steuerkanzlei "]
[]
["Bezeichnung der einzelnen Aktivitäten","Verantwortlichkeit","Budget EUR","Start am:","Start am:","erledigt am:","erledigt am:"]
[null,null,null,"Geplant","Ist","Geplant","Ist"]
[]
[null,null,null,null,null,null,null,null,"Maßnahmen zur Kostensenkung:"]
[null,null,null,null,null,null,null,null,"Kosten, die reduziert werden sollen auf Kontenblätter ausdrucken und markieren"]
[]
[null,null,null,null,null,null,null,null,"Maßnahmen zur Umsatzsteigerung:"]
[null,null,null,null,null,null,null,null,"Vision + Ziele + Strategie aufstellen und umsetzen"]
[null,null,null,null,null,null,null,null,"Ideen aufstellen und umsetzen"]
[null,null,null,null,null,null,null,null,"Preise in Höhe der Inflation jährlich anheben"]
[null,null,null,null,null,null,null,null,"Schwellenpreise festlegen"]
[]
[null,null,null,null,null,null,null,null,"Maßnahmen zur besseren Motivation der Arbeitnehmer:"]
[null,null,null,null,null,null,null,null,"siehe unsere Homepage unter Jobs"]
[]
[null,null,null,null,null,null,null,null,"Maßnahmen zur Verbesserung der internen Organisation:"]
[null,null,null,null,null,null,null,null,"Wochenplan einführen"]
[null,null,null,null,null,null,null,null,"EDV verbessern, mobiler werden, vernetzter arbeiten"]
[null,null,null,null,null,null,null,null,"Projektmanagement einführen"]